Workbook

Sheet MEDICOS
B5: CICLO | E5: 1 | G5: DIAS HABILES | J5: 20 | L5: INICIO DE CICLO | O5: =VLOOKUP(E5,CICLOS!$B$3:$H$14,2,0) -> 2018-01-04 | R5: FECHA DE CORTE | U5: =TODAY() -> 2018-01-11 | Y5: LIBRES | Z5: =VLOOKUP(E5,CICLOS!$B$3:$J$14,6,0) -> 1 | AB5: Dias Visita | AC5: =NETWORKDAYS(O5,U5)-Z5-1 -> 4
A7: DIAS RESTADOS
B8: =DATE(YEAR(B17),MONTH(B17),DAY(B17)) -> 2018-01-04 | C8: =IF(+C17="","",C17) -> 2018-01-05 | D8: 2018-01-06 | E8: 2018-01-09 | F8: 2018-01-10 | G8: 2018-01-11 | H8: 2018-01-12 | Z8: T.CONT REALES | AA8: OBJETIVO A LA FECHA | AC8: OBJETIVO x CICLO | AE8: TOTAL CONT EN SISTEMA | AF8: PROM CONT Xdia | AG8: no laborados
B9: =IF(+B17="","",B17) -> 2018-01-04 | C9: =IF(+C17="","",C17) -> 2018-01-05 | D9: 2018-01-06 | E9: 2018-01-09 | F9: 2018-01-10 | G9: 2018-01-11 | H9: 2018-01-12 | AA9: #CONT | AB9: %COB | AC9: #CONT | AD9: %COB
A11: Formulario Nombre | B11: VISITA MEDICA
A12: VM-Gestión: | B12: (Todas)
A13: VM-QUINTIL | B13: (Todas)
A14: MES | B14: 1
A16: Cuenta de Estado | B16: Etiquetas de columna
A17: Etiquetas de fila | B17: 2018-01-04 | C17: 2018-01-05 | D17: 2018-01-06 | E17: 2018-01-09 | F17: 2018-01-10 | G17: 2018-01-11 | H17: 2018-01-12
A18: COSTA | B18: 81 | C18: 54 | D18: 10 | E18: 80 | F18: 72 | G18: 94 | H18: 72 | Z18: =SUM(B18:Y18) -> 463 | AA18: =IFERROR(((+AI18/$J$5)*$AC$5)," ") -> 434.6 | AB18: =IFERROR((+Z18/AA18)," ") -> 1.065347446 | AC18: =IFERROR((+AF18*$J$5)," ")-AH18 -> 2173 | AD18: =IFERROR((+Z18/AC18)," ") -> 0.2130694892 | AE18: =+AI18-AH18 -> 2173 | AF18: =IFERROR((IF(K3>20,AI18/$J$5,(+AI18/20)))," ") -> 108.65 | AI18: =IFERROR((VLOOKUP(A18,CONTACTOS!$B$28:$Q$49,MEDICOS!$E$5+2,0))," ") -> 2173
A19: C-David Maridue | B19: 13 | C19: 2 | E19: 8 | F19: 13 | G19: 14 | H19: 14 | Z19: =SUM(B19:Y19) -> 64 | AA19: =IFERROR(((+AE19/$J$5)*$AC$5)," ") -> 46 | AB19: =IFERROR((+Z19/AA19)," ") -> 1.391304348 | AC19: 230 | AD19: =IFERROR((+Z19/AC19)," ") -> 0.2782608696 | AE19: =+AI19-AH19 -> 230 | AF19: 11.5 | AI19: =IFERROR((VLOOKUP(A19,CONTACTOS!$B$28:$Q$49,MEDICOS!$E$5+2,0))," ") -> 230
A20: C-Edison Calderón | E20: 10 | F20: 5 | G20: 9 | Z20: =SUM(B20:Y20) -> 24 | AA20: =IFERROR(((+AE20/$J$5)*$AC$5)," ") -> 45.2 | AB20: =IFERROR((+Z20/AA20)," ") -> 0.5309734513 | AC20: 226 | AD20: =IFERROR((+Z20/AC20)," ") -> 0.1061946903 | AE20: 226 | AF20: 11.3 | AI20: =IFERROR((VLOOKUP(A20,CONTACTOS!$B$28:$Q$49,MEDICOS!$E$5+2,0))," ") -> 226
A21: C-Eduardo Falquez | C21: 9 | E21: 4 | F21: 9 | G21: 8 | H21: 10 | Z21: 40 | AA21: 38.4 | AB21: 1.041666667 | AC21: 192 | AD21: 0.2083333333 | AE21: 192 | AF21: 9.6 | AI21: =IFERROR((VLOOKUP(A21,CONTACTOS!$B$28:$Q$49,MEDICOS!$E$5+2,0))," ") -> 192
A22: C-Maria Chavez | B22: 44 | C22: 27 | E22: 7 | F22: 7 | G22: 8 | H22: 6 | Z22: 99 | AA22: 42.4 | AB22: 2.33490566 | AC22: 212 | AD22: 0.4669811321 | AE22: 212 | AF22: 10.6 | AI22: =IFERROR((VLOOKUP(A22,CONTACTOS!$B$28:$Q$49,MEDICOS!$E$5+2,0))," ") -> 212
A23: C-Roberth Cely | C23: 10 | E23: 8 | F23: 8 | G23: 8 | H23: 10 | Z23: 44 | AA23: 40.4 | AB23: 1.089108911 | AC23: 202 | AD23: 0.2178217822 | AE23: 202 | AF23: 10.1 | AI23: =IFERROR((VLOOKUP(A23,CONTACTOS!$B$28:$Q$49,MEDICOS!$E$5+2,0))," ") -> 202
A24: C-William Figueroa | B24: 14 | C24: 5 | D24: 10 | E24: 12 | F24: 10 | G24: 10 | H24: 12 | Z24: 73 | AA24: 46.8 | AB24: 1.55982906 | AC24: 234 | AD24: 0.311965812 | AE24: 234 | AF24: 11.7 | AI24: =IFERROR((VLOOKUP(A24,CONTACTOS!$B$28:$Q$49,MEDICOS!$E$5+2,0))," ") -> 234
A25: C-Cecil Miranda | B25: 10 | E25: 9 | F25: 8 | G25: 7 | H25: 7 | Z25: 41 | AA25: =IFERROR(((+AE25/$J$5)*$AC$5)," ") -> 45.2 | AB25: 0.907079646 | AC25: 226 | AD25: 0.1814159292 | AE25: 226 | AF25: 11.3 | AI25: =IFERROR((VLOOKUP(A25,CONTACTOS!$B$28:$Q$49,MEDICOS!$E$5+2,0))," ") -> 226
A26: C-Mario Scippa | C26: 1 | E26: 8 | F26: 10 | G26: 8 | H26: 5 | Z26: 32 | AA26: 45.2 | AB26: 0.7079646018 | AC26: 226 | AD26: 0.1415929204 | AE26: 226 | AF26: 11.3 | AI26: =IFERROR((VLOOKUP(A26,CONTACTOS!$B$28:$Q$49,MEDICOS!$E$5+2,0))," ") -> 226
A27: C-Christian Tinoco | E27: 5 | F27: 2 | G27: 4 | Z27: 11 | AA27: 43 | AB27: 0.2558139535 | AC27: 215 | AD27: 0.0511627907 | AE27: 215 | AF27: 10.75 | AI27: =IFERROR((VLOOKUP(A27,CONTACTOS!$B$28:$Q$49,MEDICOS!$E$5+2,0))," ") -> 215
A28: C-Jhon San Andres | E28: 9 | G28: 18 | H28: 8 | Z28: 35 | AA28: 42 | AB28: 0.8333333333 | AC28: 210 | AD28: 0.1666666667 | AE28: 210 | AF28: 10.5 | AI28: =IFERROR((VLOOKUP(A28,CONTACTOS!$B$28:$Q$49,MEDICOS!$E$5+2,0))," ") -> 210
A29: SIERRA | B29: 33 | C29: 81 | E29: 36 | F29: 42 | G29: 60 | H29: 48 | Z29: 300 | AA29: 336 | AB29: 0.8928571429 | AC29: 1680 | AD29: 0.1785714286 | AE29: 1680 | AF29: 84 | AG29: =SUM(AG30:AG37) -> 18 | AI29: =IFERROR((VLOOKUP(A29,CONTACTOS!$B$28:$Q$49,MEDICOS!$E$5+2,0)-AH29)," ") -> 1680
A30: S-Janina Mera | B30: 10 | C30: 7 | E30: 10 | F30: 7 | G30: 8 | H30: 9 | Z30: 51 | AA30: 40.8 | AB30: 1.25 | AC30: =IFERROR((+AF30*$J$5)," ")-AH30 -> 204 | AD30: 0.25 | AE30: 204 | AF30: 10.2 | AG30: 6 | AI30: =IFERROR((VLOOKUP(A30,CONTACTOS!$B$28:$Q$49,MEDICOS!$E$5+2,0))," ") -> 204
A31: S-Mariela Ibarra | B31: 10 | C31: 12 | E31: 6 | F31: 7 | G31: 6 | H31: 6 | Z31: 47 | AA31: 40 | AB31: 1.175 | AC31: =IFERROR((+AF31*$J$5)," ")-AH31 -> 200 | AD31: 0.235 | AE31: 200 | AF31: 10 | AI31: =IFERROR((VLOOKUP(A31,CONTACTOS!$B$28:$Q$49,MEDICOS!$E$5+2,0))," ") -> 200
A32: S-Pablo Estevez | B32: 7 | C32: 11 | Z32: 18 | AA32: 40 | AB32: 0.45 | AC32: 200 | AD32: 0.09 | AE32: 200 | AF32: 10 | AG32: 4 | AI32: =IFERROR((VLOOKUP(A32,CONTACTOS!$B$28:$Q$49,MEDICOS!$E$5+2,0))," ") -> 200
A33: S-William Goercke | B33: 6 | C33: 24 | E33: 10 | F33: 9 | G33: 8 | H33: 12 | Z33: 69 | AA33: 41 | AB33: 1.682926829 | AC33: 205 | AD33: 0.3365853659 | AE33: 205 | AF33: 10.25 | AI33: =IFERROR((VLOOKUP(A33,CONTACTOS!$B$28:$Q$49,MEDICOS!$E$5+2,0))," ") -> 205
A34: S-Santiago Freile | C34: 11 | Z34: 11 | AA34: 48.6 | AB34: 0.2263374486 | AC34: 243 | AD34: 0.04526748971 | AE34: 243 | AF34: 12.15 | AG34: 8 | AI34: =IFERROR((VLOOKUP(A34,CONTACTOS!$B$28:$Q$49,MEDICOS!$E$5+2,0))," ") -> 243
A35: S-Jimmy Sarmiento | C35: 16 | E35: 7 | F35: 6 | G35: 16 | H35: 14 | Z35: 59 | AA35: 48.2 | AB35: 1.22406639 | AC35: 241 | AD35: 0.244813278 | AE35: 241 | AF35: 12.05 | AI35: =IFERROR((VLOOKUP(A35,CONTACTOS!$B$28:$Q$49,MEDICOS!$E$5+2,0))," ") -> 241
A36: S-Santiago Carrera | E36: 1 | F36: 8 | G36: 12 | H36: 7 | Z36: 28 | AA36: 39.2 | AB36: 0.7142857143 | AC36: 196 | AD36: 0.1428571429 | AE36: 196 | AF36: 9.8 | AI36: =IFERROR((VLOOKUP(A36,CONTACTOS!$B$28:$Q$49,MEDICOS!$E$5+2,0))," ") -> 196
A37: S-Pablo Carrion | E37: 2 | F37: 5 | G37: 10 | Z37: =SUM(B37:Y37) -> 17 | AA37: 38.2 | AB37: =IFERROR((+Z37/AA37)," ") -> 0.445026178 | AC37: 191 | AD37: =IFERROR((+Z37/AC37)," ") -> 0.0890052356 | AE37: 191 | AF37: 9.55 | AI37: =IFERROR((VLOOKUP(A37,CONTACTOS!$B$28:$Q$49,MEDICOS!$E$5+2,0))," ") -> 191
A38: Total general | B38: 114 | C38: 135 | D38: 10 | E38: 116 | F38: 114 | G38: 154 | H38: 120 | Z38: =SUM(B38:Y38) -> 763 | AA38: 770.6 | AB38: =IFERROR((+Z38/AA38)," ") -> 0.9901375552 | AC38: 3853 | AD38: =IFERROR((+Z38/AC38)," ") -> 0.198027511 | AE38: 3853 | AF38: 192.65 | AG38: =SUM(AG30:AG37) -> 18 | AI38: =IFERROR((VLOOKUP(A38,CONTACTOS!$B$28:$Q$49,MEDICOS!$E$5+2,0))," ") -> 3853

Sheet FARMACIAS
B5: CICLO | E5: 1 | G5: DIAS HABILES | J5: =VLOOKUP(E5,CICLOS!$B$3:$H$14,7,0) -> 19 | L5: INICIO DE CICLO | O5: =VLOOKUP(E5,CICLOS!$B$3:$H$14,2,0) -> 2018-01-04 | R5: FECHA DE CORTE | U5: =TODAY() -> 2018-01-11 | Y5: LIBRES | Z5: =VLOOKUP(E5,CICLOS!$B$3:$J$14,6,0) -> 1 | AB5: Dias Visita | AC5: =NETWORKDAYS(O5,U5)-Z5-1 -> 4
B8: =DATE(YEAR(B17),MONTH(B17),DAY(B17)) -> 2017-12-26 | C8: =IF(+C17="","",C17) -> 2017-12-27 | D8: 2017-12-28 | E8: 2017-12-29 | F8: 2017-12-30 | G8: 2018-01-02 | H8: 2018-01-03 | I8: 2018-01-04 | J8: 2018-01-05 | K8: 2018-01-06 | L8: 2018-01-07 | M8: 2018-01-08 | Z8: T.CONT REALES | AA8: OBJETIVO A LA FECHA | AC8: OBJETIVO x CICLO | AE8: TOTAL CONT EN SISTEMA | AF8: PROM CONT Xdia | AG8: no laborados
B9: =IF(+B17="","",B17) -> 2017-12-26 | C9: =IF(+C17="","",C17) -> 2017-12-27 | D9: 2017-12-28 | E9: 2017-12-29 | F9: 2017-12-30 | G9: 2018-01-02 | H9: 2018-01-03 | I9: 2018-01-04 | J9: 2018-01-05 | K9: 2018-01-06 | L9: 2018-01-07 | M9: 2018-01-08 | AA9: #CONT | AB9: %COB | AC9: #CONT | AD9: %COB
A11: Formulario Nombre | B11: VISITA FARMACIA
A12: VM-Gestión: | B12: (Todas)
A13: VM-QUINTIL | B13: (Todas)
A14: MES | B14: 11
A16: Cuenta de Estado | B16: Etiquetas de columna
A17: Etiquetas de fila | B17: 2017-12-26 | C17: 2017-12-27 | D17: 2017-12-28 | E17: 2017-12-29 | F17: 2017-12-30 | G17: 2018-01-02 | H17: 2018-01-03 | I17: 2018-01-04 | J17: 2018-01-05 | K17: 2018-01-06 | L17: 2018-01-07 | M17: 2018-01-08
A18: COSTA | B18: 35 | C18: 32 | D18: 33 | E18: 22 | F18: 45 | G18: 25 | H18: 46 | I18: 35 | J18: 13 | K18: 38 | L18: 1 | M18: 3 | Z18: =SUM(B18:Y18) -> 328 | AA18: =IFERROR(((+AC18/$J$5)*$AC$5)," ") -> 212.4 | AB18: =IFERROR((+Z18/AA18)," ") -> 1.544256121 | AC18: =IFERROR((+AF18*$J$5)," ")-AH18 -> 1008.9 | AD18: =IFERROR((+Z18/AC18)," ") -> 0.3251065517 | AE18: =+AI18-AH18 -> 1062 | AF18: =IFERROR((IF(K3>20,AI18/$J$5,(+AI18/20)))," ") -> 53.1 | AI18: =IFERROR((VLOOKUP(A18,CONTACTOS!$B$3:$O$24,FARMACIAS!$E$5+2,0))," ") -> 1062
A19: C-David Maridue | B19: 2 | C19: 1 | D19: 2 | E19: 3 | F19: 3 | G19: 3 | H19: 19 | I19: 7 | J19: 1 | K19: 8 | Z19: =SUM(B19:Y19) -> 49 | AA19: 20 | AB19: =IFERROR((+Z19/AA19)," ") -> 2.45 | AC19: 95 | AD19: =IFERROR((+Z19/AC19)," ") -> 0.5157894737 | AE19: =+AI19-AH19 -> 100 | AF19: 5 | AI19: =IFERROR((VLOOKUP(A19,CONTACTOS!$B$3:$O$24,FARMACIAS!$E$5+2,0))," ") -> 100
A20: C-Edison Calderón | C20: 4 | D20: 4 | G20: 4 | H20: 2 | I20: 3 | J20: 3 | K20: 3 | Z20: =SUM(B20:Y20) -> 23 | AA20: 25.4 | AB20: =IFERROR((+Z20/AA20)," ") -> 0.905511811 | AC20: 120.65 | AD20: =IFERROR((+Z20/AC20)," ") -> 0.1906340655 | AE20: 127 | AF20: 6.35 | AI20: =IFERROR((VLOOKUP(A20,CONTACTOS!$B$3:$O$24,FARMACIAS!$E$5+2,0))," ") -> 127
A21: C-Eduardo Falquez | B21: 1 | C21: 4 | D21: 5 | E21: 1 | F21: 3 | H21: 6 | I21: 4 | K21: 2 | Z21: 26 | AA21: 20 | AB21: 1.3 | AC21: 95 | AD21: 0.2736842105 | AE21: 100 | AF21: 5 | AI21: =IFERROR((VLOOKUP(A21,CONTACTOS!$B$3:$O$24,FARMACIAS!$E$5+2,0))," ") -> 100
A22: C-Maria Chavez | B22: 3 | C22: 4 | D22: 7 | E22: 3 | F22: 6 | G22: 5 | H22: 2 | I22: 5 | J22: 1 | K22: 7 | Z22: 43 | AA22: 20.2 | AB22: 2.128712871 | AC22: 95.95 | AD22: 0.4481500782 | AE22: 101 | AF22: 5.05 | AI22: =IFERROR((VLOOKUP(A22,CONTACTOS!$B$3:$O$24,FARMACIAS!$E$5+2,0))," ") -> 101
A23: C-Roberth Cely | B23: 14 | C23: 4 | D23: 4 | E23: 6 | F23: 3 | G23: 5 | H23: 6 | I23: 4 | K23: 5 | Z23: 51 | AA23: 24.42105263 | AB23: 2.088362069 | AC23: 116 | AD23: 0.4396551724 | AE23: 116 | AF23: 6.105263158 | AI23: =IFERROR((VLOOKUP(A23,CONTACTOS!$B$3:$O$24,FARMACIAS!$E$5+2,0))," ") -> 116
A24: C-William Figueroa | B24: 6 | C24: 8 | D24: 7 | E24: 5 | Z24: 26 | AA24: 26.73684211 | AB24: 0.9724409449 | AC24: 127 | AD24: 0.2047244094 | AE24: 127 | AF24: 6.684210526 | AI24: =IFERROR((VLOOKUP(A24,CONTACTOS!$B$3:$O$24,FARMACIAS!$E$5+2,0))," ") -> 127
A25: C-Cecil Miranda | B25: 9 | C25: 7 | D25: 3 | E25: 4 | G25: 5 | H25: 4 | I25: 7 | J25: 3 | K25: 4 | Z25: 46 | AA25: 19 | AB25: 2.421052632 | AC25: 90.25 | AD25: 0.5096952909 | AE25: 95 | AF25: 4.75 | AI25: =IFERROR((VLOOKUP(A25,CONTACTOS!$B$3:$O$24,FARMACIAS!$E$5+2,0))," ") -> 95
A26: C-Mario Scippa | F26: 30 | K26: 3 | Z26: 33 | AA26: 19 | AB26: 1.736842105 | AC26: 90.25 | AD26: 0.3656509695 | AE26: 95 | AF26: 4.75 | AI26: =IFERROR((VLOOKUP(A26,CONTACTOS!$B$3:$O$24,FARMACIAS!$E$5+2,0))," ") -> 95
A27: C-Christian Tinoco | D27: 1 | G27: 3 | I27: 5 | J27: 1 | K27: 6 | L27: 1 | Z27: 17 | AA27: 20 | AB27: 0.85 | AC27: 95 | AD27: 0.1789473684 | AE27: 100 | AF27: 5 | AI27: =IFERROR((VLOOKUP(A27,CONTACTOS!$B$3:$O$24,FARMACIAS!$E$5+2,0))," ") -> 100
A28: C-Jhon San Andres | H28: 7 | J28: 4 | M28: 3 | Z28: 14 | AA28: 20.2 | AB28: 0.6930693069 | AC28: 95.95 | AD28: 0.1459093278 | AE28: 101 | AF28: 5.05 | AI28: =IFERROR((VLOOKUP(A28,CONTACTOS!$B$3:$O$24,FARMACIAS!$E$5+2,0))," ") -> 101
A29: SIERRA | B29: 52 | C29: 27 | D29: 49 | E29: 7 | F29: 30 | G29: 23 | H29: 12 | I29: 33 | J29: 26 | K29: 21 | Z29: 280 | AA29: =IFERROR(((+AC29/$J$5)*$AC$5)," ") -> 141.9257618 | AB29: 1.972862407 | AC29: 674.1473684 | AD29: 0.4153394541 | AE29: 714.4473684 | AF29: 40.3 | AG29: =SUM(AG30:AG37) -> 18 | AH29: =SUM(AH30:AH37) -> 91.55263158 | AI29: =IFERROR((VLOOKUP(A29,CONTACTOS!$B$3:$O$24,FARMACIAS!$E$5+2,0))," ") -> 806
A30: S-Janina Mera | B30: 4 | C30: 1 | D30: 4 | F30: 4 | Z30: 13 | AA30: =IFERROR(((+AC30/$J$5)*$AC$5)," ") -> 14.64210526 | AB30: 0.8878504673 | AC30: =IFERROR((+AF30*$J$5)," ")-AH30 -> 69.55 | AD30: 0.1869158879 | AE30: 74.9 | AF30: 5.35 | AG30: 6 | AH30: =+AG30*AF30 -> 32.1 | AI30: =IFERROR((VLOOKUP(A30,CONTACTOS!$B$3:$O$24,FARMACIAS!$E$5+2,0))," ") -> 107
A31: S-Mariela Ibarra | B31: 7 | C31: 3 | D31: 6 | F31: 2 | G31: 3 | H31: 7 | I31: 6 | J31: 5 | K31: 1 | Z31: 40 | AA31: 20 | AB31: 2 | AC31: =IFERROR((+AF31*$J$5)," ")-AH31 -> 95 | AD31: 0.4210526316 | AE31: 100 | AF31: 5 | AI31: =IFERROR((VLOOKUP(A31,CONTACTOS!$B$3:$O$24,FARMACIAS!$E$5+2,0))," ") -> 100
A32: S-Pablo Estevez | B32: 5 | C32: 1 | D32: 2 | F32: 2 | G32: 2 | I32: 6 | J32: 2 | K32: 1 | Z32: 21 | AA32: 16.62049861 | AB32: 1.2635 | AC32: 78.94736842 | AD32: 0.266 | AE32: 78.94736842 | AF32: 5.263157895 | AG32: 4 | AH32: =+AG32*AF32 -> 21.05263158 | AI32: =IFERROR((VLOOKUP(A32,CONTACTOS!$B$3:$O$24,FARMACIAS!$E$5+2,0))," ") -> 100
A33: S-William Goercke | B33: 17 | C33: 7 | D33: 4 | F33: 6 | G33: 5 | H33: 1 | I33: 9 | J33: 9 | K33: 7 | Z33: 65 | AA33: 22.52631579 | AB33: 2.885514019 | AC33: 107 | AD33: 0.6074766355 | AE33: 107 | AF33: 5.631578947 | AI33: =IFERROR((VLOOKUP(A33,CONTACTOS!$B$3:$O$24,FARMACIAS!$E$5+2,0))," ") -> 107
A34: S-Santiago Freile | B34: 1 | C34: 1 | D34: 8 | E34: 1 | F34: 2 | Z34: 13 | AA34: 11.11578947 | AB34: 1.169507576 | AC34: 52.8 | AD34: 0.2462121212 | AE34: 57.6 | AF34: 4.8 | AG34: 8 | AH34: =+AG34*AF34 -> 38.4 | AI34: =IFERROR((VLOOKUP(A34,CONTACTOS!$B$3:$O$24,FARMACIAS!$E$5+2,0))," ") -> 96
A35: S-Jimmy Sarmiento | B35: 4 | C35: 4 | D35: 2 | E35: 1 | F35: 3 | G35: 1 | I35: 7 | J35: 2 | Z35: 24 | AA35: 19.2 | AB35: 1.25 | AC35: 91.2 | AD35: 0.2631578947 | AE35: 96 | AF35: 4.8 | AI35: =IFERROR((VLOOKUP(A35,CONTACTOS!$B$3:$O$24,FARMACIAS!$E$5+2,0))," ") -> 96
A36: S-Santiago Carrera | B36: 11 | C36: 3 | D36: 8 | E36: 4 | F36: 8 | G36: 5 | H36: 2 | J36: 4 | K36: 6 | Z36: 51 | AA36: 20 | AB36: 2.55 | AC36: 95 | AD36: 0.5368421053 | AE36: 100 | AF36: 5 | AI36: =IFERROR((VLOOKUP(A36,CONTACTOS!$B$3:$O$24,FARMACIAS!$E$5+2,0))," ") -> 100
A37: S-Pablo Carrion | B37: 3 | C37: 7 | D37: 15 | E37: 1 | F37: 3 | G37: 7 | H37: 2 | I37: 5 | J37: 4 | K37: 6 | Z37: =SUM(B37:Y37) -> 53 | AA37: 20 | AB37: =IFERROR((+Z37/AA37)," ") -> 2.65 | AC37: 95 | AD37: =IFERROR((+Z37/AC37)," ") -> 0.5578947368 | AE37: 100 | AF37: 5 | AI37: =IFERROR((VLOOKUP(A37,CONTACTOS!$B$3:$O$24,FARMACIAS!$E$5+2,0))," ") -> 100
A38: Total general | B38: 87 | C38: 59 | D38: 82 | E38: 29 | F38: 75 | G38: 48 | H38: 58 | I38: 68 | J38: 39 | K38: 59 | L38: 1 | M38: 3 | Z38: 608 | AA38: 354.3257618 | AB38: 1.715935068 | AC38: 1683.047368 | AD38: 0.3612494879 | AE38: 1776.447368 | AF38: 93.4 | AG38: =SUM(AG30:AG37) -> 18 | AH38: =+AH29+AH18 -> 91.55263158 | AI38: =IFERROR((VLOOKUP(A38,CONTACTOS!$B$3:$O$24,FARMACIAS!$E$5+2,0))," ") -> 1868

Sheet CONTACTOS (hidden)
A1: FARMACIAS
A2: CICLO | D2: 1 | E2: =+D2+1 -> 2 | F2: =+E2+1 -> 3 | G2: 4 | H2: 5 | I2: 6 | J2: 7 | K2: 8 | L2: 9 | M2: 10 | N2: 11 | O2: 12
B3: Total general | D3: =+D4+D15 -> 1868 | N3: =+N4+N15 -> 1868 | O3: =+O4+O15 -> 1868
B4: COSTA | D4: =SUM(D5:D14) -> 1062 | N4: =SUM(N5:N14) -> 1062 | O4: =SUM(O5:O14) -> 1062
A5: CECIL MIRANDA | B5: C-Cecil Miranda | C5: COSTA | D5: 95 | N5: 95 | O5: 95
A6: CHRISTIAN TINOCO | B6: C-Christian Tinoco | C6: COSTA | D6: 100 | N6: 100 | O6: 100
A7: DAVID MARIDUEÑA | B7: C-David Maridue | C7: COSTA | D7: 100 | N7: 100 | O7: 100
A8: EDISON CALDERON | B8: C-Edison Calderón | C8: COSTA | D8: 127 | N8: 127 | O8: 127
A9: EDUARDO FALQUEZ | B9: C-Eduardo Falquez | C9: COSTA | D9: 100 | N9: 100 | O9: 100
A10: WILLIAM FIGUEROA | B10: C-William Figueroa | C10: COSTA | D10: 127 | N10: 127 | O10: 127
A11: JHON SAN ANDRES | B11: C-Jhon San Andres | C11: COSTA | D11: 101 | N11: 101 | O11: 101
A12: MARIO SCIPPA | B12: C-Mario Scippa | C12: COSTA | D12: 95 | N12: 95 | O12: 95
A13: MARÍA DE LOURDES CHÁVEZ RODRÍGUEZ | B13: C-Maria Chavez | C13: COSTA | D13: 101 | N13: 101 | O13: 101
A14: ROBERTH VINICIO CELY BARRERA | B14: C-Roberth Cely | C14: COSTA | D14: 116 | N14: 116 | O14: 116
B15: SIERRA | D15: =SUM(D16:D23) -> 806 | N15: =SUM(N16:N23) -> 806 | O15: =SUM(O16:O23) -> 806
A16: MARIELA IBARRA | B16: S-Mariela Ibarra | C16: SIERRA | D16: 100 | N16: 100 | O16: 100
A17: PABLO ESTEVEZ | B17: S-Pablo Estevez | C17: SIERRA | D17: 100 | N17: 100 | O17: 100
A18: PABLO JAVIER CARRION RAMIREZ | B18: S-Pablo Carrion | C18: SIERRA | D18: 100 | N18: 100 | O18: 100
A19: SANTIAGO CARRERA | B19: S-Santiago Carrera | C19: SIERRA | D19: 100 | N19: 100 | O19: 100
A20: SANTIAGO FREILE | B20: S-Santiago Freile | C20: SIERRA | D20: 96 | N20: 96 | O20: 96
A21: JIMMY SARMIENTO | B21: S-Jimmy Sarmiento | C21: SIERRA | D21: 96 | N21: 96 | O21: 96
A22: WILLIAM GOERCKE | B22: S-William Goercke | C22: AUSTRO | D22: 107 | N22: 107 | O22: 107
A23: JANINA PAMELA MERA SILVA | B23: S-Janina Mera | C23: AUSTRO | D23: 107 | N23: 107 | O23: 107
A26: MEDICOS
A27: CICLO | D27: 1 | E27: =+D27+1 -> 2 | F27: =+E27+1 -> 3 | G27: 4 | H27: 5 | I27: 6 | J27: 7 | K27: 8 | L27: 9 | M27: 10 | N27: 11 | O27: 12
B28: Total general | D28: =+D29+D40 -> 3853 | N28: =+N29+N40 -> 3853 | O28: =+O29+O40 -> 3853
B29: COSTA | D29: =SUM(D30:D39) -> 2173 | N29: =SUM(N30:N39) -> 2173 | O29: =SUM(O30:O39) -> 2173
A30: CECIL MIRANDA | B30: C-Cecil Miranda | C30: =VLOOKUP(A30,'[1]EST FFVV'!$A$2:$H$24,8,0) -> COSTA | D30: 226 | N30: 226 | O30: 226
A31: CHRISTIAN TINOCO | B31: C-Christian Tinoco | C31: =VLOOKUP(A31,'[1]EST FFVV'!$A$2:$H$24,8,0) -> COSTA | D31: 215 | N31: 215 | O31: 215
A32: DAVID MARIDUEÑA | B32: C-David Maridue | C32: =VLOOKUP(A32,'[1]EST FFVV'!$A$2:$H$24,8,0) -> COSTA | D32: 230 | N32: 230 | O32: 230
A33: EDISON CALDERON | B33: C-Edison Calderón | C33: =VLOOKUP(A33,'[1]EST FFVV'!$A$2:$H$24,8,0) -> COSTA | D33: 226 | N33: 226 | O33: 226
A34: EDUARDO FALQUEZ | B34: C-Eduardo Falquez | C34: =VLOOKUP(A34,'[1]EST FFVV'!$A$2:$H$24,8,0) -> COSTA | D34: 192 | N34: 192 | O34: 192
A35: Jhon San Andres | B35: C-Jhon San Andres | C35: =VLOOKUP(A35,'[1]EST FFVV'!$A$2:$H$24,8,0) -> COSTA | D35: 210 | N35: 210 | O35: 210
A36: MARÍA DE LOURDES CHÁVEZ RODRÍGUEZ | B36: C-Maria Chavez | C36: =VLOOKUP(A36,'[1]EST FFVV'!$A$2:$H$24,8,0) -> COSTA | D36: 212 | N36: 212 | O36: 212
A37: MARIO SCIPPA | B37: C-Mario Scippa | C37: =VLOOKUP(A37,'[1]EST FFVV'!$A$2:$H$24,8,0) -> COSTA | D37: 226 | N37: 226 | O37: 226
A38: ROBERTH VINICIO CELY BARRERA | B38: C-Roberth Cely | C38: =VLOOKUP(A38,'[1]EST FFVV'!$A$2:$H$24,8,0) -> COSTA | D38: 202 | N38: 202 | O38: 202
A39: WILLIAM FIGUEROA | B39: C-William Figueroa | C39: =VLOOKUP(A39,'[1]EST FFVV'!$A$2:$H$24,8,0) -> COSTA | D39: 234 | N39: 234 | O39: 234
B40: SIERRA | D40: =SUM(D41:D48) -> 1680 | N40: =SUM(N41:N48) -> 1680 | O40: =SUM(O41:O48) -> 1680
A41: PABLO ESTEVEZ | B41: S-Pablo Estevez | C41: =VLOOKUP(A41,'[1]EST FFVV'!$A$2:$H$24,8,0) -> SIERRA | D41: 200 | N41: 200 | O41: 200
A42: PABLO JAVIER CARRION RAMIREZ | B42: S-Pablo Carrion | C42: =VLOOKUP(A42,'[1]EST FFVV'!$A$2:$H$24,8,0) -> SIERRA | D42: 191 | N42: 191 | O42: 191
A43: MARIELA IBARRA | B43: S-Mariela Ibarra | C43: =VLOOKUP(A43,'[1]EST FFVV'!$A$2:$H$24,8,0) -> SIERRA | D43: 200 | N43: 200 | O43: 200
A44: JIMMY SARMIENTO | B44: S-Jimmy Sarmiento | C44: =VLOOKUP(A44,'[1]EST FFVV'!$A$2:$H$24,8,0) -> SIERRA | D44: 241 | N44: 241 | O44: 241
A45: SANTIAGO CARRERA | B45: S-Santiago Carrera | C45: =VLOOKUP(A45,'[1]EST FFVV'!$A$2:$H$24,8,0) -> SIERRA | D45: 196 | N45: 196 | O45: 196
A46: SANTIAGO FREILE | B46: S-Santiago Freile | C46: =VLOOKUP(A46,'[1]EST FFVV'!$A$2:$H$24,8,0) -> SIERRA | D46: 243 | N46: 243 | O46: 243
A47: WILLIAM GOERCKE | B47: S-William Goercke | C47: =VLOOKUP(A47,'[1]EST FFVV'!$A$2:$H$24,8,0) -> AUSTRO | D47: 205 | N47: 205 | O47: 205
A48: JANINA PAMELA MERA SILVA | B48: S-Janina Mera | C48: =VLOOKUP(A48,'[1]EST FFVV'!$A$2:$H$24,8,0) -> AUSTRO | D48: 204 | N48: 204 | O48: 204

Sheet CICLOS (hidden)
C2: INICIO | D2: FIN | E2: FERIADOS | F2: REUNION CICLO | G2: TOT LIBRES | H2: DIAS x CICLO | I2: DETALLE
B3: 1 | C3: 2018-01-04 | D3: 2018-01-31 | E3: 0 | F3: 1 | G3: =+F3+E3 -> 1 | H3: =NETWORKDAYS(C3,D3)-E3-F3 -> 19 | I3: 6 DIC FIESTA DE QUITO; 25 DIC NAVIDAD; 18-22 Y 26 A 31 VACA FFVV
B4: 2
B5: 3
B6: 4
B7: 5
B8: 6
B9: 7
B10: 8
B11: 9
B12: 10
B13: 11 | C13: 2018-01-01 | D13: 2017-11-30 | E13: 2 | G13: =+F13+E13 -> 2 | H13: =NETWORKDAYS(C13,D13)-E13-F13 -> -25 | I13: 2;3 DIFUNTOS
B14: 12 | C14: 2018-01-01 | D14: 2018-01-31 | E14: 2 | F14: 1 | G14: =+F14+E14 -> 3 | H14: =NETWORKDAYS(C14,D14)-E14-F14 -> 20 | I14: 6 DIC FIESTA DE QUITO; 25 DIC NAVIDAD; 18-22 Y 26 A 31 VACA FFVV

Sheet DATOS (hidden)
A1: #Agenda | B1: Fecha | C1: Hora | D1: Codigo del Dispositivo | E1: Alias Dispositivo | F1: Codigo del Sitio | G1: #Sitio | H1: Nombre del sitio | I1: Detalle | J1: Estado | K1: Formulario Nombre | L1: MV-Codigo Audit | M1: VM-QUINTIL | N1: VM-RX BKF | O1: MV-RX MDO.RVTE | P1: VM-Frecuencia | Q1: VM-Especialidad | R1: VM-Teléfono 1 | S1: VM-Teléfono 2 | T1: VM-Mail | U1: VM-Fecha Nacim: | V1: VM-Ciudad | W1: VM-Recetario | X1: VM-Sede/Gira | Y1: VM-Gestión: | Z1: VM-OtraGestión: | AA1: VM-Promo: | AB1: VM-Cant Promo: | AC1: VM-Detalle: | AD1: VM-Sugerencia: | AE1: VM-Más...: | AF1: VM-ProxiVisita: | AG1: VC-Frecuencia | AH1: VC-Sector | AI1: VC-Ciudad | AJ1: VC-Atención | AK1: VC-Teléfono | AL1: VC-Actividad: | AM1: VC-Detalle: | AN1: VC-Promo: | AO1: VC-Cantidad: | AP1: VC-Detalle: | AQ1: VC-Gestión: | AR1: VC-Otro: | AS1: VC-Sugerencias: | AT1: VC-Más...: | AU1: VC-ProxiVisita: | AV1: Latitud Sitio | AW1: Longitud Sitio | AX1: Fecha de Registro | AY1: Latitud Registro | AZ1: Longitud Registro | BA1: Tipo de Posicion | BB1: Distancia (Mts.) | BC1: dianum | BD1: DIA | BE1: MES | BF1: REGION
A2: 43 | B2: 2017-11-09 | E2: C-Cecil Miranda | F2: 904095247 | G2: 3 | H2: AGUAYO BRIONES FRECIA ALIDA | I2: AGUAYO BRIONES FRECIA ALIDA | J2: Realizado | K2: VISITA MEDICA | M2: Q5 | P2: 1 | Q2: MEDICINA GENERAL | R2: 994243422 | T2: ruth121994@hotmail.com | U2: 13 de Marzo | V2: GUAYAQUIL | W2: NORMAL | X2: SEDE | Y2: Seguimiento a Convenio | AA2: SI | AB2: 0 | AD2: Esta recetando atormibe fenfikan | AF2: 2017-11-16 | AL2: - Seleccione - | AN2: - Seleccione - | AO2: 0 | AQ2: -Seleccione - | AV2: 0 | AW2: 0 | AX2: 2017-11-16 17:15:10 | AY2: -2.21093487 | AZ2: -79.93634033 | BA2: GPS | BB2: 8889636 | BC2: 2017-12-29 | BD2: =DATE(YEAR(AX2),MONTH(AX2),DAY(AX2)) -> 2017-11-16 | BE2: =MONTH(AX2) -> 11 | BF2: =IF(LEFT(E2,1)="S","SIERRA","COSTA") -> COSTA | BG2: =+BC2+43 -> 2018-02-10
A3: 47 | B3: 2017-11-09 | E3: C-Cecil Miranda | F3: 914878293 | G3: 7 | H3: ALARCON VERA GINA LUCIANE | I3: ALARCON VERA GINA LUCIANE | J3: Realizado | K3: VISITA MEDICA | M3: NO AUDIT | P3: 1 | Q3: GINECO-OBSTETRICIA | R3: 993503035 | T3: alarcongina2009@hotmail.com | U3: 5 de Julio | V3: GUAYAQUIL | W3: NORMAL | X3: SEDE | Y3: Seguimiento a Convenio | AA3: SI | AB3: 0 | AD3: Entrego hojade convenio | AF3: 2017-11-13 | AL3: - Seleccione - | AN3: - Seleccione - | AO3: 0 | AQ3: -Seleccione - | AV3: 0 | AW3: 0 | AX3: 2017-11-13 18:44:36 | AY3: -2.19798684 | AZ3: -79.90464019 | BA3: GPS | BB3: 8886104 | BC3: 2017-12-26 | BD3: =DATE(YEAR(AX3),MONTH(AX3),DAY(AX3)) -> 2017-11-13 | BE3: =MONTH(AX3) -> 11 | BF3: COSTA | BG3: =+BC3+43 -> 2018-02-07
A4: 48 | B4: 2017-11-09 | E4: C-Cecil Miranda | F4: 910927755 | G4: 8 | H4: ALAVA LOOR LUIS HUMBERTO | I4: ALAVA LOOR LUIS HUMBERTO | J4: Realizado | K4: VISITA MEDICA | M4: Q5 | P4: 1 | Q4: TRAUMATOLOGIA | V4: GUAYAQUIL | X4: SEDE | Y4: Recordatorio de Producto | AA4: SI | AB4: 0 | AD4: Se comprometio a utilizar aciberkan celeridan | AF4: 2017-11-10 | AL4: - Seleccione - | AN4: - Seleccione - | AO4: 0 | AQ4: -Seleccione - | AV4: 0 | AW4: 0 | AX4: 2018-01-04 | AY4: -2.21140313 | AZ4: -79.88996124 | BA4: GPS | BB4: 8884483 | BC4: 2018-01-04 | BD4: 2018-01-04 | BE4: 1 | BF4: COSTA | BG4: 2018-02-16
A5: 49 | B5: 2017-11-09 | E5: C-Cecil Miranda | F5: 906209275 | G5: 9 | H5: ALVARADO RODRIGUEZ BELGICA UFEMIA | I5: ALVARADO RODRIGUEZ BELGICA UFEMIA | J5: Realizado | K5: VISITA MEDICA | L5: 906209275 | M5: Q5 | N5: ARAII:ANGIOTEN 100,00% // ANTAGONISTA+ARA II:MICARDIS AMLO 100,00% | O5: 1 | P5: 1 | Q5: OBSTETRICIA | U5: GUAYAQUIL | V5: GUAYAQUIL | W5: SEDE | X5: SEDE | Y5: Recordatorio de Producto | AA5: SI | AB5: 0 | AD5: Esta utilizando celeridan meformina | AF5: 2017-11-24 | AL5: - Seleccione - | AN5: - Seleccione - | AO5: 0 | AQ5: -Seleccione - | AV5: 0 | AW5: 0 | AX5: 2017-11-24 12:14:59 | AY5: -2.19346857 | AZ5: -79.90963745 | BA5: GPS | BB5: 8886655 | BC5: 2018-01-06 | BD5: 2017-11-24 | BE5: 11 | BF5: COSTA | BG5: 2018-02-18
A6: 54 | B6: 2017-11-09 | E6: C-Cecil Miranda | F6: 1200696449 | G6: 14 | H6: ARIAS AMAYA JOSE MAXIMO | I6: ARIAS AMAYA JOSE MAXIMO | J6: Realizado | K6: VISITA MEDICA | M6: Q5 | P6: 1 | Q6: MEDICINA GENERAL | V6: BABAHOYO | X6: GIRA | Y6: Recordatorio de Producto | AA6: SI | AB6: 0 | AD6: Esta utilisando celeridan atormibe hidroxicloroquina | AF6: 2017-11-20 | AL6: - Seleccione - | AN6: - Seleccione - | AO6: 0 | AQ6: -Seleccione - | AV6: 0 | AW6: 0 | AX6: 2017-11-22 12:59:52 | AY6: -1.8004626 | AZ6: -79.53770446 | BA6: GPS | BB6: 8845047 | BC6: 2018-01-04 | BD6: 2017-11-22 | BE6: 11 | BF6: COSTA | BG6: 2018-02-16
A7: 55 | B7: 2017-11-09 | E7: C-Cecil Miranda | F7: 1203502578 | G7: 15 | H7: ARIAS MUNOZ GERMANIA YADIRA | I7: ARIAS MUNOZ GERMANIA YADIRA | J7: Realizado | K7: VISITA MEDICA | L7: 1203502578 | M7: Q5 | N7: FIBRATOS:ACROFIBRATO 100,00% // COX:ARCOXIA % // ANTIHISTAMINICOS:ALLEGRA % // CARBEGOLINA:CABERKANA % | O7: CARBEGOLINA:CABERKANA % | P7: 1 | Q7: GINECO-OBSTETRICIA | R7: 999485802 | S7: mdgermaniaarias@yahoo.com | T7: mdgermaniaarias@yahoo.com | U7: 22 de Abril | V7: BABAHOYO | W7: GIRA | X7: GIRA | Y7: Seguimiento a Convenio | AA7: SI | AB7: 0 | AD7: Esta recetando cabetkana celeridan | AF7: 2017-11-22 | AL7: - Seleccione - | AN7: - Seleccione - | AO7: 0 | AQ7: -Seleccione - | AV7: 0 | AW7: 0 | AX7: 2017-11-22 15:27:09 | AY7: -1.79953551 | AZ7: -79.53684997 | BA7: GPS | BB7: 8844952 | BC7: 2018-01-04 | BD7: 2017-11-22 | BE7: 11 | BF7: COSTA | BG7: 2018-02-16
A8: 56 | B8: 2017-11-09 | E8: C-Cecil Miranda | F8: Ingresar CI / RUC | G8: 16 | H8: ARMIJOS VITE KLEBER GONZALO | I8: ARMIJOS VITE KLEBER GONZALO | J8: Realizado | K8: VISITA MEDICA | M8: NO AUDIT | P8: 1 | Q8: ODONTOLOGIA | R8: 998029183 | T8: kleberarmijos@hotmail.com | U8: 6 de Junio | V8: GUAYAQUIL | W8: NORMAL | X8: SEDE | Y8: Seguimiento a Convenio | AA8: SI | AB8: 0 | AD8: Entrego cupones de convenio | AF8: 2017-11-13 | AL8: - Seleccione - | AN8: - Seleccione - | AO8: 0 | AQ8: -Seleccione - | AV8: 0 | AW8: 0 | AX8: 2017-11-13 22:40:41 | AY8: -2.18638563 | AZ8: -79.99710845 | BA8: GPS | BB8: 8896369 | BC8: 2017-12-26 | BD8: 2017-11-13 | BE8: 11 | BF8: COSTA | BG8: 2018-02-07
A9: 57 | B9: 2017-11-09 | E9: C-Cecil Miranda | F9: 911418069 | G9: 17 | H9: ASPIAZU ALEAGA DIANA PILAR | I9: ASPIAZU ALEAGA DIANA PILAR | J9: Realizado | K9: VISITA MEDICA | M9: Q5 | P9: 1 | Q9: MEDICINA GENERAL | R9: 986583650 | T9: dianaaspiazu@gmail.com | U9: 22 de Marzo | V9: GUAYAQUIL | W9: NORMAL | X9: SEDE | Y9: Seguimiento a Convenio | AA9: SI | AB9: 0 | AD9: Esta recetando los productos y se le dejo cuponera | AF9: 2017-11-14 | AL9: - Seleccione - | AN9: - Seleccione - | AO9: 0 | AQ9: -Seleccione - | AV9: 0 | AW9: 0 | AX9: 2017-11-14 22:21:04 | AY9: -2.18638682 | AZ9: -79.99710845 | BA9: GPS | BB9: 8896369 | BC9: 2017-12-27 | BD9: 2017-11-14 | BE9: 11 | BF9: COSTA | BG9: 2018-02-08
A10: 60 | B10: 2017-11-09 | E10: C-Cecil Miranda | F10: 910850189 | G10: 20 | H10: AYOVI COROZO JENNIS LADY | I10: AYOVI COROZO JENNIS LADY | J10: Realizado | K10: VISITA MEDICA | M10: Q4 | P10: 1 | Q10: OBSTETRICIA | R10: 982579143 | T10: drajennyayovi@hotmail.com | U10: 7 de sep | V10: GUAYAQUIL | X10: SEDE | Y10: Recordatorio de Producto | AA10: SI | AB10: 0 | AD10: Esta recdtando meformina celeridan | AF10: 2017-11-14 | AL10: - Seleccione - | AN10: - Seleccione - | AO10: 0 | AQ10: -Seleccione - | AV10: 0 | AW10: 0 | AX10: 2017-11-15 15:48:53 | AY10: -2.21870017 | AZ10: -79.91130828 | BA10: GPS | BB10: 8886860 | BC10: 2017-12-28 | BD10: 2017-11-15 | BE10: 11 | BF10: COSTA | BG10: 2018-02-09
A11: 61 | B11: 2017-11-09 | E11: C-Cecil Miranda | F11: Ingresar CI / RUC | G11: 21 | H11: BAQUE MIRNA | I11: BAQUE MIRNA | J11: Realizado | K11: VISITA MEDICA | M11: NO AUDIT | P11: 1 | Q11: MEDICINA GENERAL | V11: GUAYAQUIL | X11: SEDE | Y11: Recordatorio de Producto | AA11: SI | AB11: 0 | AD11: Esta recetando irbetan besarzid | AF11: 2017-11-14 | AL11: - Seleccione - | AN11: - Seleccione - | AO11: 0 | AQ11: -Seleccione - | AV11: 0 | AW11: 0 | AX11: 2017-11-15 11:08:48 | AY11: -2.20517206 | AZ11: -79.93701934 | BA11: GPS | BB11: 8889707 | BC11: 2017-12-28 | BD11: 2017-11-15 | BE11: 11 | BF11: COSTA | BG11: 2018-02-09
A12: 62 | B12: 2017-11-09 | E12: C-Cecil Miranda | F12: 909720948 | G12: 22 | H12: BARRIOS PAREDES LOURDES GUADALUPE | I12: BARRIOS PAREDES LOURDES GUADALUPE | J12: Realizado | K12: VISITA MEDICA | M12: Q5 | P12: 1 | Q12: MEDICINA GENERAL | R12: 0994935395 | T12: doc.lulita@hotmail.com | U12: 10 de Mayo | V12: GUAYAQUIL | W12: NORMAL | X12: SEDE | Y12: Seguimiento a Convenio | AA12: SI | AB12: 0 | AD12: Esta recetando kanazol fenfikan atormibe | AF12: 2017-11-14 | AL12: - Seleccione - | AN12: - Seleccione - | AO12: 0 | AQ12: -Seleccione - | AV12: 0 | AW12: 0 | AX12: 2017-11-14 16:55:52 | AY12: -2.19896411 | AZ12: -79.92658233 | BA12: GPS | BB12: 8888542 | BC12: 2017-12-27 | BD12: 2017-11-14 | BE12: 11 | BF12: COSTA | BG12: 2018-02-08
A13: 64 | B13: 2017-11-09 | E13: C-Cecil Miranda | F13: 910888569 | G13: 24 | H13: BAUZ OLVERA ABEL GIOVANNI | I13: BAUZ OLVERA ABEL GIOVANNI | J13: Realizado | K13: VISITA MEDICA | M13: NO AUDIT | P13: 1 | Q13: MEDICINA GENERAL | R13: 999018088 | T13: abauz46@hotmail.com | U13: 26 de Septiembre | V13: GUAYAQUIL | X13: SEDE | Y13: Seguimiento a Convenio | AA13: SI | AB13: 0 | AD13: Rntrego cuones de convenio | AF13: 2017-11-13 | AL13: - Seleccione - | AN13: - Seleccione - | AO13: 0 | AQ13: -Seleccione - | AV13: 0 | AW13: 0 | AX13: 2017-11-13 22:08:58 | AY13: -2.18648052 | AZ13: -79.9971466 | BA13: GPS | BB13: 8896374 | BC13: 2017-12-26 | BD13: 2017-11-13 | BE13: 11 | BF13: COSTA | BG13: 2018-02-07
A14: 65 | B14: 2017-11-09 | E14: C-Cecil Miranda | F14: 1801169408 | G14: 25 | H14: BEDON LOPEZ JAIME HUMBERTO | I14: BEDON LOPEZ JAIME HUMBERTO | J14: Realizado | K14: VISITA MEDICA | M14: NO AUDIT | P14: 1 | Q14: MEDICINA GENERAL | R14: 999664492 | T14: dabl2@hotmail.com | U14: 9 de Julio | V14: GUAYAQUIL | X14: SEDE | Y14: Recordatorio de Producto | AA14: SI | AB14: 0 | AD14: Esta utilizando atormibe irbetan | AF14: 2017-11-10 | AL14: - Seleccione - | AN14: - Seleccione - | AO14: 0 | AQ14: -Seleccione - | AV14: 0 | AW14: 0 | AX14: 2018-01-04 | AY14: -2.21180653 | AZ14: -79.89038848 | BA14: GPS | BB14: 8884531 | BC14: 2018-01-04 | BD14: =DATE(YEAR(AX14),MONTH(AX14),DAY(AX14)) -> 2018-01-04 | BE14: 1 | BF14: COSTA | BG14: 2018-02-16
A15: 69 | B15: 2017-11-09 | E15: C-Cecil Miranda | F15: 906151584 | G15: 29 | H15: BOHORQUEZ VELA MILTON ALBERTO | I15: BOHORQUEZ VELA MILTON ALBERTO | J15: Realizado | K15: VISITA MEDICA | M15: NO AUDIT | P15: 1 | Q15: MEDICINA GENERAL | R15: 997563047 | T15: franc1doc@hotmail.com | U15: 17 de Agosto | V15: VINCES | X15: GIRA | Y15: Recordatorio de Producto | AA15: SI | AB15: 0 | AD15: Esya utilizando atormibe fenfikan | AF15: 2017-11-20 | AL15: - Seleccione - | AN15: - Seleccione - | AO15: 0 | AQ15: -Seleccione - | AV15: 0 | AW15: 0 | AX15: 2017-11-20 11:42:55 | AY15: -1.55600643 | AZ15: -79.75359344 | BA15: GPS | BB15: 8868898 | BC15: 2018-01-02 | BD15: 2017-11-20 | BE15: 11 | BF15: COSTA | BG15: 2018-02-14
A16: 71 | B16: 2017-11-09 | E16: C-Cecil Miranda | F16: 907607121 | G16: 31 | H16: BRUNO VERGARA FLORENTINO VICTOR | I16: BRUNO VERGARA FLORENTINO VICTOR | J16: Realizado | K16: VISITA MEDICA | M16: Q5 | P16: 1 | Q16: TRAUMATOLOGIA | R16: 997199962 | T16: dr.florentinobrunogye@gmail.com | U16: 19 de Diciembre | V16: GUAYAQUIL | W16: NORMAL | X16: SEDE | Y16: Seguimiento a Convenio | AA16: SI | AB16: 0 | AD16: Entrego cupones de convenio | AF16: 2017-11-13 | AL16: - Seleccione - | AN16: - Seleccione - | AO16: 0 | AQ16: -Seleccione - | AV16: 0 | AW16: 0 | AX16: 2017-11-13 21:52:35 | AY16: -2.18641066 | AZ16: -79.99711608 | BA16: GPS | BB16: 8896370 | BC16: 2017-12-26 | BD16: 2017-11-13 | BE16: 11 | BF16: COSTA | BG16: 2018-02-07
A17: 72 | B17: 2017-11-09 | E17: C-Cecil Miranda | F17: Ingresar CI / RUC | G17: 32 | H17: BUSTAMANTE GRANDA OSCAR IVAN | I17: BUSTAMANTE GRANDA OSCAR IVAN | J17: Realizado | K17: VISITA MEDICA | M17: NO AUDIT | P17: 1 | Q17: MEDICINA GENERAL | V17: VINCES | X17: GIRA | Y17: Recordatorio de Producto | AA17: SI | AB17: 0 | AD17: Esta utilizando atormibe aciberkan | AF17: 2017-11-20 | AL17: - Seleccione - | AN17: - Seleccione - | AO17: 0 | AQ17: -Seleccione - | AV17: 0 | AW17: 0 | AX17: 2017-11-20 13:44:13 | AY17: -1.55796468 | AZ17: -79.75447845 | BA17: GPS | BB17: 8868997 | BC17: 2018-01-02 | BD17: 2017-11-20 | BE17: 11 | BF17: COSTA | BG17: 2018-02-14
A18: 73 | B18: 2017-11-09 | E18: C-Cecil Miranda | F18: 906792254 | G18: 33 | H18: CABADIANA DAMIAN PIO | I18: CABADIANA DAMIAN PIO | J18: Realizado | K18: VISITA MEDICA | M18: NO AUDIT | P18: 1 | Q18: ENDOCRINOLOGIA | R18: 998285678 | T18: dr.pio.cabadiana@hotmail.com | U18: 21 de Abril | V18: GUAYAQUIL | X18: SEDE | Y18: Recordatorio de Producto | AA18: SI | AB18: 0 | AD18: Esta recetando berezo meformina | AF18: 2017-11-13 | AL18: - Seleccione - | AN18: - Seleccione - | AO18: 0 | AQ18: -Seleccione - | AV18: 0 | AW18: 0 | AX18: 2017-11-13 22:48:06 | AY18: -2.18637895 | AZ18: -79.99712371 | BA18: GPS | BB18: 8896371 | BC18: 2017-12-26 | BD18: 2017-11-13 | BE18: 11 | BF18: COSTA | BG18: 2018-02-07
A19: 74 | B19: 2017-11-09 | E19: C-Cecil Miranda | F19: Ingresar CI / RUC | G19: 34 | H19: CANDO PALMA ALEX ORLANDO | I19: CANDO PALMA ALEX ORLANDO | J19: Realizado | K19: VISITA MEDICA | M19: NO AUDIT | P19: 1 | Q19: MEDICINA GENERAL | R19: 0967699281 | T19: alexito.22@hotmail.es | U19: 22 de Junio | V19: QUEVEDO | W19: NORMAL | X19: GIRA | Y19: Seguimiento a Convenio | AA19: SI | AB19: 0 | AD19: Esta recetando atormibe celeridan | AF19: 2017-11-20 | AL19: - Seleccione - | AN19: - Seleccione - | AO19: 0 | AQ19: -Seleccione - | AV19: 0 | AW19: 0 | AX19: 2017-11-21 09:44:09 | AY19: -1.01713895 | AZ19: -79.46624755 | BA19: GPS | BB19: 8836707 | BC19: 2018-01-03 | BD19: 2017-11-21 | BE19: 11 | BF19: COSTA | BG19: 2018-02-15
A20: 75 | B20: 2017-11-09 | E20: C-Cecil Miranda | F20: 1202576219 | G20: 35 | H20: CANTOS RIVERA DE CASTILLO MARIANA YOCOND | I20: CANTOS RIVERA DE CASTILLO MARIANA YOCOND | J20: Realizado | K20: VISITA MEDICA | M20: Q5 | P20: 1 | Q20: OBSTETRICIA | V20: EL EMPALME | X20: GIRA | Y20: Recordatorio de Producto | AA20: SI | AB20: 0 | AD20: Esta recetando caberkana celeridan | AF20: 2017-11-20 | AL20: - Seleccione - | AN20: - Seleccione - | AO20: 0 | AQ20: -Seleccione - | AV20: 0 | AW20: 0 | AX20: 2017-11-21 12:22:26 | AY20: -1.04286181 | AZ20: -79.63883972 | BA20: GPS | BB20: 8855905 | BC20: 2018-01-03 | BD20: 2017-11-21 | BE20: 11 | BF20: COSTA | BG20: 2018-02-15
A21: 77 | B21: 2017-11-09 | E21: C-Cecil Miranda | F21: Ingresar CI / RUC | G21: 37 | H21: CAÑIZARES VILLEGAS EUMELIA BEATRIZ | I21: CAÑIZARES VILLEGAS EUMELIA BEATRIZ | J21: Realizado | K21: VISITA MEDICA | M21: NO AUDIT | P21: 1 | Q21: MEDICINA GENERAL | R21: 9072072252 | T21: Eumeliabeatriz98@hotmail.com | U21: 31de Octubre | V21: GUAYAQUIL | X21: SEDE | Y21: Recordatorio de Producto | AA21: SI | AB21: 0 | AD21: Esta recetando irbetan besarzid | AF21: 2017-11-13 | AL21: - Seleccione - | AN21: - Seleccione - | AO21: 0 | AQ21: -Seleccione - | AV21: 0 | AW21: 0 | AX21: 2017-11-13 22:07:43 | AY21: -2.18646264 | AZ21: -79.99713897 | BA21: GPS | BB21: 8896373 | BC21: 2017-12-26 | BD21: 2017-11-13 | BE21: 11 | BF21: COSTA | BG21: 2018-02-07
A22: 79 | B22: 2017-11-09 | E22: C-Cecil Miranda | F22: 1200867529 | G22: 39 | H22: CARDENAS GUERRERO JORGE SENEFELDER | I22: CARDENAS GUERRERO JORGE SENEFELDER | J22: Realizado | K22: VISITA MEDICA | M22: Q4 | P22: 1 | Q22: GINECO-OBSTETRICIA | R22: 999616592 | T22: do.cardenas@hotmail.com | U22: 4 de Julio | V22: VINCES | X22: GIRA | Y22: Recordatorio de Producto | AA22: SI | AB22: 0 | AD22: Esta utilizando caberkana atprmibe | AF22: 2017-11-20 | AL22: - Seleccione - | AN22: - Seleccione - | AO22: 0 | AQ22: -Seleccione - | AV22: 0 | AW22: 0 | AX22: 2017-11-20 10:54:06 | AY22: -1.55333876 | AZ22: -79.7512741 | BA22: GPS | BB22: 8868638 | BC22: 2018-01-02 | BD22: 2017-11-20 | BE22: 11 | BF22: COSTA | BG22: 2018-02-14
A23: 80 | B23: 2017-11-09 | E23: C-Cecil Miranda | F23: Ingresar CI / RUC | G23: 40 | H23: CARNESOLTAS SUAREZ LIUDMILA | I23: CARNESOLTAS SUAREZ LIUDMILA | J23: Realizado | K23: VISITA MEDICA | M23: NO AUDIT | P23: 1 | Q23: MEDICINA GENERAL | R23: 967753243 | T23: carnesoltas82@gmail.com | U23: 31 de Octubre | V23: QUEVEDO | W23: NORMAL | X23: GIRA | Y23: Seguimiento a Convenio | AA23: SI | AB23: 0 | AD23: Esta recetando stormibe meformina | AF23: 2017-11-20 | AL23: - Seleccione - | AN23: - Seleccione - | AO23: 0 | AQ23: -Seleccione - | AV23: 0 | AW23: 0 | AX23: 2017-11-21 09:58:14 | AY23: -1.02955186 | AZ23: -79.46779632 | BA23: GPS | BB23: 8836884 | BC23: 2018-01-03 | BD23: 2017-11-21 | BE23: 11 | BF23: COSTA | BG23: 2018-02-15
A24: 82 | B24: 2017-11-09 | E24: C-Cecil Miranda | F24: Ingresar CI / RUC | G24: 42 | H24: CASTRO AGUA MARLON JOSE | I24: CASTRO AGUA MARLON JOSE | J24: Realizado | K24: VISITA MEDICA | M24: NO AUDIT | P24: 1 | Q24: MEDICINA GENERAL | R24: 982235839 | T24: marlon-12-7@hotmail.com | U24: 7 de Diciembre | V24: GUAYAQUIL | W24: NORMAL | X24: SEDE | Y24: Seguimiento a Convenio | AA24: SI | AB24: 0 | AD24: Recdta cñopikana atotmibe | AF24: 2017-11-13 | AL24: - Seleccione - | AN24: - Seleccione - | AO24: 0 | AQ24: -Seleccione - | AV24: 0 | AW24: 0 | AX24: 2017-11-13 22:29:19 | AY24: -2.18640732 | AZ24: -79.99711608 | BA24: GPS | BB24: 8896370 | BC24: 2017-12-26 | BD24: 2017-11-13 | BE24: 11 | BF24: COSTA | BG24: 2018-02-07
A25: 83 | B25: 2017-11-09 | E25: C-Cecil Miranda | F25: 901181172 | G25: 43 | H25: CEDENO BRIONES CARMELA JUDITH | I25: CEDENO BRIONES CARMELA JUDITH | J25: Realizado | K25: VISITA MEDICA | L25: 901181172 | M25: Q5 | N25: ARAII:ILTUX 100,00% // IBANDRON:IDENA % | O25: 1 | P25: 1 | Q25: MEDICINA GENERAL | R25: 991007936 | S25: dracarmela@yahoo.es | T25: dracarmela@yahoo.es | U25: 11 de Julio | V25: GUAYAQUIL | W25: SEDE | X25: SEDE | Y25: Seguimiento a Convenio | AA25: SI | AB25: 0 | AD25: Entrego hoja de convenio | AF25: 2017-11-24 | AL25: - Seleccione - | AN25: - Seleccione - | AO25: 0 | AQ25: -Seleccione - | AV25: 0 | AW25: 0 | AX25: 2017-11-24 11:08:18 | AY25: -2.20875597 | AZ25: -79.91241455 | BA25: GPS | BB25: 8886976 | BC25: 2018-01-06 | BD25: 2017-11-24 | BE25: 11 | BF25: COSTA | BG25: 2018-02-18
A26: 85 | B26: 2017-11-09 | E26: C-Cecil Miranda | F26: 904836251 | G26: 45 | H26: CEVALLOS CARVAJAL LEONIDAS JACINTO | I26: CEVALLOS CARVAJAL LEONIDAS JACINTO | J26: Realizado | K26: VISITA MEDICA | M26: Q5 | P26: 1 | Q26: CIRUGIA GENERAL | R26: 995814545 | T26: leo.cevallos@hotmail.com | U26: 17 de Junio | V26: DURAN | W26: NORMAL | X26: SEDE | Y26: Seguimiento a Convenio | AA26: SI | AB26: 0 | AD26: Entrego cupones de convenio | AF26: 2017-11-13 | AL26: - Seleccione - | AN26: - Seleccione - | AO26: 0 | AQ26: -Seleccione - | AV26: 0 | AW26: 0 | AX26: 2017-11-13 22:38:06 | AY26: -2.18639469 | AZ26: -79.99710845 | BA26: GPS | BB26: 8896369 | BC26: 2017-12-26 | BD26: 2017-11-13 | BE26: 11 | BF26: COSTA | BG26: 2018-02-07
A27: 86 | B27: 2017-11-09 | E27: C-Cecil Miranda | F27: 903576114 | G27: 46 | H27: CEVALLOS ULLOA HECTOR EDGAR | I27: CEVALLOS ULLOA HECTOR EDGAR | J27: Realizado | K27: VISITA MEDICA | M27: NO AUDIT | P27: 1 | Q27: MEDICINA GENERAL | V27: YAGUACHI | X27: GIRA | Y27: Recordatorio de Producto | AA27: SI | AB27: 0 | AD27: Esta recetando atormibe zolvastin | AF27: 2017-11-20 | AL27: - Seleccione - | AN27: - Seleccione - | AO27: 0 | AQ27: -Seleccione - | AV27: 0 | AW27: 0 | AX27: 2017-11-22 09:22:20 | AY27: -2.09754395 | AZ27: -79.69069671 | BA27: GPS | BB27: 8862255 | BC27: 2018-01-04 | BD27: 2017-11-22 | BE27: 11 | BF27: COSTA | BG27: 2018-02-16
A28: 89 | B28: 2017-11-09 | E28: C-Cecil Miranda | F28: 905292793 | G28: 49 | H28: CHILE PALMA CARLOS ADOLFO | I28: CHILE PALMA CARLOS ADOLFO | J28: Realizado | K28: VISITA MEDICA | M28: Q5 | P28: 1 | Q28: MEDICINA INTERNA | R28: 990448026 | T28: chilealv_md@yahoo.com | U28: 27 de Septiembre | V28: GUAYAQUIL | X28: SEDE | Y28: Recordatorio de Producto | AA28: SI | AB28: 0 | AD28: Esta recetando hidroxicloroquina atormibe | AF28: 2017-11-13 | AL28: - Seleccione - | AN28: - Seleccione - | AO28: 0 | AQ28: -Seleccione - | AV28: 0 | AW28: 0 | AX28: 2017-11-13 21:50:50 | AY28: -2.18641233 | AZ28: -79.99711608 | BA28: GPS | BB28: 8896370 | BC28: 2017-12-26 | BD28: 2017-11-13 | BE28: 11 | BF28: COSTA | BG28: 2018-02-07
A29: 91 | B29: 2017-11-09 | E29: C-Cecil Miranda | F29: 911353928 | G29: 51 | H29: CORONEL GALLARDO MARCIA CATALINA | I29: CORONEL GALLARDO MARCIA CATALINA | J29: Realizado | K29: VISITA MEDICA | M29: NO AUDIT | P29: 1 | Q29: MEDICINA INTERNA | V29: GUAYAQUIL | W29: NORMAL | X29: SEDE | Y29: Seguimiento a Convenio | AA29: SI | AB29: 0 | AD29: Entrego hoja de convenio | AF29: 2017-11-13 | AL29: - Seleccione - | AN29: - Seleccione - | AO29: 0 | AQ29: -Seleccione - | AV29: 0 | AW29: 0 | AX29: 2017-11-13 15:01:24 | AY29: -2.26804542 | AZ29: -79.90259552 | BA29: GPS | BB29: 8885930 | BC29: 2017-12-26 | BD29: 2017-11-13 | BE29: 11 | BF29: COSTA | BG29: 2018-02-07
A30: 92 | B30: 2017-11-09 | E30: C-Cecil Miranda | F30: 906420658 | G30: 52 | H30: CRUZ ACURIA PALERMO WILSON | I30: CRUZ ACURIA PALERMO WILSON | J30: Realizado | K30: VISITA MEDICA | M30: Q4 | P30: 1 | Q30: MEDICINA GENERAL | R30: 982586890 | V30: GUAYAQUIL | X30: SEDE | Y30: Recordatorio de Producto | AA30: SI | AB30: 0 | AD30: Esta recetando atormibe kanazol | AF30: 2017-11-10 | AL30: - Seleccione - | AN30: - Seleccione - | AO30: 0 | AQ30: -Seleccione - | AV30: 0 | AW30: 0 | AX30: 2018-01-04 | AY30: -2.19811367 | AZ30: -79.91496276 | BA30: GPS | BB30: 8887251 | BC30: 2018-01-04 | BD30: =DATE(YEAR(AX30),MONTH(AX30),DAY(AX30)) -> 2018-01-04 | BE30: 1 | BF30: COSTA | BG30: 2018-02-16
A31: 93 | B31: 2017-11-09 | E31: C-Cecil Miranda | F31: 914713458 | G31: 53 | H31: CRUZ MARIN ADRIANA ALEXANDRA | I31: CRUZ MARIN ADRIANA ALEXANDRA | J31: Realizado | K31: VISITA MEDICA | M31: NO AUDIT | P31: 1 | Q31: GINECO-OBSTETRICIA | R31: 990536023 | T31: adrianacruzmarin@hotmail.es | U31: 18 de Abril | V31: YAGUACHI | W31: NORMAL | X31: GIRA | Y31: Seguimiento a Convenio | AA31: SI | AB31: 0 | AD31: Entrego cupones de convenio | AF31: 2017-11-20 | AL31: - Seleccione - | AN31: - Seleccione - | AO31: 0 | AQ31: -Seleccione - | AV31: 0 | AW31: 0 | AX31: 2017-11-22 09:07:46 | AY31: -2.09641146 | AZ31: -79.69480895 | BA31: GPS | BB31: 8862711 | BC31: 2018-01-04 | BD31: 2017-11-22 | BE31: 11 | BF31: COSTA | BG31: 2018-02-16
A32: 95 | B32: 2017-11-09 | E32: C-Cecil Miranda | F32: Ingresar CI / RUC | G32: 55 | H32: CULCAY VELIZ MARIA JOSE | I32: CULCAY VELIZ MARIA JOSE | J32: Realizado | K32: VISITA MEDICA | M32: NO AUDIT | P32: 1 | Q32: MEDICINA GENERAL | R32: 997492240 | T32: majose_culky@hotmail.com | U32: 17 de Septiembre | V32: QUEVEDO | W32: NORMAL | X32: GIRA | Y32: Seguimiento a Convenio | AA32: SI | AB32: 0 | AD32: Esya recetando irbetan atormibe meformina | AF32: 2017-11-20 | AL32: - Seleccione - | AN32: - Seleccione - | AO32: 0 | AQ32: -Seleccione - | AV32: 0 | AW32: 0 | AX32: 2017-11-20 16:17:18 | AY32: -1.01887094 | AZ32: -79.46985626 | BA32: GPS | BB32: 8837109 | BC32: 2018-01-02 | BD32: 2017-11-20 | BE32: 11 | BF32: COSTA | BG32: 2018-02-14
A33: 96 | B33: 2017-11-09 | E33: C-Cecil Miranda | F33: 903354546 | G33: 56 | H33: CUMBE CUMBE KAISER MIGUEL | I33: CUMBE CUMBE KAISER MIGUEL | J33: Realizado | K33: VISITA MEDICA | M33: Q5 | P33: 1 | Q33: MEDICINA INTERNA | R33: 997555921 | T33: drkaisercumbe@hotmail.com | U33: 5 de Mayo | V33: GUAYAQUIL | W33: NORMAL | X33: SEDE | Y33: Seguimiento a Convenio | AA33: SI | AB33: 0 | AD33: Entrego hoja de convenio | AF33: 2017-11-16 | AL33: - Seleccione - | AN33: - Seleccione - | AO33: 0 | AQ33: -Seleccione - | AV33: 0 | AW33: 0 | AX33: 2017-11-16 17:59:48 | AY33: -2.21812915 | AZ33: -79.9066925 | BA33: GPS | BB33: 8886347 | BC33: 2017-12-29 | BD33: 2017-11-16 | BE33: 11 | BF33: COSTA | BG33: 2018-02-10
A34: 97 | B34: 2017-11-09 | E34: C-Cecil Miranda | F34: 904075926 | G34: 57 | H34: CUZCO GALARZA VICTOR ORLANDO | I34: CUZCO GALARZA VICTOR ORLANDO | J34: Realizado | K34: VISITA MEDICA | M34: Q3 | P34: 1 | Q34: MEDICINA GENERAL | R34: 991224870 | T34: drvictorcuzcog@hotmail.com | U34: 5 de Agosto | V34: GUAYAQUIL | X34: SEDE | Y34: Recordatorio de Producto | AA34: SI | AB34: 0 | AD34: En este mes va recetar atormibe acibetkam | AF34: 2017-11-16 | AL34: - Seleccione - | AN34: - Seleccione - | AO34: 0 | AQ34: -Seleccione - | AV34: 0 | AW34: 0 | AX34: 2017-11-16 17:23:31 | AY34: -2.213279 | AZ34: -79.9273529 | BA34: GPS | BB34: 8888639 | BC34: 2017-12-29 | BD34: 2017-11-16 | BE34: 11 | BF34: COSTA | BG34: 2018-02-10
A35: 98 | B35: 2017-11-09 | E35: C-Cecil Miranda | F35: 904042819 | G35: 58 | H35: DE LA VERA GARCIA PASTOR ENRIQUE | I35: DE LA VERA GARCIA PASTOR ENRIQUE | J35: Realizado | K35: VISITA MEDICA | M35: Q5 | P35: 1 | Q35: MEDICINA INTERNA | R35: 986997006 | T35: pastordelavera@hotmail.com. | U35: 15 de Febrero | V35: GUAYAQUIL | X35: SEDE | Y35: Recordatorio de Producto | AA35: SI | AB35: 0 | AD35: Esta recdtando atormibe fenfikan | AF35: 2017-11-16 | AL35: - Seleccione - | AN35: - Seleccione - | AO35: 0 | AQ35: -Seleccione - | AV35: 0 | AW35: 0 | AX35: 2017-11-16 18:27:48 | AY35: -2.1806631 | AZ35: -79.89607238 | BA35: GPS | BB35: 8885138 | BC35: 2017-12-29 | BD35: 2017-11-16 | BE35: 11 | BF35: COSTA | BG35: 2018-02-10
A36: 99 | B36: 2017-11-09 | E36: C-Cecil Miranda | F36: Ingresar CI / RUC | G36: 59 | H36: DELGADO MARQUEZ RUBEN ENRIQUE | I36: DELGADO MARQUEZ RUBEN ENRIQUE | J36: Realizado | K36: VISITA MEDICA | M36: NO AUDIT | P36: 1 | Q36: ONCOLOGIA | R36: 969339399 | T36: drredm65@hotmail.com | U36: 13 de Marzo | V36: QUEVEDO | W36: NORMAL | X36: GIRA | Y36: Seguimiento a Convenio | AA36: SI | AB36: 0 | AD36: Entrego hoja de convenio | AF36: 2017-11-20 | AL36: - Seleccione - | AN36: - Seleccione - | AO36: 0 | AQ36: -Seleccione - | AV36: 0 | AW36: 0 | AX36: 2017-11-21 15:04:49 | AY36: -1.02778625 | AZ36: -79.44598388 | BA36: GPS | BB36: 8834458 | BC36: 2018-01-03 | BD36: 2017-11-21 | BE36: 11 | BF36: COSTA | BG36: 2018-02-15
A37: 101 | B37: 2017-11-09 | E37: C-Cecil Miranda | F37: 903081982 | G37: 61 | H37: DIAZ JURADO ERNESTO GREGORIO | I37: DIAZ JURADO ERNESTO GREGORIO | J37: Realizado | K37: VISITA MEDICA | L37: 903081982 | M37: Q2 | N37: COX:COLCIBRA 56,25% ARCOXIA 35,42%;DOLUX 4,86%;CELEBREX 3,47%;// ARAII:DIOVAN 67,50% LOSARTAN 7,50%;LOSARTAN 5,00%;COZAAR 5,00%;// ANTIHISTAMINICOS:ALERCET 42,86% CLARITYNE 10,71%;DEGRALER 7,14%;ALLEGRA 7,14%;HIDROXINA 7,14%;CETIRIZINA MK 7,14%;// CORTICOESTERIODES:METICORTEN 54,55% MEDROL 13,64%;PREDNISONA 13,64%;PREDNIMAX 9,09%;// ESTATINAS:ACROVASTIN 28,57% ATROLIP 28,57%;ATORVASTATINA MK 28,57%;LIPITOR 14,29%; | O37: ESTATINAS_COMB:ATORMIBE 33,33% // ARAII:IRBETAN 0,00% // COX:CELERIDAN 0,00% | P37: 1 | Q37: UROLOGIA | U37: GUAYAQUIL | V37: GUAYAQUIL | W37: SEDE | X37: SEDE | Y37: Recordatorio de Producto | AA37: SI | AB37: 0 | AD37: Esta recetando zolvastin meforminac | AF37: 2017-11-24 | AL37: - Seleccione - | AN37: - Seleccione - | AO37: 0 | AQ37: -Seleccione - | AV37: 0 | AW37: 0 | AX37: 2017-11-24 16:56:11 | AY37: -2.19474506 | AZ37: -79.8963623 | BA37: GPS | BB37: 8885181 | BC37: 2018-01-06 | BD37: 2017-11-24 | BE37: 11 | BF37: COSTA | BG37: 2018-02-18
A38: 103 | B38: 2017-11-09 | E38: C-Cecil Miranda | F38: 909150203 | G38: 63 | H38: ESPARZA ALEJANDRO ANGEL HERIBERTO | I38: ESPARZA ALEJANDRO ANGEL HERIBERTO | J38: Realizado | K38: VISITA MEDICA | L38: 909150203 | M38: Q5 | N38: ANTIHISTAMINICOS:LORATADINA-R 75,00% LORATADINA MK 25,00%;// CLOPIDOGREL:EXPANSIA % // FIBRATOS:LOPID % // ARAII+COMB:EXFORGE HCT % | O38: 1 | P38: 1 | Q38: CARDIOLOGIA | R38: 999543579 | S38: aesparza@armada.mil.ec | T38: aesparza@armada.mil.ec | U38: GUAYAQUIL | V38: GUAYAQUIL | W38: SEDE | X38: SEDE | Y38: Recordatorio de Producto | AA38: SI | AB38: 0 | AD38: Esta utilisando atormibe zolvastin | AF38: 2017-11-24 | AL38: - Seleccione - | AN38: - Seleccione - | AO38: 0 | AQ38: -Seleccione - | AV38: 0 | AW38: 0 | AX38: 2017-11-24 14:46:00 | AY38: -2.23892188 | AZ38: -79.89276885 | BA38: GPS | BB38: 8884816 | BC38: 2018-01-06 | BD38: 2017-11-24 | BE38: 11 | BF38: COSTA | BG38: 2018-02-18
A39: 104 | B39: 2017-11-09 | E39: C-Cecil Miranda | F39: 905327557 | G39: 64 | H39: FALCON ORTEGA KLEVER XAVIER | I39: FALCON ORTEGA KLEVER XAVIER | J39: Realizado | K39: VISITA MEDICA | M39: NO AUDIT | P39: 1 | Q39: MEDICINA GENERAL | R39: 994462313 | T39: kleber_falcon55@hotmail.com | U39: 22 de Octubre | V39: YAGUACHI | X39: GIRA | Y39: Recordatorio de Producto | AA39: SI | AB39: 0 | AD39: Esta recetando hidroxicloroquina atormibe | AF39: 2017-11-20 | AL39: - Seleccione - | AN39: - Seleccione - | AO39: 0 | AQ39: -Seleccione - | AV39: 0 | AW39: 0 | AX39: 2017-11-22 09:48:42 | AY39: -2.09753012 | AZ39: -79.69149017 | BA39: GPS | BB39: 8862344 | BC39: 2018-01-04 | BD39: 2017-11-22 | BE39: 11 | BF39: COSTA | BG39: 2018-02-16
A40: 105 | B40: 2017-11-09 | E40: C-Cecil Miranda | F40: 907615520 | G40: 65 | H40: FARRO OCHOA FELICIANO | I40: FARRO OCHOA FELICIANO | J40: Realizado | K40: VISITA MEDICA | M40: Q1 | P40: 0.5 | Q40: MEDICINA GENERAL | R40: 999401948 | T40: Felicianofarro@hotmail.com | U40: 18 de Diciembre | V40: GUAYAQUIL | X40: SEDE | Y40: Recordatorio de Producto | AA40: SI | AB40: 0 | AD40: Esta recetando fenfikan atormibe | AF40: 2017-11-17 | AL40: - Seleccione - | AN40: - Seleccione - | AO40: 0 | AQ40: -Seleccione - | AV40: 0 | AW40: 0 | AX40: 2017-11-17 18:19:07 | AY40: -2.2106893 | AZ40: -79.93110656 | BA40: GPS | BB40: 8889054 | BC40: 2017-12-30 | BD40: 2017-11-17 | BE40: 11 | BF40: COSTA | BG40: 2018-02-11
A41: 107 | B41: 2017-11-09 | E41: C-Cecil Miranda | F41: 1203224710 | G41: 67 | H41: FIERRO VERA SHEYLA YADIRA | I41: FIERRO VERA SHEYLA YADIRA | J41: Realizado | K41: VISITA MEDICA | L41: 1203224710 | M41: NO AUDIT | N41: COX:COLCIBRA % | O41: 1 | P41: 1 | Q41: GINECO-OBSTETRICIA | R41: 939271339 | S41: sheyla1972@outlook.es | T41: sheyla1972@outlook.es | U41: 26 de Julio | V41: BABAHOYO | W41: NORMAL | X41: GIRA | Y41: Seguimiento a Convenio | AA41: SI | AB41: 0 | AD41: Esta recetando fenfikan caberkana | AF41: 2017-11-22 | AL41: - Seleccione - | AN41: - Seleccione - | AO41: 0 | AQ41: -Seleccione - | AV41: 0 | AW41: 0 | AX41: 2017-11-22 14:54:04 | AY41: -1.80565536 | AZ41: -79.52327728 | BA41: GPS | BB41: 8843447 | BC41: 2018-01-04 | BD41: 2017-11-22 | BE41: 11 | BF41: COSTA | BG41: 2018-02-16
A42: 108 | B42: 2017-11-09 | E42: C-Cecil Miranda | F42: 907207252 | G42: 68 | H42: FIGUEROA MONTALVAN CLIMACO OCTAVIANO | I42: FIGUEROA MONTALVAN CLIMACO OCTAVIANO | J42: Realizado | K42: VISITA MEDICA | M42: NO AUDIT | P42: 1 | Q42: NO ESPECIFICADA | V42: GUAYAQUIL | X42: SEDE | Y42: Recordatorio de Producto | AA42: SI | AB42: 0 | AD42: Esta utilizando celeridan kanazol | AF42: 2017-11-13 | AL42: - Seleccione - | AN42: - Seleccione - | AO42: 0 | AQ42: -Seleccione - | AV42: 0 | AW42: 0 | AX42: 2017-11-13 21:53:27 | AY42: -2.18641614 | AZ42: -79.99710845 | BA42: GPS | BB42: 8896369 | BC42: 2017-12-26 | BD42: 2017-11-13 | BE42: 11 | BF42: COSTA | BG42: 2018-02-07
A43: 109 | B43: 2017-11-09 | E43: C-Cecil Miranda | F43: 913740569 | G43: 69 | H43: FLOR MUNOZ ENRIQUE ANTONIO | I43: FLOR MUNOZ ENRIQUE ANTONIO | J43: Realizado | K43: VISITA MEDICA | L43: 913740569 | M43: NO AUDIT | O43: 1 | P43: 1 | Q43: CARDIOLOGIA | U43: GUAYAQUIL | V43: GUAYAQUIL | W43: SEDE | X43: SEDE | Y43: Recordatorio de Producto | AA43: SI | AB43: 0 | AD43: Esta recetando berezo irbetan besarzid | AF43: 2017-11-24 | AL43: - Seleccione - | AN43: - Seleccione - | AO43: 0 | AQ43: -Seleccione - | AV43: 0 | AW43: 0 | AX43: 2017-11-24 15:12:27 | AY43: -2.2282319 | AZ43: -79.89768218 | BA43: GPS | BB43: 8885354 | BC43: 2018-01-06 | BD43: 2017-11-24 | BE43: 11 | BF43: COSTA | BG43: 2018-02-18
A44: 110 | B44: 2017-11-09 | E44: C-Cecil Miranda | F44: 905190906 | G44: 70 | H44: FLORES LIMA ANGEL HUMBERTO | I44: FLORES LIMA ANGEL HUMBERTO | J44: Realizado | K44: VISITA MEDICA | M44: Q5 | P44: 1 | Q44: MEDICINA GENERAL | R44: 985877268 | T44: drangelflores@hotmail.com | U44: 10 de Septiembre | V44: GUAYAQUIL | X44: SEDE | Y44: Recordatorio de Producto | AA44: SI | AB44: 0 | AD44: Esta utilizando zolvastin kanazol | AF44: 2017-11-14 | AL44: - Seleccione - | AN44: - Seleccione - | AO44: 0 | AQ44: -Seleccione - | AV44: 0 | AW44: 0 | AX44: 2017-11-14 22:04:51 | AY44: -2.18641567 | AZ44: -79.99713134 | BA44: GPS | BB44: 8896372 | BC44: 2017-12-27 | BD44: 2017-11-14 | BE44: 11 | BF44: COSTA | BG44: 2018-02-08
A45: 113 | B45: 2017-11-09 | E45: C-Cecil Miranda | F45: 1202239610 | G45: 73 | H45: FUENTES GUILLEN ROSENDO ANTONIO | I45: FUENTES GUILLEN ROSENDO ANTONIO | J45: Realizado | K45: VISITA MEDICA | M45: Q5 | P45: 1 | Q45: MEDICINA GENERAL | V45: BABAHOYO | X45: GIRA | Y45: Recordatorio de Producto | AA45: SI | AB45: 0 | AD45: Esta utilizando hidroxiclorowuina zolvastin aciberkan | AF45: 2017-11-20 | AL45: - Seleccione - | AN45: - Seleccione - | AO45: 0 | AQ45: -Seleccione - | AV45: 0 | AW45: 0 | AX45: 2017-11-22 12:37:52 | AY45: -1.80232143 | AZ45: -79.53936004 | BA45: GPS | BB45: 8845232 | BC45: 2018-01-04 | BD45: 2017-11-22 | BE45: 11 | BF45: COSTA | BG45: 2018-02-16
A46: 115 | B46: 2017-11-09 | E46: C-Cecil Miranda | F46: 906113014 | G46: 75 | H46: GANDARA QUINTON JHONNY ENRIQUE | I46: GANDARA QUINTON JHONNY ENRIQUE | J46: Realizado | K46: VISITA MEDICA | M46: Q4 | P46: 1 | Q46: MEDICINA GENERAL | R46: 52784181 | V46: QUEVEDO | X46: GIRA | Y46: Recordatorio de Producto | AA46: SI | AB46: 0 | AD46: Esta recetando berezo besarzid | AF46: 2017-11-20 | AL46: - Seleccione - | AN46: - Seleccione - | AO46: 0 | AQ46: -Seleccione - | AV46: 0 | AW46: 0 | AX46: 2017-11-21 11:20:57 | AY46: -1.03789782 | AZ46: -79.47227478 | BA46: GPS | BB46: 8837385 | BC46: 2018-01-03 | BD46: 2017-11-21 | BE46: 11 | BF46: COSTA | BG46: 2018-02-15
A47: 118 | B47: 2017-11-09 | E47: C-Cecil Miranda | F47: 1205554791 | G47: 78 | H47: GARCIA SANCHEZ DIXIANA YADIRA | I47: GARCIA SANCHEZ DIXIANA YADIRA | J47: Realizado | K47: VISITA MEDICA | M47: NO AUDIT | P47: 1 | Q47: ENDOCRINOLOGIA | R47: 983537120 | T47: md.dgmax@hotmail.com | U47: 15 de Diciembre | V47: QUEVEDO | W47: NORMAL | X47: GIRA | Y47: Seguimiento a Convenio | AA47: SI | AB47: 0 | AD47: Esta recetando fenfikan kanazol | AF47: 2017-11-20 | AL47: - Seleccione - | AN47: - Seleccione - | AO47: 0 | AQ47: -Seleccione - | AV47: 0 | AW47: 0 | AX47: 2017-11-21 16:05:03 | AY47: -1.43920803 | AZ47: -79.46062469 | BA47: GPS | BB47: 8836269 | BC47: 2018-01-03 | BD47: 2017-11-21 | BE47: 11 | BF47: COSTA | BG47: 2018-02-15
A48: 119 | B48: 2017-11-09 | E48: C-Cecil Miranda | F48: 1303406316 | G48: 79 | H48: GARCIA ZAMBRANO PABLO JOSE ROBERTO NICOL | I48: GARCIA ZAMBRANO PABLO JOSE ROBERTO NICOL | J48: Realizado | K48: VISITA MEDICA | M48: Q5 | P48: 1 | Q48: ENDOCRINOLOGIA | R48: 0993979742 | T48: drpablogarcia@gemail.com | U48: 22 de Enero | V48: GUAYAQUIL | X48: SEDE | Y48: Recordatorio de Producto | AA48: SI | AB48: 0 | AD48: Esta recetando meformina atormibe | AF48: 2017-11-17 | AL48: - Seleccione - | AN48: - Seleccione - | AO48: 0 | AQ48: -Seleccione - | AV48: 0 | AW48: 0 | AX48: 2017-11-17 14:30:10 | AY48: -2.26931214 | AZ48: -79.90273284 | BA48: GPS | BB48: 8885947 | BC48: 2017-12-30 | BD48: 2017-11-17 | BE48: 11 | BF48: COSTA | BG48: 2018-02-11
A49: 120 | B49: 2017-11-09 | E49: C-Cecil Miranda | F49: Ingresar CI / RUC | G49: 80 | H49: GILER SOLORZANO DENSY WASHINTONG | I49: GILER SOLORZANO DENSY WASHINTONG | J49: Realizado | K49: VISITA MEDICA | M49: NO AUDIT | P49: 1 | Q49: MEDICINA GENERAL | R49: 989499466 | T49: denyswgiler@hotmail.com | U49: 24 de Noviembre | V49: EL EMPALME | X49: GIRA | Y49: Recordatorio de Producto | AA49: SI | AB49: 0 | AD49: Esta recetando besarzid fenfikan | AF49: 2017-11-20 | AL49: - Seleccione - | AN49: - Seleccione - | AO49: 0 | AQ49: -Seleccione - | AV49: 0 | AW49: 0 | AX49: 2017-11-21 13:14:46 | AY49: -1.04425191 | AZ49: -79.63761138 | BA49: GPS | BB49: 8855769 | BC49: 2018-01-03 | BD49: 2017-11-21 | BE49: 11 | BF49: COSTA | BG49: 2018-02-15
A50: 121 | B50: 2017-11-09 | E50: C-Cecil Miranda | F50: 912348257 | G50: 81 | H50: GONZALEZ GONZALEZ JUAN EDUARDO | I50: GONZALEZ GONZALEZ JUAN EDUARDO | J50: Realizado | K50: VISITA MEDICA | M50: Q5 | P50: 1 | Q50: OBSTETRICIA | R50: 967862347 | T50: jgonzalez2015.@outlook.com | U50: 5 de Enero | V50: GUAYAQUIL | X50: SEDE | Y50: Recordatorio de Producto | AA50: SI | AB50: 0 | AD50: Esta recetando irbetan besarzid | AF50: 2017-11-14 | AL50: - Seleccione - | AN50: - Seleccione - | AO50: 0 | AQ50: -Seleccione - | AV50: 0 | AW50: 0 | AX50: 2017-11-15 11:18:22 | AY50: -2.20433092 | AZ50: -79.93852233 | BA50: GPS | BB50: 8889873 | BC50: 2017-12-28 | BD50: 2017-11-15 | BE50: 11 | BF50: COSTA | BG50: 2018-02-09
A51: 122 | B51: 2017-11-09 | E51: C-Cecil Miranda | F51: 911534758 | G51: 82 | H51: GONZALEZ NEIRA ADRIANA VICTORIA | I51: GONZALEZ NEIRA ADRIANA VICTORIA | J51: Realizado | K51: VISITA MEDICA | M51: Q4 | P51: 1 | Q51: ENDOCRINOLOGIA | V51: GUAYAQUIL | W51: NORMAL | X51: SEDE | Y51: Seguimiento a Convenio | AA51: SI | AB51: 0 | AD51: Entrego hoja de convenio | AF51: 2017-11-13 | AL51: - Seleccione - | AN51: - Seleccione - | AO51: 0 | AQ51: -Seleccione - | AV51: 0 | AW51: 0 | AX51: 2017-11-13 14:59:27 | AY51: -2.26832628 | AZ51: -79.90200042 | BA51: GPS | BB51: 8885865 | BC51: 2017-12-26 | BD51: 2017-11-13 | BE51: 11 | BF51: COSTA | BG51: 2018-02-07
A52: 123 | B52: 2017-11-09 | E52: C-Cecil Miranda | F52: 907889646 | G52: 83 | H52: GONZALEZ RAMIREZ JUAN SANTOS | I52: GONZALEZ RAMIREZ JUAN SANTOS | J52: Realizado | K52: VISITA MEDICA | M52: Q3 | P52: 1 | Q52: MEDICINA GENERAL | R52: 992228711 | T52: juan.santos.gonzales.@gmail.com | U52: 1 de noviembre | V52: GUAYAQUIL | X52: SEDE | Y52: Recordatorio de Producto | AA52: SI | AB52: 0 | AD52: Esta recetando atormibe rosuvina kanazol | AF52: 2017-11-14 | AL52: - Seleccione - | AN52: - Seleccione - | AO52: 0 | AQ52: -Seleccione - | AV52: 0 | AW52: 0 | AX52: 2017-11-16 11:59:18 | AY52: -2.21093988 | AZ52: -79.92546081 | BA52: GPS | BB52: 8888427 | BC52: 2017-12-29 | BD52: 2017-11-16 | BE52: 11 | BF52: COSTA | BG52: 2018-02-10
A53: 124 | B53: 2017-11-09 | E53: C-Cecil Miranda | F53: 910510569 | G53: 84 | H53: GRAY GOMEZ OLGA ELIZABETH | I53: GRAY GOMEZ OLGA ELIZABETH | J53: Realizado | K53: VISITA MEDICA | M53: Q5 | P53: 1 | Q53: MEDICINA INTERNA | R53: 910510569 | T53: grayolga@hotmail.com | U53: 30 de Mayo | V53: QUEVEDO | X53: GIRA | Y53: Recordatorio de Producto | AA53: SI | AB53: 0 | AD53: Esta recetando hidroxicloroquina fenfikan | AF53: 2017-11-20 | AL53: - Seleccione - | AN53: - Seleccione - | AO53: 0 | AQ53: -Seleccione - | AV53: 0 | AW53: 0 | AX53: 2017-11-21 14:08:14 | AY53: -1.02997028 | AZ53: -79.46925354 | BA53: GPS | BB53: 8837046 | BC53: 2018-01-03 | BD53: 2017-11-21 | BE53: 11 | BF53: COSTA | BG53: 2018-02-15
A54: 126 | B54: 2017-11-09 | E54: C-Cecil Miranda | F54: Ingresar CI / RUC | G54: 86 | H54: GUANANGA BRANDAGORA MARCO | I54: GUANANGA BRANDAGORA MARCO | J54: Realizado | K54: VISITA MEDICA | M54: NO AUDIT | P54: 1 | Q54: MEDICINA GENERAL | V54: VINCES | X54: GIRA | Y54: Recordatorio de Producto | AA54: SI | AB54: 0 | AD54: En este mes vacrecetar fenfikan celeridan | AF54: 2017-11-20 | AL54: - Seleccione - | AN54: - Seleccione - | AO54: 0 | AQ54: -Seleccione - | AV54: 0 | AW54: 0 | AX54: 2017-11-20 14:07:09 | AY54: -1.55518841 | AZ54: -79.75228118 | BA54: GPS | BB54: 8868751 | BC54: 2018-01-02 | BD54: 2017-11-20 | BE54: 11 | BF54: COSTA | BG54: 2018-02-14
A55: 129 | B55: 2017-11-09 | E55: C-Cecil Miranda | F55: 908569890 | G55: 89 | H55: GUZMAN JARAMILLO SERVIO MARINO | I55: GUZMAN JARAMILLO SERVIO MARINO | J55: Realizado | K55: VISITA MEDICA | M55: Q5 | P55: 1 | Q55: MEDICINA GENERAL | R55: 991321467 | T55: Servioguzman61@hotmail.com | U55: 30 de Septiembre | V55: GUAYAQUIL | X55: SEDE | Y55: Recordatorio de Producto | AA55: SI | AB55: 0 | AD55: Esya recetando atormibe besarzid | AF55: 2017-11-13 | AL55: - Seleccione - | AN55: - Seleccione - | AO55: 0 | AQ55: -Seleccione - | AV55: 0 | AW55: 0 | AX55: 2017-11-13 22:43:31 | AY55: -2.18637299 | AZ55: -79.99711608 | BA55: GPS | BB55: 8896370 | BC55: 2017-12-26 | BD55: 2017-11-13 | BE55: 11 | BF55: COSTA | BG55: 2018-02-07
A56: 130 | B56: 2017-11-09 | E56: C-Cecil Miranda | F56: 910321827 | G56: 90 | H56: HERRERA AVILES CENIA MAGDA | I56: HERRERA AVILES CENIA MAGDA | J56: Realizado | K56: VISITA MEDICA | M56: Q5 | P56: 1 | Q56: MEDICINA GENERAL | R56: 999367144 | T56: lia.magda1@gmail.com | U56: 14 de Agosto | V56: GUAYAQUIL | W56: NORMAL | X56: SEDE | Y56: Seguimiento a Convenio | AA56: SI | AB56: 0 | AD56: Entrego cupones de convenio | AF56: 2017-11-13 | AL56: - Seleccione - | AN56: - Seleccione - | AO56: 0 | AQ56: -Seleccione - | AV56: 0 | AW56: 0 | AX56: 2017-11-13 11:57:27 | AY56: -2.21182394 | AZ56: -79.89016723 | BA56: GPS | BB56: 8884506 | BC56: 2017-12-26 | BD56: 2017-11-13 | BE56: 11 | BF56: COSTA | BG56: 2018-02-07
A57: 131 | B57: 2017-11-09 | E57: C-Cecil Miranda | F57: 905321295 | G57: 91 | H57: HIDALGO HUERTA FRANKLIN ULPIANO | I57: HIDALGO HUERTA FRANKLIN ULPIANO | J57: Realizado | K57: VISITA MEDICA | M57: Q5 | P57: 1 | Q57: MEDICINA GENERAL | R57: 99209913 | V57: GUAYAQUIL | X57: SEDE | Y57: Recordatorio de Producto | AA57: SI | AB57: 0 | AD57: Esta recetando hidroxicloroquina meformina | AF57: 2017-11-13 | AL57: - Seleccione - | AN57: - Seleccione - | AO57: 0 | AQ57: -Seleccione - | AV57: 0 | AW57: 0 | AX57: 2017-11-13 21:47:39 | AY57: -2.18647837 | AZ57: -79.99716186 | BA57: GPS | BB57: 8896375 | BC57: 2017-12-26 | BD57: 2017-11-13 | BE57: 11 | BF57: COSTA | BG57: 2018-02-07
A58: 133 | B58: 2017-11-09 | E58: C-Cecil Miranda | F58: Ingresar CI / RUC | G58: 93 | H58: HOLGUIN HOLGUIN RICARDO XAVIER | I58: HOLGUIN HOLGUIN RICARDO XAVIER | J58: Realizado | K58: VISITA MEDICA | M58: NO AUDIT | P58: 1 | Q58: NEUROLOGIA | R58: 968570064 | T58: xavier18holguin@hotmail.com | U58: 28 de Febrero | V58: GUAYAQUIL | X58: SEDE | Y58: Recordatorio de Producto | AA58: SI | AB58: 0 | AD58: Esta recetando roduvina atormibe | AF58: 2017-11-17 | AL58: - Seleccione - | AN58: - Seleccione - | AO58: 0 | AQ58: -Seleccione - | AV58: 0 | AW58: 0 | AX58: 2017-11-17 16:16:55 | AY58: -2.2194066 | AZ58: -79.90650939 | BA58: GPS | BB58: 8886328 | BC58: 2017-12-30 | BD58: 2017-11-17 | BE58: 11 | BF58: COSTA | BG58: 2018-02-11
A59: 134 | B59: 2017-11-09 | E59: C-Cecil Miranda | F59: 200293371 | G59: 94 | H59: IBARRA ECHEVERRIA HECTOR GUILLERMO | I59: IBARRA ECHEVERRIA HECTOR GUILLERMO | J59: Realizado | K59: VISITA MEDICA | M59: Q4 | P59: 1 | Q59: CIRUGIA GENERAL | R59: 985448516 | T59: guillermoibarra@hotmail.es | U59: 26 de Febrero | V59: SAN CAMILO | X59: GIRA | Y59: Recordatorio de Producto | AA59: SI | AB59: 0 | AD59: Esta recetando atormibe zolvastin | AF59: 2017-11-20 | AL59: - Seleccione - | AN59: - Seleccione - | AO59: 0 | AQ59: -Seleccione - | AV59: 0 | AW59: 0 | AX59: 2017-11-21 08:11:02 | AY59: -1.0235728 | AZ59: -79.4593048 | BA59: GPS | BB59: 8835938 | BC59: 2018-01-03 | BD59: 2017-11-21 | BE59: 11 | BF59: COSTA | BG59: 2018-02-15
A60: 136 | B60: 2017-11-09 | E60: C-Cecil Miranda | F60: 1800951533 | G60: 96 | H60: JIMENEZ BARRIONUEVO JORGE ROBERTO | I60: JIMENEZ BARRIONUEVO JORGE ROBERTO | J60: Realizado | K60: VISITA MEDICA | M60: Q5 | P60: 1 | Q60: MEDICINA GENERAL | V60: GUAYAQUIL | X60: SEDE | Y60: Recordatorio de Producto | AA60: SI | AB60: 0 | AD60: Esta recetando besarzid irbetan atormibe | AF60: 2017-11-14 | AL60: - Seleccione - | AN60: - Seleccione - | AO60: 0 | AQ60: -Seleccione - | AV60: 0 | AW60: 0 | AX60: 2017-11-15 17:21:47 | AY60: -2.21108579 | AZ60: -79.90206909 | BA60: GPS | BB60: 8885828 | BC60: 2017-12-28 | BD60: 2017-11-15 | BE60: 11 | BF60: COSTA | BG60: 2018-02-09
A61: 137 | B61: 2017-11-09 | E61: C-Cecil Miranda | F61: 908442049 | G61: 97 | H61: JIMENEZ JIMENEZ GUSTAVO GUILLERMO | I61: JIMENEZ JIMENEZ GUSTAVO GUILLERMO | J61: Realizado | K61: VISITA MEDICA | M61: Q4 | P61: 1 | Q61: MEDICINA GENERAL | R61: 0997908298-2477269 | V61: GUAYAQUIL | X61: SEDE | Y61: Recordatorio de Producto | AA61: SI | AB61: 0 | AD61: Esta recetando itbetan besarzod | AF61: 2017-11-14 | AL61: - Seleccione - | AN61: - Seleccione - | AO61: 0 | AQ61: -Seleccione - | AV61: 0 | AW61: 0 | AX61: 2017-11-16 09:20:12 | AY61: -2.21098184 | AZ61: -79.90455627 | BA61: GPS | BB61: 8886104 | BC61: 2017-12-29 | BD61: 2017-11-16 | BE61: 11 | BF61: COSTA | BG61: 2018-02-10
A62: 140 | B62: 2017-11-09 | E62: C-Cecil Miranda | F62: Ingresar CI / RUC | G62: 100 | H62: LEON CEDEÑO FRANK FERNANDO | I62: LEON CEDEÑO FRANK FERNANDO | J62: Realizado | K62: VISITA MEDICA | M62: NO AUDIT | P62: 1 | Q62: MEDICINA GENERAL | R62: 959576050 | T62: fflc87@hotmail.com | U62: 27 de Febrero | V62: QUEVEDO | W62: NORMAL | X62: GIRA | Y62: Seguimiento a Convenio | AA62: SI | AB62: 0 | AD62: Entrego cupones de convenio | AF62: 2017-11-20 | AL62: - Seleccione - | AN62: - Seleccione - | AO62: 0 | AQ62: -Seleccione - | AV62: 0 | AW62: 0 | AX62: 2017-11-21 09:31:57 | AY62: -1.01728439 | AZ62: -79.46601104 | BA62: GPS | BB62: 8836681 | BC62: 2018-01-03 | BD62: 2017-11-21 | BE62: 11 | BF62: COSTA | BG62: 2018-02-15
A63: 141 | B63: 2017-11-09 | E63: C-Cecil Miranda | F63: 909031494 | G63: 101 | H63: LEON MAINGON EDUARDO JOFFRE | I63: LEON MAINGON EDUARDO JOFFRE | J63: Realizado | K63: VISITA MEDICA | M63: Q5 | P63: 1 | Q63: NEUROLOGIA | R63: 2260888 | V63: GUAYAQUIL | W63: NORMAL | X63: SEDE | Y63: Seguimiento a Convenio | AA63: SI | AB63: 0 | AD63: Entrego hoja de convenio | AF63: 2017-11-13 | AL63: - Seleccione - | AN63: - Seleccione - | AO63: 0 | AQ63: -Seleccione - | AV63: 0 | AW63: 0 | AX63: 2017-11-13 12:44:19 | AY63: -2.21316075 | AZ63: -79.89085388 | BA63: GPS | BB63: 8884583 | BC63: 2017-12-26 | BD63: 2017-11-13 | BE63: 11 | BF63: COSTA | BG63: 2018-02-07
A64: 142 | B64: 2017-11-09 | E64: C-Cecil Miranda | F64: 909798761 | G64: 102 | H64: LEON MUNOZ FRANCISCO EUGENIO | I64: LEON MUNOZ FRANCISCO EUGENIO | J64: Realizado | K64: VISITA MEDICA | M64: Q5 | P64: 1 | Q64: MEDICINA GENERAL | R64: 994686925 | T64: franciscoleon2012@hotmail.com | U64: 2 de Noviembre | V64: GUAYAQUIL | W64: NORMAL | X64: SEDE | Y64: Seguimiento a Convenio | AA64: SI | AB64: 0 | AD64: Entrego cupones de convenio | AF64: 2017-11-14 | AL64: - Seleccione - | AN64: - Seleccione - | AO64: 0 | AQ64: -Seleccione - | AV64: 0 | AW64: 0 | AX64: 2017-11-14 22:07:07 | AY64: -2.18638682 | AZ64: -79.99710845 | BA64: GPS | BB64: 8896369 | BC64: 2017-12-27 | BD64: 2017-11-14 | BE64: 11 | BF64: COSTA | BG64: 2018-02-08
A65: 143 | B65: 2017-11-09 | E65: C-Cecil Miranda | F65: Ingresar CI / RUC | G65: 103 | H65: LETAMENDI VALAREZO MARTHA TERESA | I65: LETAMENDI VALAREZO MARTHA TERESA | J65: Realizado | K65: VISITA MEDICA | M65: NO AUDIT | P65: 1 | Q65: GINECO-OBSTETRICIA | V65: GUAYAQUIL | W65: NORMAL | X65: SEDE | Y65: Seguimiento a Convenio | AA65: SI | AB65: 0 | AD65: Esta recetando meformina caberkana atormibe | AF65: 2017-11-10 | AL65: - Seleccione - | AN65: - Seleccione - | AO65: 0 | AQ65: -Seleccione - | AV65: 0 | AW65: 0 | AX65: 2018-01-04 | AY65: -2.19756317 | AZ65: -79.91122436 | BA65: GPS | BB65: 8886835 | BC65: 2018-01-04 | BD65: =DATE(YEAR(AX65),MONTH(AX65),DAY(AX65)) -> 2018-01-04 | BE65: 1 | BF65: =IF(LEFT(E65,1)="S","SIERRA","COSTA") -> COSTA | BG65: 2018-02-16
A66: 144 | B66: 2017-11-09 | E66: C-Cecil Miranda | F66: 909454050 | G66: 104 | H66: LITARDO QUIROZ HENRRY ARMANDO | I66: LITARDO QUIROZ HENRRY ARMANDO | J66: Realizado | K66: VISITA MEDICA | M66: Q5 | P66: 1 | Q66: MEDICINA INTERNA | R66: 994828828 | T66: lhenrryarmando@yahoo.com | U66: 4 de Mayo | V66: GUAYAQUIL | W66: NORMAL | X66: SEDE | Y66: Seguimiento a Convenio | AA66: SI | AB66: 0 | AD66: Entrego recetas y factura de convenio | AF66: 2017-11-13 | AL66: - Seleccione - | AN66: - Seleccione - | AO66: 0 | AQ66: -Seleccione - | AV66: 0 | AW66: 0 | AX66: 2017-11-13 15:47:52 | AY66: -2.2692933 | AZ66: -79.90376281 | BA66: GPS | BB66: 8886061 | BC66: 2017-12-26 | BD66: =DATE(YEAR(AX66),MONTH(AX66),DAY(AX66)) -> 2017-11-13 | BE66: =MONTH(AX66) -> 11 | BF66: COSTA | BG66: 2018-02-07
A67: 145 | B67: 2017-11-09 | E67: C-Cecil Miranda | F67: Ingresar CI / RUC | G67: 105 | H67: LLANES REVILLA OSVALDO | I67: LLANES REVILLA OSVALDO | J67: Realizado | K67: VISITA MEDICA | M67: Q5 | P67: 1 | Q67: GERIATRIA | R67: 998206334 | T67: ollanesrevilla@gmail.com | U67: 5 de Agosto | V67: GUAYAQUIL | X67: SEDE | Y67: Seguimiento a Convenio | AA67: SI | AB67: 0 | AD67: Entrego cupones de convenio | AF67: 2017-11-10 | AL67: - Seleccione - | AN67: - Seleccione - | AO67: 0 | AQ67: -Seleccione - | AV67: 0 | AW67: 0 | AX67: 2018-01-04 | AY67: -2.21182584 | AZ67: -79.89022827 | BA67: GPS | BB67: 8884513 | BC67: 2018-01-04 | BD67: 2018-01-04 | BE67: 1 | BF67: COSTA | BG67: =+BC67+43 -> 2018-02-16
A68: 146 | B68: 2017-11-09 | E68: C-Cecil Miranda | F68: Ingresar CI / RUC | G68: 106 | H68: LLERENA TOALA BLANCA ROSA | I68: LLERENA TOALA BLANCA ROSA | J68: Realizado | K68: VISITA MEDICA | M68: NO AUDIT | P68: 1 | Q68: CARDIOLOGIA | R68: 999389147 | T68: viancacar012001@yahoo.com | U68: 10 de Mayo | V68: GUAYAQUIL | X68: SEDE | Y68: Recordatorio de Producto | AA68: SI | AB68: 0 | AD68: Esta receyando berezo irbetan besarzid | AF68: 2017-11-14 | AL68: - Seleccione - | AN68: - Seleccione - | AO68: 0 | AQ68: -Seleccione - | AV68: 0 | AW68: 0 | AX68: 2017-11-14 15:58:13 | AY68: -2.21760463 | AZ68: -79.88910675 | BA68: GPS | BB68: 8884393 | BC68: 2017-12-27 | BD68: 2017-11-14 | BE68: 11 | BF68: COSTA | BG68: 2018-02-08
A69: 147 | B69: 2017-11-09 | E69: C-Cecil Miranda | F69: 908664451 | G69: 107 | H69: LOJA RIVERA VICTOR MANUEL | I69: LOJA RIVERA VICTOR MANUEL | J69: Realizado | K69: VISITA MEDICA | M69: Q3 | P69: 1 | Q69: CARDIOLOGIA | R69: 998446385 | T69: vmlr1964@gemail.com | U69: 19 de Septiembre | V69: GUAYAQUIL | X69: SEDE | Y69: Recordatorio de Producto | AA69: SI | AB69: 0 | AD69: Esta recetando berezo brsarzid irnrtan | AF69: 2017-11-14 | AL69: - Seleccione - | AN69: - Seleccione - | AO69: 0 | AQ69: -Seleccione - | AV69: 0 | AW69: 0 | AX69: 2017-11-16 11:29:07 | AY69: -2.21455502 | AZ69: -79.92524719 | BA69: GPS | BB69: 8888406 | BC69: 2017-12-29 | BD69: 2017-11-16 | BE69: 11 | BF69: COSTA | BG69: 2018-02-10
A70: 148 | B70: 2017-11-09 | E70: C-Cecil Miranda | F70: 914231279 | G70: 108 | H70: LUCAS ALVARADO JOFFRE ANGEL | I70: LUCAS ALVARADO JOFFRE ANGEL | J70: Realizado | K70: VISITA MEDICA | L70: 914231279 | M70: Q5 | N70: ANTAGONISTA+ARA II:PEXABREL A 50,00% MICARDIS AMLO 50,00%;// COX:DOLUX % // ESTATINAS:CRESTOR % // ANTIHISTAMINICOS:XUZAL % DEGRALER %;// ARAII:MICARDIS % | O70: 1 | P70: 1 | Q70: MEDICINA INTERNA | R70: 997131205 | S70: md5jala@yahoo.com | T70: md5jala@yahoo.com | U70: 25 de Septiembre | V70: BABAHOYO | W70: GIRA | X70: GIRA | Y70: Seguimiento a Convenio | AA70: SI | AB70: 0 | AD70: Esta utilizando meformina besazid kanazol | AF70: 2017-11-22 | AL70: - Seleccione - | AN70: - Seleccione - | AO70: 0 | AQ70: -Seleccione - | AV70: 0 | AW70: 0 | AX70: 2017-11-22 15:33:11 | AY70: -1.80007028 | AZ70: -79.52391815 | BA70: GPS | BB70: 8843515 | BC70: 2018-01-04 | BD70: 2017-11-22 | BE70: 11 | BF70: COSTA | BG70: 2018-02-16
A71: 149 | B71: 2017-11-09 | E71: C-Cecil Miranda | F71: 700747355 | G71: 109 | H71: MADERO TRELLES JULIO TEDDY | I71: MADERO TRELLES JULIO TEDDY | J71: Realizado | K71: VISITA MEDICA | M71: Q5 | P71: 1 | Q71: GINECO-OBSTETRICIA | R71: 999886897 | T71: jt.madero@hotmail.com | U71: 6 de Abril | V71: GUAYAQUIL | X71: SEDE | Y71: Recordatorio de Producto | AA71: SI | AB71: 0 | AD71: Esta recetando caberkana aciberkan | AF71: 2017-11-17 | AL71: - Seleccione - | AN71: - Seleccione - | AO71: 0 | AQ71: -Seleccione - | AV71: 0 | AW71: 0 | AX71: 2017-11-17 13:47:12 | AY71: -2.27052569 | AZ71: -79.89844512 | BA71: GPS | BB71: 8885471 | BC71: 2017-12-30 | BD71: 2017-11-17 | BE71: 11 | BF71: COSTA | BG71: 2018-02-11
A72: 151 | B72: 2017-11-09 | E72: C-Cecil Miranda | F72: 902222132 | G72: 111 | H72: MARCILLO RIVERA PEDRO EDILBERTO | I72: MARCILLO RIVERA PEDRO EDILBERTO | J72: Realizado | K72: VISITA MEDICA | M72: Q5 | P72: 1 | Q72: MEDICINA GENERAL | R72: 993055796 | T72: pedromarcillo52@gmail.com | U72: 20 de Enero | V72: GUAYAQUIL | X72: SEDE | Y72: Recordatorio de Producto | AA72: SI | AB72: 0 | AD72: Esta recetando kanazol celeridan | AF72: 2017-11-17 | AL72: - Seleccione - | AN72: - Seleccione - | AO72: 0 | AQ72: -Seleccione - | AV72: 0 | AW72: 0 | AX72: 2017-11-17 17:10:37 | AY72: -2.21548151 | AZ72: -79.926445 | BA72: GPS | BB72: 8888540 | BC72: 2017-12-30 | BD72: 2017-11-17 | BE72: 11 | BF72: COSTA | BG72: 2018-02-11
A73: 152 | B73: 2017-11-09 | E73: C-Cecil Miranda | F73: Ingresar CI / RUC | G73: 112 | H73: MARISCAL BONILLA GRACE JOHANA | I73: MARISCAL BONILLA GRACE JOHANA | J73: Realizado | K73: VISITA MEDICA | L73: TEMP0299 | M73: NO AUDIT | O73: 1 | P73: 1 | Q73: GINECO-OBSTETRICIA | U73: GUAYAQUIL | V73: GUAYAQUIL | W73: SEDE | X73: SEDE | Y73: Recordatorio de Producto | AA73: SI | AB73: 0 | AD73: Esta receyando caberkana celerodan | AF73: 2017-11-22 | AL73: - Seleccione - | AN73: - Seleccione - | AO73: 0 | AQ73: -Seleccione - | AV73: 0 | AW73: 0 | AX73: 2017-11-24 09:28:28 | AY73: -2.18798613 | AZ73: -79.89253997 | BA73: GPS | BB73: 8884752 | BC73: 2018-01-06 | BD73: 2017-11-24 | BE73: 11 | BF73: COSTA | BG73: 2018-02-18
A74: 156 | B74: 2017-11-09 | E74: C-Cecil Miranda | F74: 914659859 | G74: 116 | H74: MENDEZ CONTRERAS HECTOR RAFAEL | I74: MENDEZ CONTRERAS HECTOR RAFAEL | J74: Realizado | K74: VISITA MEDICA | M74: Q5 | P74: 1 | Q74: MEDICINA INTERNA | R74: 998221255 | T74: hector_mendez_71@yahoo.com | U74: 4 de Junio | V74: GUAYAQUIL | W74: NORMAL | X74: SEDE | Y74: Seguimiento a Convenio | AA74: SI | AB74: 0 | AD74: Se entrego cheque de suspicio | AF74: 2017-11-13 | AL74: - Seleccione - | AN74: - Seleccione - | AO74: 0 | AQ74: -Seleccione - | AV74: 0 | AW74: 0 | AX74: 2017-11-13 22:42:22 | AY74: -2.18638491 | AZ74: -79.99710083 | BA74: GPS | BB74: 8896369 | BC74: 2017-12-26 | BD74: 2017-11-13 | BE74: 11 | BF74: COSTA | BG74: 2018-02-07
A75: 157 | B75: 2017-11-09 | E75: C-Cecil Miranda | F75: 1203935109 | G75: 117 | H75: MENDOZA DOLBERG CHRISTIAN SEGUNDO | I75: MENDOZA DOLBERG CHRISTIAN SEGUNDO | J75: Realizado | K75: VISITA MEDICA | M75: Q3 | P75: 1 | Q75: MEDICINA GENERAL | R75: 968806378 | T75: crismedical11@gmail.com | U75: 11de Octubre | V75: VINCES | X75: GIRA | Y75: Recordatorio de Producto | AA75: SI | AB75: 0 | AD75: Esta recetando atormibe fenfikan | AF75: 2017-11-20 | AL75: - Seleccione - | AN75: - Seleccione - | AO75: 0 | AQ75: -Seleccione - | AV75: 0 | AW75: 0 | AX75: 2017-11-20 13:26:38 | AY75: -1.55806648 | AZ75: -79.75445556 | BA75: GPS | BB75: 8868994 | BC75: 2018-01-02 | BD75: 2017-11-20 | BE75: 11 | BF75: COSTA | BG75: 2018-02-14
A76: 159 | B76: 2017-11-09 | E76: C-Cecil Miranda | F76: 916645146 | G76: 119 | H76: MENDOZA TORRES JOSE ALBERTO | I76: MENDOZA TORRES JOSE ALBERTO | J76: Realizado | K76: VISITA MEDICA | M76: Q1 | P76: 1 | Q76: MEDICINA GENERAL | R76: 994921853 | T76: drjosemendozatorres@hotmail.com | U76: 16 de Junio | V76: QUEVEDO | X76: GIRA | Y76: Recordatorio de Producto | AA76: SI | AB76: 0 | AD76: Esta recetando berezo irbetan atormibe | AF76: 2017-11-20 | AL76: - Seleccione - | AN76: - Seleccione - | AO76: 0 | AQ76: -Seleccione - | AV76: 0 | AW76: 0 | AX76: 2017-11-21 09:17:44 | AY76: -1.029078 | AZ76: -79.47044372 | BA76: GPS | BB76: 8837178 | BC76: 2018-01-03 | BD76: 2017-11-21 | BE76: 11 | BF76: COSTA | BG76: 2018-02-15
A77: 160 | B77: 2017-11-09 | E77: C-Cecil Miranda | F77: 1310473416 | G77: 120 | H77: MERA BRAVO GEOVANNY ENRIQUE | I77: MERA BRAVO GEOVANNY ENRIQUE | J77: Realizado | K77: VISITA MEDICA | M77: NO AUDIT | P77: 1 | Q77: CARDIOLOGIA | R77: 987776427 | T77: geomebra82@gemail.com | U77: 6 de Febrero | V77: GUAYAQUIL | X77: SEDE | Y77: Recordatorio de Producto | AA77: SI | AB77: 0 | AD77: Esta recetando berezo irbetsn besarzid | AF77: 2017-11-16 | AL77: - Seleccione - | AN77: - Seleccione - | AO77: 0 | AQ77: -Seleccione - | AV77: 0 | AW77: 0 | AX77: 2017-11-16 16:46:17 | AY77: -2.21047329 | AZ77: -79.93107604 | BA77: GPS | BB77: 8889050 | BC77: 2017-12-29 | BD77: 2017-11-16 | BE77: 11 | BF77: COSTA | BG77: 2018-02-10
A78: 162 | B78: 2017-11-09 | E78: C-Cecil Miranda | F78: 916654684 | G78: 122 | H78: MOGRONEDA MARINO MIGUEL EDWIN | I78: MOGRONEDA MARINO MIGUEL EDWIN | J78: Realizado | K78: VISITA MEDICA | M78: Q5 | P78: 1 | Q78: MEDICINA GENERAL | R78: 996726130 | T78: miguelmm1970@hotmail.com | U78: 26 de Enero | V78: GUAYAQUIL | W78: NORMAL | X78: SEDE | Y78: Seguimiento a Convenio | AA78: SI | AB78: 0 | AD78: Esta recetando atormibe aciberkan | AF78: 2017-11-13 | AL78: - Seleccione - | AN78: - Seleccione - | AO78: 0 | AQ78: -Seleccione - | AV78: 0 | AW78: 0 | AX78: 2017-11-13 22:46:34 | AY78: -2.18642568 | AZ78: -79.99713897 | BA78: GPS | BB78: 8896373 | BC78: 2017-12-26 | BD78: 2017-11-13 | BE78: 11 | BF78: COSTA | BG78: 2018-02-07
A79: 164 | B79: 2017-11-09 | E79: C-Cecil Miranda | F79: 905871232 | G79: 124 | H79: MONCAYO CARDENAS PATRICIA VICTORIA | I79: MONCAYO CARDENAS PATRICIA VICTORIA | J79: Realizado | K79: VISITA MEDICA | M79: Q5 | P79: 1 | Q79: MEDICINA GENERAL | R79: 994027651 | T79: yunnayzury@hotmail.com | U79: 25 de Febrero | V79: QUEVEDO | W79: NORMAL | X79: GIRA | Y79: Seguimiento a Convenio | AA79: SI | AB79: 0 | AD79: Esta recetando atormibe zolvastin aciberkan | AF79: 2017-11-20 | AL79: - Seleccione - | AN79: - Seleccione - | AO79: 0 | AQ79: -Seleccione - | AV79: 0 | AW79: 0 | AX79: 2017-11-20 18:16:35 | AY79: -1.02985048 | AZ79: -79.46928405 | BA79: GPS | BB79: 8837049 | BC79: 2018-01-02 | BD79: 2017-11-20 | BE79: 11 | BF79: COSTA | BG79: 2018-02-14
A80: 165 | B80: 2017-11-09 | E80: C-Cecil Miranda | F80: 1200785531 | G80: 125 | H80: MONROY YONG FERNANDO NAPOLEON | I80: MONROY YONG FERNANDO NAPOLEON | J80: Realizado | K80: VISITA MEDICA | M80: Q5 | P80: 1 | Q80: ENDOCRINOLOGIA | R80: 981733539 | T80: drfernandomonroy@hotmail.com | U80: 9 de Mayo | V80: GUAYAQUIL | W80: NORMAL | X80: SEDE | Y80: Seguimiento a Convenio | AA80: SI | AB80: 0 | AD80: Enyrego recetas de convenio | AF80: 2017-11-10 | AL80: - Seleccione - | AN80: - Seleccione - | AO80: 0 | AQ80: -Seleccione - | AV80: 0 | AW80: 0 | AX80: 2018-01-04 | AY80: -2.19924306 | AZ80: -79.9015274 | BA80: GPS | BB80: 8885759 | BC80: 2018-01-04 | BD80: 2018-01-04 | BE80: 1 | BF80: COSTA | BG80: 2018-02-16
A81: 166 | B81: 2017-11-09 | E81: C-Cecil Miranda | F81: 907485098 | G81: 126 | H81: MONTERO PINTO JAIME JORGE | I81: MONTERO PINTO JAIME JORGE | J81: Realizado | K81: VISITA MEDICA | M81: Q5 | P81: 1 | Q81: CIRUGIA GENERAL | R81: 994552859 | T81: Jmonteropinto@hotmail.com | U81: 23 de Abril | V81: GUAYAQUIL | X81: SEDE | Y81: Recordatorio de Producto | AA81: SI | AB81: 0 | AD81: Esta utilizando irbetan atormibe | AF81: 2017-11-14 | AL81: - Seleccione - | AN81: - Seleccione - | AO81: 0 | AQ81: -Seleccione - | AV81: 0 | AW81: 0 | AX81: 2017-11-16 10:21:08 | AY81: -2.21263694 | AZ81: -79.90467071 | BA81: GPS | BB81: 8886118 | BC81: 2017-12-29 | BD81: 2017-11-16 | BE81: 11 | BF81: COSTA | BG81: 2018-02-10
A82: 167 | B82: 2017-11-09 | E82: C-Cecil Miranda | F82: 1203599590 | G82: 127 | H82: MONTES ZAVALA MARX WLADIMIR | I82: MONTES ZAVALA MARX WLADIMIR | J82: Realizado | K82: VISITA MEDICA | M82: Q4 | P82: 1 | Q82: REUMATOLOGIA | R82: 993644713 | T82: marxwladimir@yahoo.es | U82: 10 de Mayo | V82: QUEVEDO | W82: NORMAL | X82: GIRA | Y82: Seguimiento a Convenio | AA82: SI | AB82: 0 | AD82: Entrego cupones de convenio | AF82: 2017-11-20 | AL82: - Seleccione - | AN82: - Seleccione - | AO82: 0 | AQ82: -Seleccione - | AV82: 0 | AW82: 0 | AX82: 2017-11-20 16:27:53 | AY82: -1.01892411 | AZ82: -79.4699707 | BA82: GPS | BB82: 8837122 | BC82: 2018-01-02 | BD82: 2017-11-20 | BE82: 11 | BF82: COSTA | BG82: 2018-02-14
A83: 168 | B83: 2017-11-09 | E83: C-Cecil Miranda | F83: Ingresar CI / RUC | G83: 128 | H83: MORALES ARAUS DIEGO ARMANDO | I83: MORALES ARAUS DIEGO ARMANDO | J83: Realizado | K83: VISITA MEDICA | M83: NO AUDIT | P83: 1 | Q83: MEDICINA INTERNA | R83: 967841078 | T83: dr.diegomorales19@hotmail.com | U83: 9 de Octubre | V83: QUEVEDO | W83: NORMAL | X83: GIRA | Y83: Seguimiento a Convenio | AA83: SI | AB83: 0 | AD83: Entrego cupones de convenio | AF83: 2017-11-20 | AL83: - Seleccione - | AN83: - Seleccione - | AO83: 0 | AQ83: -Seleccione - | AV83: 0 | AW83: 0 | AX83: 2017-11-21 10:28:35 | AY83: -1.02952992 | AZ83: -79.46775054 | BA83: GPS | BB83: 8836879 | BC83: 2018-01-03 | BD83: 2017-11-21 | BE83: 11 | BF83: COSTA | BG83: 2018-02-15
A84: 171 | B84: 2017-11-09 | E84: C-Cecil Miranda | F84: 1706702154 | G84: 131 | H84: MORENO ESPINOZA ANTONIO RIGOBERTO | I84: MORENO ESPINOZA ANTONIO RIGOBERTO | J84: Realizado | K84: VISITA MEDICA | M84: Q3 | P84: 1 | Q84: MEDICINA GENERAL | R84: 992489545 | T84: rby_000@hotmail.com | U84: 18 de Septiembre | V84: BABAHOYO | W84: NORMAL | X84: GIRA | Y84: Seguimiento a Convenio | AA84: SI | AB84: 0 | AD84: Esta recetando atormibe fenfikan | AF84: 2017-11-20 | AL84: - Seleccione - | AN84: - Seleccione - | AO84: 0 | AQ84: -Seleccione - | AV84: 0 | AW84: 0 | AX84: 2017-11-22 14:14:54 | AY84: -1.79786252 | AZ84: -79.52989959 | BA84: GPS | BB84: 8844178 | BC84: 2018-01-04 | BD84: 2017-11-22 | BE84: 11 | BF84: COSTA | BG84: 2018-02-16
A85: 172 | B85: 2017-11-09 | E85: C-Cecil Miranda | F85: Ingresar CI / RUC | G85: 132 | H85: MOSCOSO MUÑOZ ROGER OMAR | I85: MOSCOSO MUÑOZ ROGER OMAR | J85: Realizado | K85: VISITA MEDICA | M85: NO AUDIT | P85: 1 | Q85: MEDICINA GENERAL | R85: 999428633 | T85: rogermoscoso_@hotmail.com | U85: 7 de Febrero | V85: VINCES | X85: GIRA | Y85: Recordatorio de Producto | AA85: SI | AB85: 0 | AD85: Esta utilizando caberkana atormibe | AF85: 2017-11-20 | AL85: - Seleccione - | AN85: - Seleccione - | AO85: 0 | AQ85: -Seleccione - | AV85: 0 | AW85: 0 | AX85: 2017-11-20 13:37:18 | AY85: -1.55783152 | AZ85: -79.75450897 | BA85: GPS | BB85: 8869000 | BC85: 2018-01-02 | BD85: 2017-11-20 | BE85: 11 | BF85: COSTA | BG85: 2018-02-14
A86: 173 | B86: 2017-11-09 | E86: C-Cecil Miranda | F86: 907625768 | G86: 133 | H86: MOYA CEDILLO SILVIO ALBERTO | I86: MOYA CEDILLO SILVIO ALBERTO | J86: Realizado | K86: VISITA MEDICA | M86: Q5 | P86: 1 | Q86: GINECO-OBSTETRICIA | R86: 996004764 | T86: silvio.moya.0346@outlook.es | U86: 11 de Enero | V86: GUAYAQUIL | X86: SEDE | Y86: Recordatorio de Producto | AA86: SI | AB86: 0 | AD86: Esta recetando meformina caberkana | AF86: 2017-11-17 | AL86: - Seleccione - | AN86: - Seleccione - | AO86: 0 | AQ86: -Seleccione - | AV86: 0 | AW86: 0 | AX86: 2017-11-17 13:39:56 | AY86: -2.26888871 | AZ86: -79.9022293 | BA86: GPS | BB86: 8885890 | BC86: 2017-12-30 | BD86: 2017-11-17 | BE86: 11 | BF86: COSTA | BG86: 2018-02-11
A87: 174 | B87: 2017-11-09 | E87: C-Cecil Miranda | F87: 904219698 | G87: 134 | H87: MUNOZ MACIAS JUAN JOSE | I87: MUNOZ MACIAS JUAN JOSE | J87: Realizado | K87: VISITA MEDICA | M87: NO AUDIT | P87: 1 | Q87: MEDICINA GENERAL | R87: 989891583 | T87: juanjosemm1950@hotmail.com | U87: 3 de Julio | V87: VINCES | X87: GIRA | Y87: Recordatorio de Producto | AA87: SI | AB87: 0 | AD87: Esta utilizando atormibe fenfikan | AF87: 2017-11-20 | AL87: - Seleccione - | AN87: - Seleccione - | AO87: 0 | AQ87: -Seleccione - | AV87: 0 | AW87: 0 | AX87: 2017-11-20 10:05:55 | AY87: -1.55666959 | AZ87: -79.75553131 | BA87: GPS | BB87: 8869113 | BC87: 2018-01-02 | BD87: 2017-11-20 | BE87: 11 | BF87: COSTA | BG87: 2018-02-14
A88: 178 | B88: 2017-11-09 | E88: C-Cecil Miranda | F88: Ingresar CI / RUC | G88: 138 | H88: MURRIETA CALDERON LEONOR ELIZABETH | I88: MURRIETA CALDERON LEONOR ELIZABETH | J88: Realizado | K88: VISITA MEDICA | M88: Q5 | P88: 1 | Q88: MEDICINA GENERAL | R88: 992969415 | T88: leonor_muri@hotmail.com | U88: 6 de Septiembre | V88: GUAYAQUIL | W88: NORMAL | X88: SEDE | Y88: Seguimiento a Convenio | AA88: SI | AB88: 0 | AD88: Entrego hoja de convenio | AF88: 2017-11-14 | AL88: - Seleccione - | AN88: - Seleccione - | AO88: 0 | AQ88: -Seleccione - | AV88: 0 | AW88: 0 | AX88: 2017-11-14 16:56:43 | AY88: -2.19895815 | AZ88: -79.92675018 | BA88: GPS | BB88: 8888561 | BC88: 2017-12-27 | BD88: 2017-11-14 | BE88: 11 | BF88: COSTA | BG88: 2018-02-08
A89: 179 | B89: 2017-11-09 | E89: C-Cecil Miranda | F89: 906165501 | G89: 139 | H89: NARANJO PACHECO SIXTO RENE | I89: NARANJO PACHECO SIXTO RENE | J89: Realizado | K89: VISITA MEDICA | L89: 906165501 | M89: Q2 | N89: ARAII:DIOVAN 52,78% COZAAR 9,72%;APROVEL 8,33%;OLMETEC 6,94%;LOSARTAN 6,94%;// COX:COLCIBRA 57,14% ARCOXIA 41,07%;CELEBREX 1,79%;DOLOCOX 0,00%;DOLUX 0,00%;CELERIDAN 0,00%;// CORTICOESTERIODES:METICORTEN 85,42% PREDNIMAX 6,25%;AFLAZACORT 6,25%;MEDROL 2,08%;// ANTIHISTAMINICOS:ALERCET 21,05% DEGRALER 21,05%;ALERTAN 12,28%;ALLEGRA 8,77%;// ESTATINAS:ATROLIP 46,15% ZOLVASTIN 15,38%;SIMVAST 7,69%;ROSUVASTATINA MK 7,69%;LIPITOR 7,69%;ROSLIPID 7,69%;ROSUVASTATINA GA 7,69%; | O89: ESTATINAS:ZOLVASTIN 15,38% ROSLIPID 7,69%;// ESTATINAS_COMB:ATORMIBE 37,50% // IBANDRON:ACIBERKAN 16,67% // ARAII+TIACIDA:BESARZID 3,13% // ARAII:IRBETAN 1,39% | P89: 1/2 | Q89: MEDICINA GENERAL | U89: GUAYAQUIL | V89: GUAYAQUIL | W89: SEDE | X89: SEDE | Y89: - Seleccione - | AA89: SI | AB89: 0 | AD89: Esta recdtandi irbetan besarzid | AF89: 2017-11-22 | AL89: - Seleccione - | AN89: - Seleccione - | AO89: 0 | AQ89: -Seleccione - | AV89: 0 | AW89: 0 | AX89: 2017-11-24 10:20:45 | AY89: -2.21996474 | AZ89: -79.91389465 | BA89: GPS | BB89: 8887149 | BC89: 2018-01-06 | BD89: 2017-11-24 | BE89: 11 | BF89: COSTA | BG89: 2018-02-18
A90: 181 | B90: 2017-11-09 | E90: C-Cecil Miranda | F90: 1201649421 | G90: 141 | H90: NARANJO PORTILLA PEDRO VICENTE | I90: NARANJO PORTILLA PEDRO VICENTE | J90: Realizado | K90: VISITA MEDICA | M90: NO AUDIT | P90: 1 | Q90: GINECO-OBSTETRICIA | R90: 988755922 | T90: drpedronaranjo@gmail.com | U90: 3 de Febrero | V90: BABAHOYO | W90: NORMAL | X90: GIRA | Y90: Seguimiento a Convenio | AA90: SI | AB90: 0 | AD90: Se entrego cheque de convenio con daniel | AF90: 2017-11-20 | AL90: - Seleccione - | AN90: - Seleccione - | AO90: 0 | AQ90: -Seleccione - | AV90: 0 | AW90: 0 | AX90: 2017-11-22 13:50:02 | AY90: -1.79788744 | AZ90: -79.52990722 | BA90: GPS | BB90: 8844179 | BC90: 2018-01-04 | BD90: 2017-11-22 | BE90: 11 | BF90: COSTA | BG90: 2018-02-16
A91: 182 | B91: 2017-11-09 | E91: C-Cecil Miranda | F91: 908309677 | G91: 142 | H91: NARANJO SALGUERO JORGE WILLIAM | I91: NARANJO SALGUERO JORGE WILLIAM | J91: Realizado | K91: VISITA MEDICA | M91: Q5 | P91: 1 | Q91: NEUROLOGIA | R91: 994282931 | T91: jnaranjo_neurologo@hotmail.es. | U91: 31 de Agosto | V91: GUAYAQUIL | W91: NORMAL | X91: SEDE | Y91: Seguimiento a Convenio | AA91: SI | AB91: 0 | AD91: Entrego hoja de convenio | AF91: 2017-11-10 | AL91: - Seleccione - | AN91: - Seleccione - | AO91: 0 | AQ91: -Seleccione - | AV91: 0 | AW91: 0 | AX91: 2018-01-04 | AY91: -2.15736842 | AZ91: -79.89133453 | BA91: GPS | BB91: 8884595 | BC91: 2018-01-04 | BD91: 2018-01-04 | BE91: 1 | BF91: COSTA | BG91: 2018-02-16
A92: 183 | B92: 2017-11-09 | E92: C-Cecil Miranda | F92: 902217751 | G92: 143 | H92: NAVARRETE MORAN JUANA DE LA CRUZ | I92: NAVARRETE MORAN JUANA DE LA CRUZ | J92: Realizado | K92: VISITA MEDICA | M92: NO AUDIT | P92: 1 | Q92: NO ESPECIFICADA | R92: 994630490 | T92: juanacruz578@hotmail.com | U92: 5 de Marzo | V92: GUAYAQUIL | X92: SEDE | Y92: Recordatorio de Producto | AA92: SI | AB92: 0 | AD92: Esta recetando zolvastin meformina | AF92: 2017-11-13 | AL92: - Seleccione - | AN92: - Seleccione - | AO92: 0 | AQ92: -Seleccione - | AV92: 0 | AW92: 0 | AX92: 2017-11-13 22:27:36 | AY92: -2.18638682 | AZ92: -79.99710845 | BA92: GPS | BB92: 8896369 | BC92: 2017-12-26 | BD92: 2017-11-13 | BE92: 11 | BF92: COSTA | BG92: 2018-02-07
A93: 186 | B93: 2017-11-09 | E93: C-Cecil Miranda | F93: 904478971 | G93: 146 | H93: OLVERA FREDDY ATENOR | I93: OLVERA FREDDY ATENOR | J93: Realizado | K93: VISITA MEDICA | M93: Q5 | P93: 1 | Q93: CARDIOLOGIA | V93: GUAYAQUIL | W93: NORMAL | X93: SEDE | Y93: Seguimiento a Convenio | AA93: SI | AB93: 0 | AD93: Entrego cupones de convenio | AF93: 2017-11-13 | AL93: - Seleccione - | AN93: - Seleccione - | AO93: 0 | AQ93: -Seleccione - | AV93: 0 | AW93: 0 | AX93: 2017-11-13 22:06:40 | AY93: -2.18645429 | AZ93: -79.9971466 | BA93: GPS | BB93: 8896374 | BC93: 2017-12-26 | BD93: 2017-11-13 | BE93: 11 | BF93: COSTA | BG93: 2018-02-07
A94: 188 | B94: 2017-11-09 | E94: C-Cecil Miranda | F94: 908571904 | G94: 148 | H94: ORRALA MOROCHO DICK ROBINSON | I94: ORRALA MOROCHO DICK ROBINSON | J94: Realizado | K94: VISITA MEDICA | M94: Q5 | P94: 1 | Q94: CARDIOLOGIA | R94: 998468194 | T94: dickdiego1@hotmail.com | U94: 20 de Febrero | V94: GUAYAQUIL | X94: SEDE | Y94: Recordatorio de Producto | AA94: SI | AB94: 0 | AD94: Esta recetando warfarina rosuvina atormibe | AF94: 2017-11-16 | AL94: - Seleccione - | AN94: - Seleccione - | AO94: 0 | AQ94: -Seleccione - | AV94: 0 | AW94: 0 | AX94: 2017-11-16 15:49:47 | AY94: -2.21235322 | AZ94: -79.93074798 | BA94: GPS | BB94: 8889015 | BC94: 2017-12-29 | BD94: 2017-11-16 | BE94: 11 | BF94: COSTA | BG94: 2018-02-10
A95: 193 | B95: 2017-11-09 | E95: C-Cecil Miranda | F95: 919369256 | G95: 153 | H95: PALMA MENDIETA FRANK ELEUTERIO | I95: PALMA MENDIETA FRANK ELEUTERIO | J95: Realizado | K95: VISITA MEDICA | M95: Q2 | P95: 1 | Q95: MEDICINA GENERAL | R95: 991249950 | V95: GUAYAQUIL | X95: SEDE | Y95: Seguimiento a Convenio | AA95: SI | AB95: 0 | AD95: Esta recetando atormibe zolvastin | AF95: 2017-11-13 | AL95: - Seleccione - | AN95: - Seleccione - | AO95: 0 | AQ95: -Seleccione - | AV95: 0 | AW95: 0 | AX95: 2017-11-13 17:26:24 | AY95: -2.2089672 | AZ95: -79.9093399 | BA95: GPS | BB95: 8886634 | BC95: 2017-12-26 | BD95: 2017-11-13 | BE95: 11 | BF95: COSTA | BG95: 2018-02-07
A96: 195 | B96: 2017-11-09 | E96: C-Cecil Miranda | F96: 1207812069 | G96: 155 | H96: PERALTA MONTERO VENUS ANNABELLE | I96: PERALTA MONTERO VENUS ANNABELLE | J96: Realizado | K96: VISITA MEDICA | M96: Q5 | P96: 1 | Q96: OBSTETRICIA | R96: 997834879 | T96: obst_peraltam@hotmail.com | U96: 17 de Abril | V96: VINCES | W96: NORMAL | X96: GIRA | Y96: Seguimiento a Convenio | AA96: SI | AB96: 0 | AD96: Se entrego cheque de convenio | AF96: 2017-11-20 | AL96: - Seleccione - | AN96: - Seleccione - | AO96: 0 | AQ96: -Seleccione - | AV96: 0 | AW96: 0 | AX96: 2017-11-20 09:24:11 | AY96: -1.55696141 | AZ96: -79.75558471 | BA96: GPS | BB96: 8869119 | BC96: 2018-01-02 | BD96: 2017-11-20 | BE96: 11 | BF96: COSTA | BG96: 2018-02-14
A97: 196 | B97: 2017-11-09 | E97: C-Cecil Miranda | F97: 909821951 | G97: 156 | H97: PEREZ ARMAS VICTOR FABIAN | I97: PEREZ ARMAS VICTOR FABIAN | J97: Realizado | K97: VISITA MEDICA | M97: Q5 | P97: 1 | Q97: MEDICINA INTERNA | R97: 999188394 | T97: dvicfap@hotmail.com | U97: 7 de Abril | V97: GUAYAQUIL | W97: NORMAL | X97: SEDE | Y97: Seguimiento a Convenio | AA97: SI | AB97: 0 | AD97: Esta recetando fenfikan atormibe | AF97: 2017-11-13 | AL97: - Seleccione - | AN97: - Seleccione - | AO97: 0 | AQ97: -Seleccione - | AV97: 0 | AW97: 0 | AX97: 2017-11-13 21:54:20 | AY97: -2.1863923 | AZ97: -79.99710845 | BA97: GPS | BB97: 8896369 | BC97: 2017-12-26 | BD97: 2017-11-13 | BE97: 11 | BF97: COSTA | BG97: 2018-02-07
A98: 197 | B98: 2017-11-09 | E98: C-Cecil Miranda | F98: 1711126639 | G98: 157 | H98: PEREZ IRUSTA FREDDY | I98: PEREZ IRUSTA FREDDY | J98: Realizado | K98: VISITA MEDICA | M98: Q5 | P98: 1 | Q98: MEDICINA GENERAL | R98: 993351627 | T98: martin_16irusta@hotmail.com | U98: 28 de Abril | V98: VINCES | W98: CLUB 100 | X98: GIRA | Y98: Recordatorio de Producto | AA98: SI | AB98: 0 | AD98: Esta utilizando atormibe fenfikan | AF98: 2017-11-20 | AL98: - Seleccione - | AN98: - Seleccione - | AO98: 0 | AQ98: -Seleccione - | AV98: 0 | AW98: 0 | AX98: 2017-11-20 10:40:45 | AY98: -1.55322313 | AZ98: -79.75078582 | BA98: GPS | BB98: 8868584 | BC98: 2018-01-02 | BD98: 2017-11-20 | BE98: 11 | BF98: COSTA | BG98: 2018-02-14
A99: 198 | B99: 2017-11-09 | E99: C-Cecil Miranda | F99: 908596380 | G99: 158 | H99: PESANTES CAPUTI CARLOS MANUEL | I99: PESANTES CAPUTI CARLOS MANUEL | J99: Realizado | K99: VISITA MEDICA | M99: Q5 | P99: 1 | Q99: MEDICINA GENERAL | R99: 994334860 | T99: carlospesantes62@gmail.com | U99: 24 de Diciembre | V99: BABAHOYO | W99: NORMAL | X99: GIRA | Y99: Seguimiento a Convenio | AA99: SI | AB99: 0 | AD99: Entrego cupones de convenio | AF99: 2017-11-13 | AL99: - Seleccione - | AN99: - Seleccione - | AO99: 0 | AQ99: -Seleccione - | AV99: 0 | AW99: 0 | AX99: 2017-11-14 09:20:18 | AY99: -2.25064682 | AZ99: -79.89914703 | BA99: GPS | BB99: 8885534 | BC99: 2017-12-27 | BD99: 2017-11-14 | BE99: 11 | BF99: COSTA | BG99: 2018-02-08
A100: 200 | B100: 2017-11-09 | E100: C-Cecil Miranda | F100: 910166511 | G100: 160 | H100: QUINDE PINGUIL DORIS YOBANA | I100: QUINDE PINGUIL DORIS YOBANA | J100: Realizado | K100: VISITA MEDICA | M100: Q5 | P100: 1 | Q100: MEDICINA GENERAL | R100: 939363680 | T100: quindedoris@hotmail.com | U100: 7 de Septiembre | V100: EL EMPALME | X100: GIRA | Y100: Recordatorio de Producto | AA100: SI | AB100: 0 | AD100: Esta recetando irbetan atormibe | AF100: 2017-11-20 | AL100: - Seleccione - | AN100: - Seleccione - | AO100: 0 | AQ100: -Seleccione - | AV100: 0 | AW100: 0 | AX100: 2017-11-21 11:54:38 | AY100: -1.04227447 | AZ100: -79.63629913 | BA100: GPS | BB100: 8855623 | BC100: 2018-01-03 | BD100: 2017-11-21 | BE100: 11 | BF100: COSTA | BG100: 2018-02-15
A101: 201 | B101: 2017-11-09 | E101: C-Cecil Miranda | F101: Ingresar CI / RUC | G101: 161 | H101: QUIROZ SALVADERA DOUGLAS | I101: QUIROZ SALVADERA DOUGLAS | J101: Realizado | K101: VISITA MEDICA | M101: Q5 | P101: 1 | Q101: MEDICINA GENERAL | R101: 910081207 | T101: duglas61980@hotmail.com | U101: 6 de Octubre | V101: EL EMPALME | W101: NORMAL | X101: GIRA | Y101: Seguimiento a Convenio | AA101: SI | AB101: 0 | AD101: Esta receyando atormibe aciberkan | AF101: 2017-11-20 | AL101: - Seleccione - | AN101: - Seleccione - | AO101: 0 | AQ101: -Seleccione - | AV101: 0 | AW101: 0 | AX101: 2017-11-21 12:57:40 | AY101: -1.03512632 | AZ101: -79.66094207 | BA101: GPS | BB101: 8858360 | BC101: 2018-01-03 | BD101: 2017-11-21 | BE101: 11 | BF101: COSTA | BG101: 2018-02-15
A102: 202 | B102: 2017-11-09 | E102: C-Cecil Miranda | F102: Ingresar CI / RUC | G102: 162 | H102: RAMIREZ QUIMI ORLANDO | I102: RAMIREZ QUIMI ORLANDO | J102: Realizado | K102: VISITA MEDICA | L102: T00657 | M102: NO AUDIT | O102: 1 | P102: 1 | Q102: ODONTOLOGIA | U102: BABAHOYO | V102: BABAHOYO | W102: NORMAL | X102: GIRA | Y102: Seguimiento a Convenio | AA102: SI | AB102: 0 | AD102: Entrego cupones de convenio | AF102: 2017-11-22 | AL102: - Seleccione - | AN102: - Seleccione - | AO102: 0 | AQ102: -Seleccione - | AV102: 0 | AW102: 0 | AX102: 2017-11-22 14:42:56 | AY102: -1.80551171 | AZ102: -79.5233612 | BA102: GPS | BB102: 8843456 | BC102: 2018-01-04 | BD102: 2017-11-22 | BE102: 11 | BF102: COSTA | BG102: 2018-02-16
A103: 203 | B103: 2017-11-09 | E103: C-Cecil Miranda | F103: Ingresar CI / RUC | G103: 163 | H103: RENELA MASACHE ELAINE MARIA | I103: RENELA MASACHE ELAINE MARIA | J103: Realizado | K103: VISITA MEDICA | M103: NO AUDIT | P103: 1 | Q103: ODONTOLOGIA | R103: 981037520 | T103: elainerennella@hotmail.com | V103: GUAYAQUIL | W103: NORMAL | X103: SEDE | Y103: Seguimiento a Convenio | AA103: SI | AB103: 0 | AD103: Entrego cupones de conveni | AF103: 2017-11-13 | AL103: - Seleccione - | AN103: - Seleccione - | AO103: 0 | AQ103: -Seleccione - | AV103: 0 | AW103: 0 | AX103: 2017-11-13 22:23:43 | AY103: -2.1864078 | AZ103: -79.99711608 | BA103: GPS | BB103: 8896370 | BC103: 2017-12-26 | BD103: 2017-11-13 | BE103: 11 | BF103: COSTA | BG103: 2018-02-07
A104: 204 | B104: 2017-11-09 | E104: C-Cecil Miranda | F104: 701283384 | G104: 164 | H104: REYES ASANZA CARLOS RAMIRO | I104: REYES ASANZA CARLOS RAMIRO | J104: Realizado | K104: VISITA MEDICA | M104: Q5 | P104: 1 | Q104: MEDICINA INTERNA | R104: 994800378 | T104: drcareas@hotmail.com | U104: 24 de Diciembre | V104: GUAYAQUIL | W104: NORMAL | X104: SEDE | Y104: Seguimiento a Convenio | AA104: SI | AB104: 0 | AD104: Entrego hoja de convenio | AF104: 2017-11-13 | AL104: - Seleccione - | AN104: - Seleccione - | AO104: 0 | AQ104: -Seleccione - | AV104: 0 | AW104: 0 | AX104: 2017-11-13 11:32:41 | AY104: -2.17834997 | AZ104: -79.88591766 | BA104: GPS | BB104: 8884008 | BC104: 2017-12-26 | BD104: 2017-11-13 | BE104: 11 | BF104: COSTA | BG104: 2018-02-07
A105: 205 | B105: 2017-11-09 | E105: C-Cecil Miranda | F105: 101253763 | G105: 165 | H105: REYES VALAREZO OSWALDO VICENTE | I105: REYES VALAREZO OSWALDO VICENTE | J105: Realizado | K105: VISITA MEDICA | M105: Q4 | P105: 1 | Q105: MEDICINA INTERNA | R105: 993041082 | T105: remyesv1982@hotmail.com | U105: 4 de Agosto | V105: QUEVEDO | X105: GIRA | Y105: Recordatorio de Producto | AA105: SI | AB105: 0 | AD105: En este mes va receyar berezo hidroxicloroquina | AF105: 2017-11-20 | AL105: - Seleccione - | AN105: - Seleccione - | AO105: 0 | AQ105: -Seleccione - | AV105: 0 | AW105: 0 | AX105: 2017-11-20 17:38:55 | AY105: -1.0317378 | AZ105: -79.46962738 | BA105: GPS | BB105: 8837088 | BC105: 2018-01-02 | BD105: 2017-11-20 | BE105: 11 | BF105: COSTA | BG105: 2018-02-14
A106: 207 | B106: 2017-11-09 | E106: C-Cecil Miranda | F106: 1705249652 | G106: 167 | H106: RIVAS CASTRO LEOPOLDO ALEJANDRO | I106: RIVAS CASTRO LEOPOLDO ALEJANDRO | J106: Realizado | K106: VISITA MEDICA | M106: Q5 | P106: 1 | Q106: MEDICINA INTERNA | R106: 999964654 | T106: dralejandrorivas@gmail.com | U106: 9 de Enero | V106: GUAYAQUIL | X106: SEDE | Y106: Recordatorio de Producto | AA106: SI | AB106: 0 | AD106: Esta utilizando meformina hidroxicloroquina | AF106: 2017-11-13 | AL106: - Seleccione - | AN106: - Seleccione - | AO106: 0 | AQ106: -Seleccione - | AV106: 0 | AW106: 0 | AX106: 2017-11-13 14:42:48 | AY106: -2.26804542 | AZ106: -79.90259552 | BA106: GPS | BB106: 8885930 | BC106: 2017-12-26 | BD106: 2017-11-13 | BE106: 11 | BF106: COSTA | BG106: 2018-02-07
A107: 208 | B107: 2017-11-09 | E107: C-Cecil Miranda | F107: Ingresar CI / RUC | G107: 168 | H107: RODRIGUEZ ARMANDO ERNESTO | I107: RODRIGUEZ ARMANDO ERNESTO | J107: Realizado | K107: VISITA MEDICA | M107: NO AUDIT | P107: 1 | Q107: NEUROLOGIA | V107: GUAYAQUIL | X107: SEDE | Y107: Seguimiento a Convenio | AA107: SI | AB107: 0 | AD107: Esta utilizando atormibe fenfiksn y va recetar celeridan | AF107: 2017-11-10 | AL107: - Seleccione - | AN107: - Seleccione - | AO107: 0 | AQ107: -Seleccione - | AV107: 0 | AW107: 0 | AX107: 2018-01-04 | AY107: -2.21182584 | AZ107: -79.89022827 | BA107: GPS | BB107: 8884513 | BC107: 2018-01-04 | BD107: 2018-01-04 | BE107: 1 | BF107: COSTA | BG107: 2018-02-16
A108: 209 | B108: 2017-11-09 | E108: C-Cecil Miranda | F108: 910387133 | G108: 169 | H108: RODRIGUEZ LOPEZ CARMEN NARCISA | I108: RODRIGUEZ LOPEZ CARMEN NARCISA | J108: Realizado | K108: VISITA MEDICA | M108: Q4 | P108: 1 | Q108: OBSTETRICIA | R108: 998268833 | T108: carmen_rodriguez@hotmail.com | U108: 16 de Julio | V108: GUAYAQUIL | X108: SEDE | Y108: Recordatorio de Producto | AA108: SI | AB108: 0 | AD108: En este mes va recetsr caberkana aciberkan | AF108: 2017-11-14 | AL108: - Seleccione - | AN108: - Seleccione - | AO108: 0 | AQ108: -Seleccione - | AV108: 0 | AW108: 0 | AX108: 2017-11-16 11:52:22 | AY108: -2.21450901 | AZ108: -79.92520904 | BA108: GPS | BB108: 8888402 | BC108: 2017-12-29 | BD108: 2017-11-16 | BE108: 11 | BF108: COSTA | BG108: 2018-02-10
A109: 211 | B109: 2017-11-09 | E109: C-Cecil Miranda | F109: 910398064 | G109: 171 | H109: ROMERO ROSERO MARIA ELENA PATRICIA | I109: ROMERO ROSERO MARIA ELENA PATRICIA | J109: Realizado | K109: VISITA MEDICA | M109: NO AUDIT | P109: 1 | Q109: NO ESPECIFICADA | R109: 0987336650 | T109: malenarosero22@hotmail.com | U109: 6 de Mayo | V109: GUAYAQUIL | X109: SEDE | Y109: Recordatorio de Producto | AA109: SI | AB109: 0 | AD109: Esta recetando caberkana celeridan | AF109: 2017-11-13 | AL109: - Seleccione - | AN109: - Seleccione - | AO109: 0 | AQ109: -Seleccione - | AV109: 0 | AW109: 0 | AX109: 2017-11-13 22:44:29 | AY109: -2.18639731 | AZ109: -79.99711608 | BA109: GPS | BB109: 8896370 | BC109: 2017-12-26 | BD109: 2017-11-13 | BE109: 11 | BF109: COSTA | BG109: 2018-02-07
A110: 212 | B110: 2017-11-09 | E110: C-Cecil Miranda | F110: Ingresar CI / RUC | G110: 172 | H110: ROMERO TORRES CAMILO JULIO | I110: ROMERO TORRES CAMILO JULIO | J110: Realizado | K110: VISITA MEDICA | L110: TEM0235 | M110: NO AUDIT | O110: 1 | P110: 1 | Q110: NO ESPECIFICADA | R110: 0939306069 | T110: 18 de Julio | U110: 18 de Julio | V110: GUAYAQUIL | W110: NORMAL | X110: SEDE | Y110: Seguimiento a Convenio | AA110: SI | AB110: 0 | AD110: Entrego cuponrs de convenio | AF110: 2017-11-24 | AL110: - Seleccione - | AN110: - Seleccione - | AO110: 0 | AQ110: -Seleccione - | AV110: 0 | AW110: 0 | AX110: 2017-11-24 19:01:07 | AY110: -2.20273876 | AZ110: -79.91217041 | BA110: GPS | BB110: 8886944 | BC110: 2018-01-06 | BD110: 2017-11-24 | BE110: 11 | BF110: COSTA | BG110: 2018-02-18
A111: 213 | B111: 2017-11-09 | E111: C-Cecil Miranda | F111: 907097596 | G111: 173 | H111: ROSERO MORENO ROBERTO VOLTAIRE | I111: ROSERO MORENO ROBERTO VOLTAIRE | J111: Realizado | K111: VISITA MEDICA | L111: 907097596 | M111: NO AUDIT | N111: ARAII+TIACIDA:DIAPRESAN-D 100,00% BESARZID 0,00%; | O111: ARAII+TIACIDA:BESARZID 0,00% | P111: 1 | Q111: CARDIOLOGIA | R111: 992602103 | S111: cardiomax@msm.com | T111: cardiomax@msm.com | U111: 7 de Agosto | V111: GUAYAQUIL | W111: NORMAL | X111: SEDE | Y111: Seguimiento a Convenio | AA111: SI | AB111: 0 | AD111: Esta recetando irbetan besarzid | AF111: 2017-11-24 | AL111: - Seleccione - | AN111: - Seleccione - | AO111: 0 | AQ111: -Seleccione - | AV111: 0 | AW111: 0 | AX111: 2017-11-24 18:13:47 | AY111: -2.21039438 | AZ111: -79.89041137 | BA111: GPS | BB111: 8884532 | BC111: 2018-01-06 | BD111: 2017-11-24 | BE111: 11 | BF111: COSTA | BG111: 2018-02-18
A112: 214 | B112: 2017-11-09 | E112: C-Cecil Miranda | F112: 912874161 | G112: 174 | H112: ROSS DELGADO JORGE ENRIQUE | I112: ROSS DELGADO JORGE ENRIQUE | J112: Realizado | K112: VISITA MEDICA | M112: Q5 | P112: 1 | Q112: MEDICINA GENERAL | V112: GUAYAQUIL | W112: NORMAL | X112: SEDE | Y112: Seguimiento a Convenio | AA112: SI | AB112: 0 | AD112: Entrego cupones de convenio | AF112: 2017-11-14 | AL112: - Seleccione - | AN112: - Seleccione - | AO112: 0 | AQ112: -Seleccione - | AV112: 0 | AW112: 0 | AX112: 2017-11-14 17:16:16 | AY112: -2.21705389 | AZ112: -79.92674255 | BA112: GPS | BB112: 8888574 | BC112: 2017-12-27 | BD112: 2017-11-14 | BE112: 11 | BF112: COSTA | BG112: 2018-02-08
A113: 215 | B113: 2017-11-09 | E113: C-Cecil Miranda | F113: 910861897 | G113: 175 | H113: RUILOVA PARRA JORGE LUIS | I113: RUILOVA PARRA JORGE LUIS | J113: Realizado | K113: VISITA MEDICA | M113: Q5 | P113: 1 | Q113: MEDICINA GENERAL | R113: 999094409 | T113: drjorgeruilova@hotmail.com | U113: 19 de Mayo | V113: GUAYAQUIL | X113: SEDE | Y113: Seguimiento a Convenio | AA113: SI | AB113: 0 | AD113: Esta utilizando atormibe besarzid irbetan | AF113: 2017-11-13 | AL113: - Seleccione - | AN113: - Seleccione - | AO113: 0 | AQ113: -Seleccione - | AV113: 0 | AW113: 0 | AX113: 2017-11-13 21:48:55 | AY113: -2.18640971 | AZ113: -79.99712371 | BA113: GPS | BB113: 8896371 | BC113: 2017-12-26 | BD113: 2017-11-13 | BE113: 11 | BF113: COSTA | BG113: 2018-02-07
A114: 216 | B114: 2017-11-09 | E114: C-Cecil Miranda | F114: 902602176 | G114: 176 | H114: RUILOVA SORIA OLMEDO ERNESTO | I114: RUILOVA SORIA OLMEDO ERNESTO | J114: Realizado | K114: VISITA MEDICA | M114: Q5 | P114: 1 | Q114: MEDICINA GENERAL | R114: 990420877 | U114: 25 de Octubre | V114: GUAYAQUIL | X114: SEDE | Y114: Recordatorio de Producto | AA114: SI | AB114: 0 | AD114: Esta tecetando zolvastin besarzid | AF114: 2017-11-13 | AL114: - Seleccione - | AN114: - Seleccione - | AO114: 0 | AQ114: -Seleccione - | AV114: 0 | AW114: 0 | AX114: 2017-11-13 21:49:48 | AY114: -2.18638682 | AZ114: -79.99710845 | BA114: GPS | BB114: 8896369 | BC114: 2017-12-26 | BD114: 2017-11-13 | BE114: 11 | BF114: COSTA | BG114: 2018-02-07
A115: 217 | B115: 2017-11-09 | E115: C-Cecil Miranda | F115: Ingresar CI / RUC | G115: 177 | H115: RUIZ COBA FELIX | I115: RUIZ COBA FELIX | J115: Realizado | K115: VISITA MEDICA | M115: NO AUDIT | P115: 1 | Q115: ODONTOLOGIA | R115: 991959540 | U115: 2 de Mayo | V115: GUAYAQUIL | W115: NORMAL | X115: SEDE | Y115: Seguimiento a Convenio | AA115: SI | AB115: 0 | AD115: Entrego cupones de convenio | AF115: 2017-11-14 | AL115: - Seleccione - | AN115: - Seleccione - | AO115: 0 | AQ115: -Seleccione - | AV115: 0 | AW115: 0 | AX115: 2017-11-15 11:04:34 | AY115: -2.20506453 | AZ115: -79.93695831 | BA115: GPS | BB115: 8889700 | BC115: 2017-12-28 | BD115: 2017-11-15 | BE115: 11 | BF115: COSTA | BG115: 2018-02-09
A116: 220 | B116: 2017-11-09 | E116: C-Cecil Miranda | F116: 910353382 | G116: 180 | H116: SAAVEDRA DELGADO SERGIO HUMBERTO | I116: SAAVEDRA DELGADO SERGIO HUMBERTO | J116: Realizado | K116: VISITA MEDICA | M116: Q2 | P116: 0.5 | Q116: MEDICINA GENERAL | R116: 993486919 | T116: sergiosaavedra@hotmail.com | U116: 16 de Enero | V116: GUAYAQUIL | W116: NORMAL | X116: SEDE | Y116: Seguimiento a Convenio | AA116: SI | AB116: 0 | AD116: Esta recetando meformina atormibe besarzid | AF116: 2017-11-14 | AL116: - Seleccione - | AN116: - Seleccione - | AO116: 0 | AQ116: -Seleccione - | AV116: 0 | AW116: 0 | AX116: 2017-11-14 22:03:35 | AY116: -2.18641567 | AZ116: -79.99712371 | BA116: GPS | BB116: 8896371 | BC116: 2017-12-27 | BD116: 2017-11-14 | BE116: 11 | BF116: COSTA | BG116: 2018-02-08
A117: 224 | B117: 2017-11-09 | E117: C-Cecil Miranda | F117: 1705040663 | G117: 184 | H117: SALINAS GONZALEZ LUIS GILBERTO | I117: SALINAS GONZALEZ LUIS GILBERTO | J117: Realizado | K117: VISITA MEDICA | M117: Q4 | P117: 1 | Q117: MEDICINA GENERAL | R117: 998438774 | T117: dr.lsalinas@hotmail.com | U117: 12 de Agosto | V117: GUAYAQUIL | X117: SEDE | Y117: Recordatorio de Producto | AA117: SI | AB117: 0 | AD117: Esta recetando atormibe besarzid meformina | AF117: 2017-11-14 | AL117: - Seleccione - | AN117: - Seleccione - | AO117: 0 | AQ117: -Seleccione - | AV117: 0 | AW117: 0 | AX117: 2017-11-14 22:08:20 | AY117: -2.18640327 | AZ117: -79.99712371 | BA117: GPS | BB117: 8896371 | BC117: 2017-12-27 | BD117: 2017-11-14 | BE117: 11 | BF117: COSTA | BG117: 2018-02-08
A118: 225 | B118: 2017-11-09 | E118: C-Cecil Miranda | F118: 1103161475 | G118: 185 | H118: SALINAS PACHECO FREDY VICENTE | I118: SALINAS PACHECO FREDY VICENTE | J118: Realizado | K118: VISITA MEDICA | M118: NO AUDIT | P118: 1 | Q118: CARDIOLOGIA | R118: 994131076 | T118: fvsp2004@yahoo.es | V118: GUAYAQUIL | X118: SEDE | Y118: Recordatorio de Producto | AA118: SI | AB118: 0 | AD118: Esta recetando irbetan besarzid | AF118: 2017-11-17 | AL118: - Seleccione - | AN118: - Seleccione - | AO118: 0 | AQ118: -Seleccione - | AV118: 0 | AW118: 0 | AX118: 2017-11-17 15:15:53 | AY118: -2.26803803 | AZ118: -79.90213775 | BA118: GPS | BB118: 8885880 | BC118: 2017-12-30 | BD118: 2017-11-17 | BE118: =MONTH(AX118) -> 11 | BF118: COSTA | BG118: 2018-02-11
A119: 227 | B119: 2017-11-09 | E119: C-Cecil Miranda | F119: 904965373 | G119: 187 | H119: SANCHEZ RUBIO FERNANDO ESTEBAN | I119: SANCHEZ RUBIO FERNANDO ESTEBAN | J119: Realizado | K119: VISITA MEDICA | M119: Q3 | P119: 1 | Q119: MEDICINA GENERAL | R119: 2370250 | T119: feresteb_sr@yahoo.com | U119: 17 de Junio | V119: GUAYAQUIL | X119: SEDE | Y119: Seguimiento a Convenio | AA119: SI | AB119: 0 | AD119: Esta recetando atormibe fenfikan | AF119: 2017-11-13 | AL119: - Seleccione - | AN119: - Seleccione - | AO119: 0 | AQ119: -Seleccione - | AV119: 0 | AW119: 0 | AX119: 2017-11-13 21:46:35 | AY119: -2.18644094 | AZ119: -79.99713897 | BA119: GPS | BB119: 8896373 | BC119: 2017-12-26 | BD119: 2017-11-13 | BE119: 11 | BF119: COSTA | BG119: 2018-02-07
A120: 233 | B120: 2017-11-09 | E120: C-Cecil Miranda | F120: Ingresar CI / RUC | G120: 193 | H120: SORIA VALDIVIEZO TANIA KATIUSCA | I120: SORIA VALDIVIEZO TANIA KATIUSCA | J120: Realizado | K120: VISITA MEDICA | M120: NO AUDIT | P120: 1 | Q120: MEDICINA GENERAL | V120: DURAN | W120: NORMAL | X120: SEDE | Y120: Seguimiento a Convenio | AA120: SI | AB120: 0 | AD120: Se entrego cheque de convebio | AF120: 2017-11-13 | AL120: - Seleccione - | AN120: - Seleccione - | AO120: 0 | AQ120: -Seleccione - | AV120: 0 | AW120: 0 | AX120: 2017-11-13 22:39:47 | AY120: -2.18638563 | AZ120: -79.99710083 | BA120: GPS | BB120: 8896369 | BC120: 2017-12-26 | BD120: 2017-11-13 | BE120: 11 | BF120: COSTA | BG120: 2018-02-07
A121: 234 | B121: 2017-11-09 | E121: C-Cecil Miranda | F121: Ingresar CI / RUC | G121: 194 | H121: SORIANO BORBOR ELSA MARIA | I121: SORIANO BORBOR ELSA MARIA | J121: Realizado | K121: VISITA MEDICA | M121: NO AUDIT | P121: 1 | Q121: GINECO-OBSTETRICIA | R121: 0990399691 | T121: Marinex2883@hotmail.es | U121: 28 de Junio | V121: GUAYAQUIL | W121: NORMAL | X121: SEDE | Y121: Seguimiento a Convenio | AA121: SI | AB121: 0 | AD121: Esta recetando atormibe meformina caberkana | AF121: 2017-11-17 | AL121: - Seleccione - | AN121: - Seleccione - | AO121: 0 | AQ121: -Seleccione - | AV121: 0 | AW121: 0 | AX121: 2017-11-17 17:47:56 | AY121: -2.21462845 | AZ121: -79.92610931 | BA121: GPS | BB121: 8888502 | BC121: 2017-12-30 | BD121: 2017-11-17 | BE121: 11 | BF121: COSTA | BG121: 2018-02-11
A122: 235 | B122: 2017-11-09 | E122: C-Cecil Miranda | F122: 1202454342 | G122: 195 | H122: SUAREZ ONOFRE PEDRO JAVIER | I122: SUAREZ ONOFRE PEDRO JAVIER | J122: Realizado | K122: VISITA MEDICA | M122: Q4 | P122: 1 | Q122: MEDICINA GENERAL | R122: 997834880 | T122: peja_suaro@hotmail.com | U122: 1 de Agosto | V122: VINCES | X122: GIRA | Y122: Recordatorio de Producto | AA122: SI | AB122: 0 | AD122: Esta recetando irbetan besarzid atormibe | AF122: 2017-11-20 | AL122: - Seleccione - | AN122: - Seleccione - | AO122: 0 | AQ122: -Seleccione - | AV122: 0 | AW122: 0 | AX122: 2017-11-20 09:48:29 | AY122: -1.5569719 | AZ122: -79.75527191 | BA122: GPS | BB122: 8869085 | BC122: 2018-01-02 | BD122: 2017-11-20 | BE122: 11 | BF122: COSTA | BG122: 2018-02-14
A123: 236 | B123: 2017-11-09 | E123: C-Cecil Miranda | F123: Ingresar CI / RUC | G123: 196 | H123: SUAREZ REYES HENRY POLL | I123: SUAREZ REYES HENRY POLL | J123: Realizado | K123: VISITA MEDICA | M123: NO AUDIT | P123: 1 | Q123: MEDICINA GENERAL | R123: 980312141 | T123: henrysuarezreyes@gmail.com | U123: 9 de Marzo | V123: YAGUACHI | W123: NORMAL | X123: GIRA | Y123: Seguimiento a Convenio | AA123: SI | AB123: 0 | AD123: Entrego cupones de convenio | AF123: 2017-11-13 | AL123: - Seleccione - | AN123: - Seleccione - | AO123: 0 | AQ123: -Seleccione - | AV123: 0 | AW123: 0 | AX123: 2017-11-13 22:38:58 | AY123: -2.1863954 | AZ123: -79.99710845 | BA123: GPS | BB123: 8896369 | BC123: 2017-12-26 | BD123: 2017-11-13 | BE123: 11 | BF123: COSTA | BG123: 2018-02-07
A124: 237 | B124: 2017-11-09 | E124: C-Cecil Miranda | F124: 701336679 | G124: 197 | H124: SUCO QUITO JUANA ISABEL | I124: SUCO QUITO JUANA ISABEL | J124: Realizado | K124: VISITA MEDICA | M124: Q5 | P124: 1 | Q124: MEDICINA GENERAL | R124: 995749098 | T124: dra_isabel_suco@hotmail.com | U124: 16 de Mayo | V124: GUAYAQUIL | W124: NORMAL | X124: SEDE | Y124: Seguimiento a Convenio | AA124: SI | AB124: 0 | AD124: Esta recrtando meformina aciberlan | AF124: 2017-11-13 | AL124: - Seleccione - | AN124: - Seleccione - | AO124: 0 | AQ124: -Seleccione - | AV124: 0 | AW124: 0 | AX124: 2017-11-13 22:25:25 | AY124: -2.18640804 | AZ124: -79.99713134 | BA124: GPS | BB124: 8896372 | BC124: 2017-12-26 | BD124: 2017-11-13 | BE124: 11 | BF124: COSTA | BG124: 2018-02-07
A125: 240 | B125: 2017-11-09 | E125: C-Cecil Miranda | F125: 905329546 | G125: 200 | H125: TAURIZ BRIONES JORGE JOAQUIN | I125: TAURIZ BRIONES JORGE JOAQUIN | J125: Realizado | K125: VISITA MEDICA | M125: NO AUDIT | P125: 1 | Q125: MEDICINA GENERAL | R125: 985080960 | T125: jorgejoaquintv@gemail.com. | U125: 21 de Agosto | V125: GUAYAQUIL | X125: SEDE | Y125: Seguimiento a Convenio | AA125: SI | AB125: 0 | AD125: Esta recetando atormibe zolvastin besarzid | AF125: 2017-11-14 | AL125: - Seleccione - | AN125: - Seleccione - | AO125: 0 | AQ125: -Seleccione - | AV125: 0 | AW125: 0 | AX125: 2017-11-15 16:49:10 | AY125: -2.20073771 | AZ125: -79.90006256 | BA125: GPS | BB125: 8885597 | BC125: 2017-12-28 | BD125: 2017-11-15 | BE125: 11 | BF125: COSTA | BG125: 2018-02-09
A126: 241 | B126: 2017-11-09 | E126: C-Cecil Miranda | F126: 1704932506 | G126: 201 | H126: TOBAR AGUIRRE HUGO LUIS | I126: TOBAR AGUIRRE HUGO LUIS | J126: Realizado | K126: VISITA MEDICA | M126: Q1 | P126: 0.5 | Q126: CARDIOLOGIA | R126: 991507420 | T126: hugotobar001@yahoo.com | U126: 18 de Agosto | V126: GUAYAQUIL | X126: SEDE | Y126: Seguimiento a Convenio | AA126: SI | AB126: 0 | AD126: Esta utilizando fenfikan irbetan besarzid | AF126: 2017-11-14 | AL126: - Seleccione - | AN126: - Seleccione - | AO126: 0 | AQ126: -Seleccione - | AV126: 0 | AW126: 0 | AX126: 2017-11-15 17:52:45 | AY126: -2.20263481 | AZ126: -79.91245269 | BA126: GPS | BB126: 8886975 | BC126: 2017-12-28 | BD126: 2017-11-15 | BE126: 11 | BF126: COSTA | BG126: 2018-02-09
A127: 242 | B127: 2017-11-09 | E127: C-Cecil Miranda | F127: 1704932506 | G127: 202 | H127: TOBAR AGUIRRE HUGO LUIS | I127: TOBAR AGUIRRE HUGO LUIS | J127: Realizado | K127: VISITA MEDICA | L127: 1704932506 | M127: Q1 | N127: ANTIHISTAMINICOS:ALERCET 35,71% DEGRALER 13,39%;LEVOCET 10,71%;LOMAZOL 5,36%;ALLEGRA 5,36%;// FIBRATOS:LOPID 59,21% GEMFIBROZILO MK 15,79%;HIPERLIPEN 10,53%;GEMFIBROZILO 5,26%;// ARAII:LOSARTAN 19,13% IRBESARTAN MK 13,04%;SIMPERTEN 10,43%;MICARDIS 7,83%;ILTUX 7,83%;// ANTAGONISTA+ARA II:COZAAR XQ 25,00% HIPERVAL AM 23,44%;EXFORGE 20,31%;VALAXAM 7,81%;MICARDIS AMLO 7,81%;// ANTIEPILEPTICOS:LYRICA 36,54% PREGABALINA MK 19,23%;PREGALEX 19,23%;NEURONTIN 15,38%; | O127: ARAII:IRBETAN 3,48% // ARAII+TIACIDA:BESARZID 3,08% // ESTATINAS_COMB:ATORMIBE 6,67% // WARFARINA:WARFIKAN 16,67% // COX:CELERIDAN 0,00% | P127: 2/2 | Q127: CARDIOLOGIA | R127: 991507420 | S127: hugotobar001@yahoo.com | T127: hugotobar001@yahoo.com | U127: 18 de Agosto | V127: GUAYAQUIL | W127: SEDE | X127: SEDE | Y127: Seguimiento a Convenio | AA127: SI | AB127: 0 | AD127: Esta recetando besarzidvirbetan | AF127: 2017-11-24 | AL127: - Seleccione - | AN127: - Seleccione - | AO127: 0 | AQ127: -Seleccione - | AV127: 0 | AW127: 0 | AX127: 2017-11-24 19:14:56 | AY127: -2.20273852 | AZ127: -79.9122467 | BA127: GPS | BB127: 8886952 | BC127: 2018-01-06 | BD127: 2017-11-24 | BE127: 11 | BF127: COSTA | BG127: 2018-02-18
A128: 243 | B128: 2017-11-09 | E128: C-Cecil Miranda | F128: 907521827 | G128: 203 | H128: TOMALA RODRIGUEZ PATRICIA ELIZABETH | I128: TOMALA RODRIGUEZ PATRICIA ELIZABETH | J128: Realizado | K128: VISITA MEDICA | M128: NO AUDIT | P128: 1 | Q128: NEFROLOGIA | R128: 998055888 | T128: ptomala@hotmail.com | U128: 30 de Mayo | V128: GUAYAQUIL | X128: SEDE | Y128: Recordatorio de Producto | AA128: SI | AB128: 0 | AD128: Estacrecetando meformina irbetan | AF128: 2017-11-17 | AL128: - Seleccione - | AN128: - Seleccione - | AO128: 0 | AQ128: -Seleccione - | AV128: 0 | AW128: 0 | AX128: 2017-11-17 14:04:00 | AY128: -2.2678523 | AZ128: -79.90140533 | BA128: GPS | BB128: 8885798 | BC128: 2017-12-30 | BD128: 2017-11-17 | BE128: 11 | BF128: =IF(LEFT(E128,1)="S","SIERRA","COSTA") -> COSTA | BG128: 2018-02-11
A129: 247 | B129: 2017-11-09 | E129: C-Cecil Miranda | F129: 904595949 | G129: 207 | H129: UZCA RIVERA WALTER GERARDO | I129: UZCA RIVERA WALTER GERARDO | J129: Realizado | K129: VISITA MEDICA | M129: Q1 | P129: 2/2 | Q129: MEDICINA GENERAL | R129: 985214079 | T129: dr.walteruzca@hotmail.com | U129: 11 de Julio | V129: GUAYAQUIL | X129: SEDE | Y129: Recordatorio de Producto | AA129: SI | AB129: 0 | AD129: Edta recetando irbetan atormibe meformona | AF129: 2017-11-10 | AL129: - Seleccione - | AN129: - Seleccione - | AO129: 0 | AQ129: -Seleccione - | AV129: 0 | AW129: 0 | AX129: 2018-01-04 | AY129: -2.19733643 | AZ129: -79.90774536 | BA129: GPS | BB129: 8886448 | BC129: 2018-01-04 | BD129: 2018-01-04 | BE129: 1 | BF129: COSTA | BG129: 2018-02-16
A130: 248 | B130: 2017-11-09 | E130: C-Cecil Miranda | F130: Ingresar CI / RUC | G130: 208 | H130: VALENCIA AGUAYO KLEBER ALBERTO | I130: VALENCIA AGUAYO KLEBER ALBERTO | J130: Realizado | K130: VISITA MEDICA | L130: TEM0270 | M130: NO AUDIT | O130: 1 | P130: 1 | Q130: CARDIOLOGIA | R130: 993844589 | S130: klebervalencia@hotmail.com | T130: klebervalencia@hotmail.com | U130: 12 de Diciembre | V130: BABAHOYO | W130: GIRA | X130: GIRA | Y130: Recordatorio de Producto | AA130: SI | AB130: 0 | AD130: Esta recetando berezo irbetan besarzid | AF130: 2017-11-22 | AL130: - Seleccione - | AN130: - Seleccione - | AO130: 0 | AQ130: -Seleccione - | AV130: 0 | AW130: 0 | AX130: 2017-11-22 15:06:21 | AY130: -1.79863858 | AZ130: -79.53516387 | BA130: GPS | BB130: 8844764 | BC130: 2018-01-04 | BD130: =DATE(YEAR(AX130),MONTH(AX130),DAY(AX130)) -> 2017-11-22 | BE130: 11 | BF130: COSTA | BG130: 2018-02-16
A131: 249 | B131: 2017-11-09 | E131: C-Cecil Miranda | F131: 911283489 | G131: 209 | H131: VALENCIA VILLACIS MEDARDO ESEQUIAS | I131: VALENCIA VILLACIS MEDARDO ESEQUIAS | J131: Realizado | K131: VISITA MEDICA | M131: Q4 | P131: 1 | Q131: MEDICINA GENERAL | V131: GUAYAQUIL | X131: SEDE | Y131: Recordatorio de Producto | AA131: SI | AB131: 0 | AD131: Esta utilizando atormibe besarzid irbetan | AF131: 2017-11-10 | AL131: - Seleccione - | AN131: - Seleccione - | AO131: 0 | AQ131: -Seleccione - | AV131: 0 | AW131: 0 | AX131: 2018-01-04 | AY131: -2.19760298 | AZ131: -79.90088653 | BA131: GPS | BB131: 8885686 | BC131: 2018-01-04 | BD131: 2018-01-04 | BE131: 1 | BF131: COSTA | BG131: =+BC131+43 -> 2018-02-16
A132: 250 | B132: 2017-11-09 | E132: C-Cecil Miranda | F132: Ingresar CI / RUC | G132: 210 | H132: VALVERDE MOREIRA BORYS GUSTAVO | I132: VALVERDE MOREIRA BORYS GUSTAVO | J132: Realizado | K132: VISITA MEDICA | M132: NO AUDIT | P132: 1 | Q132: MEDICINA GENERAL | R132: 981334106 | T132: dr-borysgustavo@hotmail.com | U132: 5 de Febrero | V132: BABAHOYO | X132: GIRA | Y132: Recordatorio de Producto | AA132: SI | AB132: 0 | AD132: En este mes va recetar aciberkan kanazol | AF132: 2017-11-20 | AL132: - Seleccione - | AN132: - Seleccione - | AO132: 0 | AQ132: -Seleccione - | AV132: 0 | AW132: 0 | AX132: 2017-11-22 14:22:39 | AY132: -1.79757797 | AZ132: -79.52993011 | BA132: GPS | BB132: 8844181 | BC132: 2018-01-04 | BD132: 2017-11-22 | BE132: 11 | BF132: COSTA | BG132: 2018-02-16
A133: 251 | B133: 2017-11-09 | E133: C-Cecil Miranda | F133: 907440036 | G133: 211 | H133: VARGAS LOPEZ SARA VIVIANA | I133: VARGAS LOPEZ SARA VIVIANA | J133: Realizado | K133: VISITA MEDICA | M133: Q4 | P133: 1 | Q133: REUMATOLOGIA | R133: 999954867 | T133: drasvargas@hotmail.com | U133: 10 de Octubre | V133: GUAYAQUIL | X133: SEDE | Y133: Recordatorio de Producto | AA133: SI | AB133: 0 | AD133: Esta utilizando hidroxicloroquina aciberkan | AF133: 2017-11-14 | AL133: - Seleccione - | AN133: - Seleccione - | AO133: 0 | AQ133: -Seleccione - | AV133: 0 | AW133: 0 | AX133: 2017-11-15 12:41:52 | AY133: -2.2031207 | AZ133: -79.91086578 | BA133: GPS | BB133: 8886799 | BC133: 2017-12-28 | BD133: 2017-11-15 | BE133: 11 | BF133: COSTA | BG133: 2018-02-09
A134: 252 | B134: 2017-11-09 | E134: C-Cecil Miranda | F134: 906276837 | G134: 212 | H134: VARGAS MORAN LUIS ENRIQUE | I134: VARGAS MORAN LUIS ENRIQUE | J134: Realizado | K134: VISITA MEDICA | M134: Q5 | P134: 1 | Q134: CARDIOLOGIA | R134: 999857532 | T134: drvargascardio@gmail.com | U134: 21 de Julio | V134: GUAYAQUIL | X134: SEDE | Y134: Recordatorio de Producto | AA134: SI | AB134: 0 | AD134: Esta recetando irbetan besarzid | AF134: 2017-11-13 | AL134: - Seleccione - | AN134: - Seleccione - | AO134: 0 | AQ134: -Seleccione - | AV134: 0 | AW134: 0 | AX134: 2017-11-13 21:51:45 | AY134: -2.18640995 | AZ134: -79.99712371 | BA134: GPS | BB134: 8896371 | BC134: 2017-12-26 | BD134: 2017-11-13 | BE134: 11 | BF134: COSTA | BG134: 2018-02-07
A135: 254 | B135: 2017-11-09 | E135: C-Cecil Miranda | F135: 1202378020 | G135: 214 | H135: VERA QUINTO JULIO MAURICIO | I135: VERA QUINTO JULIO MAURICIO | J135: Realizado | K135: VISITA MEDICA | M135: Q3 | P135: 1 | Q135: MEDICINA GENERAL | R135: 991611748 | T135: juliomauriciovera@hotmail.com | U135: 6 de Diciembre | V135: VINCES | W135: NORMAL | X135: GIRA | Y135: Seguimiento a Convenio | AA135: SI | AB135: 0 | AD135: Se entrego chque de convenio | AF135: 2017-11-20 | AL135: - Seleccione - | AN135: - Seleccione - | AO135: 0 | AQ135: -Seleccione - | AV135: 0 | AW135: 0 | AX135: 2017-11-20 09:10:35 | AY135: -1.55659961 | AZ135: -79.75556182 | BA135: GPS | BB135: 8869117 | BC135: 2018-01-02 | BD135: 2017-11-20 | BE135: 11 | BF135: COSTA | BG135: 2018-02-14
A136: 255 | B136: 2017-11-09 | E136: C-Cecil Miranda | F136: Ingresar CI / RUC | G136: 215 | H136: VERA SANCHEZ DIANA GISELLA | I136: VERA SANCHEZ DIANA GISELLA | J136: Realizado | K136: VISITA MEDICA | M136: NO AUDIT | P136: 1 | Q136: NO ESPECIFICADA | R136: 939410899 | T136: dianaveras11@hotmail.com | U136: 23 de Febrero | V136: GUAYAQUIL | W136: NORMAL | X136: SEDE | Y136: Seguimiento a Convenio | AA136: SI | AB136: 0 | AD136: Receta celeridan meformina atormibe | AF136: 2017-11-13 | AL136: - Seleccione - | AN136: - Seleccione - | AO136: 0 | AQ136: -Seleccione - | AV136: 0 | AW136: 0 | AX136: 2017-11-13 22:50:31 | AY136: -2.1863842 | AZ136: -79.99711608 | BA136: GPS | BB136: 8896370 | BC136: 2017-12-26 | BD136: 2017-11-13 | BE136: 11 | BF136: COSTA | BG136: 2018-02-07
A137: 256 | B137: 2017-11-09 | E137: C-Cecil Miranda | F137: 904099306 | G137: 216 | H137: VILLALOBOS VILLALOBOS CARLOS ARTURO | I137: VILLALOBOS VILLALOBOS CARLOS ARTURO | J137: Realizado | K137: VISITA MEDICA | M137: Q5 | P137: 1 | Q137: CARDIOLOGIA | R137: 996011751 | T137: villalovoscarlos@yahoo.es | U137: 3 de Mayo | V137: GUAYAQUIL | X137: SEDE | Y137: - Seleccione - | AA137: SI | AB137: 0 | AD137: Esta recetando irbetan besarzid | AF137: 2017-11-13 | AL137: - Seleccione - | AN137: - Seleccione - | AO137: 0 | AQ137: -Seleccione - | AV137: 0 | AW137: 0 | AX137: 2017-11-14 10:28:58 | AY137: -2.268471 | AZ137: -79.90297698 | BA137: GPS | BB137: 8885973 | BC137: 2017-12-27 | BD137: 2017-11-14 | BE137: 11 | BF137: COSTA | BG137: 2018-02-08
A138: 258 | B138: 2017-11-09 | E138: C-Cecil Miranda | F138: 908028871 | G138: 218 | H138: VILLOTA MENDIETA VICTOR EUGENIO | I138: VILLOTA MENDIETA VICTOR EUGENIO | J138: Realizado | K138: VISITA MEDICA | M138: Q5 | P138: 1 | Q138: ANGIO-FLEBOLOGIA | R138: 970524336 | T138: bighouse_17@hotmail.com | U138: 17 de Abril | V138: GUAYAQUIL | W138: NORMAL | X138: SEDE | Y138: Seguimiento a Convenio | AA138: SI | AB138: 0 | AD138: Receta clopiksna atormibe xolvastin | AF138: 2017-11-13 | AL138: - Seleccione - | AN138: - Seleccione - | AO138: 0 | AQ138: -Seleccione - | AV138: 0 | AW138: 0 | AX138: 2017-11-13 21:55:08 | AY138: -2.18640351 | AZ138: -79.99710845 | BA138: GPS | BB138: 8896369 | BC138: 2017-12-26 | BD138: 2017-11-13 | BE138: 11 | BF138: COSTA | BG138: 2018-02-07
A139: 261 | B139: 2017-11-09 | E139: C-Cecil Miranda | F139: 904384039 | G139: 221 | H139: VITERI RODRIGUEZ FATIMA EDITH | I139: VITERI RODRIGUEZ FATIMA EDITH | J139: Realizado | K139: VISITA MEDICA | M139: Q1 | P139: 0.5 | Q139: OBSTETRICIA | R139: 2452776 | T139: fatimaviteri@gemail.com. | V139: GUAYAQUIL | X139: SEDE | Y139: Recordatorio de Producto | AA139: SI | AB139: 0 | AD139: Esta recetando caberkana atormibe fenfikan | AF139: 2017-11-14 | AL139: - Seleccione - | AN139: - Seleccione - | AO139: 0 | AQ139: -Seleccione - | AV139: 0 | AW139: 0 | AX139: 2017-11-14 22:05:53 | AY139: -2.18642187 | AZ139: -79.99712371 | BA139: GPS | BB139: 8896371 | BC139: 2017-12-27 | BD139: 2017-11-14 | BE139: 11 | BF139: COSTA | BG139: 2018-02-08
A140: 263 | B140: 2017-11-09 | E140: C-Cecil Miranda | F140: 910017987 | G140: 223 | H140: YAGUAL RONQUILLO LINCOLN FERNANDO | I140: YAGUAL RONQUILLO LINCOLN FERNANDO | J140: Realizado | K140: VISITA MEDICA | M140: Q5 | P140: 1 | Q140: MEDICINA GENERAL | R140: 995099745 | T140: dr.linconyagual@hotmail.com | U140: 22 de Julio | V140: GUAYAQUIL | W140: NORMAL | X140: SEDE | Y140: Seguimiento a Convenio | AA140: SI | AB140: 0 | AD140: Esta recdyando atormibe fenfikan | AF140: 2017-11-13 | AL140: - Seleccione - | AN140: - Seleccione - | AO140: 0 | AQ140: -Seleccione - | AV140: 0 | AW140: 0 | AX140: 2017-11-13 22:24:33 | AY140: -2.18640971 | AZ140: -79.99711608 | BA140: GPS | BB140: 8896370 | BC140: 2017-12-26 | BD140: 2017-11-13 | BE140: 11 | BF140: COSTA | BG140: 2018-02-07
A141: 264 | B141: 2017-11-09 | E141: C-Cecil Miranda | F141: 701707648 | G141: 224 | H141: YANZA BANDERA HILDA AMERICA | I141: YANZA BANDERA HILDA AMERICA | J141: Realizado | K141: VISITA MEDICA | M141: NO AUDIT | P141: 1 | Q141: GINECO-OBSTETRICIA | R141: 980023769 | T141: hildayanza@hotmail.com | U141: 3 de Julio | V141: GUAYAQUIL | X141: SEDE | Y141: Recordatorio de Producto | AA141: SI | AB141: 0 | AD141: Esta rotando aciberkan atormibe | AF141: 2017-11-13 | AL141: - Seleccione - | AN141: - Seleccione - | AO141: 0 | AQ141: -Seleccione - | AV141: 0 | AW141: 0 | AX141: 2017-11-13 22:09:50 | AY141: -2.18648052 | AZ141: -79.9971466 | BA141: GPS | BB141: 8896374 | BC141: 2017-12-26 | BD141: 2017-11-13 | BE141: 11 | BF141: COSTA | BG141: 2018-02-07
A142: 266 | B142: 2017-11-09 | E142: C-Cecil Miranda | F142: 914067137 | G142: 226 | H142: YEPEZ BORJA MARIA EUGENIA | I142: YEPEZ BORJA MARIA EUGENIA | J142: Realizado | K142: VISITA MEDICA | M142: Q5 | P142: 1 | Q142: MEDICINA INTERNA | R142: 997199600 | T142: meyb71@hotmail.com | U142: 27 de Marzo | V142: DURAN | W142: NORMAL | X142: SEDE | Y142: Seguimiento a Convenio | AA142: SI | AB142: 0 | AD142: Entrego hoja de convenio | AF142: 2017-11-13 | AL142: - Seleccione - | AN142: - Seleccione - | AO142: 0 | AQ142: -Seleccione - | AV142: 0 | AW142: 0 | AX142: 2017-11-13 18:12:51 | AY142: -2.20742988 | AZ142: -79.90084838 | BA142: GPS | BB142: 8885689 | BC142: 2017-12-26 | BD142: 2017-11-13 | BE142: 11 | BF142: COSTA | BG142: 2018-02-07
A143: 271 | B143: 2017-11-09 | E143: C-Christian Tinoco | F143: 901669119 | G143: 231 | H143: ALEJANDRO TIGRERO DIEGO ROMULO | I143: ALEJANDRO TIGRERO DIEGO ROMULO | J143: Realizado | K143: VISITA MEDICA | M143: Q5 | P143: 1 | Q143: CIRUGIA GENERAL | V143: SANTA ELENA | X143: GIRA | Y143: Inscripción de Convenio | AA143: SI | AB143: 3 | AC143: Cartilla promocional de Levoc, Cartilla promocional, cuponera y MiniVademecum | AF143: 2017-11-17 | AL143: - Seleccione - | AN143: - Seleccione - | AO143: 0 | AQ143: -Seleccione - | AV143: 0 | AW143: 0 | AX143: 2017-11-22 10:48:39 | AY143: -2.22729825 | AZ143: -80.85964202 | BA143: GPS | BB143: 8992238 | BC143: 2018-01-04 | BD143: 2017-11-22 | BE143: 11 | BF143: COSTA | BG143: 2018-02-16
A144: 276 | B144: 2017-11-09 | E144: C-Christian Tinoco | F144: Ingresar CI / RUC | G144: 236 | H144: ARISTEGA LORENS | I144: ARISTEGA LORENS | J144: Realizado | K144: VISITA MEDICA | M144: NO AUDIT | P144: 1 | Q144: MEDICINA GENERAL | V144: GUAYAQUIL | X144: SEDE | Y144: Seguimiento a Convenio | AA144: SI | AB144: 0 | AF144: 2017-11-13 | AL144: - Seleccione - | AN144: - Seleccione - | AO144: 0 | AQ144: -Seleccione - | AV144: 0 | AW144: 0 | AX144: 2017-11-16 10:17:59 | AY144: -2.08396673 | AZ144: -79.92370605 | BA144: GPS | BB144: 8888138 | BC144: 2017-12-29 | BD144: 2017-11-16 | BE144: 11 | BF144: COSTA | BG144: 2018-02-10
A145: 277 | B145: 2017-11-09 | E145: C-Christian Tinoco | F145: 909978488 | G145: 237 | H145: AVILA MOREIRA FATIMA ZULIMA | I145: AVILA MOREIRA FATIMA ZULIMA | J145: Realizado | K145: VISITA MEDICA | M145: Q3 | P145: 1 | Q145: OBSTETRICIA | V145: PLAYAS | X145: GIRA | Y145: Seguimiento a Convenio | Z145: Retiro de cupones | AA145: SI | AB145: 2 | AC145: Cartilla promocional de Levoc y MiniVademecum | AF145: 2017-11-17 | AL145: - Seleccione - | AN145: - Seleccione - | AO145: 0 | AQ145: -Seleccione - | AV145: 0 | AW145: 0 | AX145: 2017-11-18 11:07:05 | AY145: -2.06231665 | AZ145: -79.91036987 | BA145: GPS | BB145: 8886640 | BC145: 2017-12-31 | BD145: 2017-11-18 | BE145: 11 | BF145: COSTA | BG145: 2018-02-12
A146: 278 | B146: 2017-11-09 | E146: C-Christian Tinoco | F146: 907019806 | G146: 238 | H146: AVILES BOADA GINO VINICIO | I146: AVILES BOADA GINO VINICIO | J146: Realizado | K146: VISITA MEDICA | L146: 907019806 | M146: Q2 | N146: ANTIHISTAMINICOS:DEGRALER 53,54% NEO-ALERTOP 19,69%;LOMAZOL 17,32%;LEVOCET 3,94%;// FIBRATOS:FENOFIKAN 95,45% HIPERLIPEN 2,27%;CONTROLIP 2,27%;// COX:CELERIDAN 57,14% CELEBREX 23,81%;CELECOXIB NIFA 9,52%;ARCOXIA 4,76%;CELECOXIB 4,76%;// ARAII:IRBETAN 100,00% MICARDIS 0,00%;ILTUX 0,00%;IRBESARTAN LST 0,00%;// ESTATINAS:LIPARON 100,00% RUX 0,00%;ROSUVASTATINA MK 0,00%;CRESTOR 0,00%;LIPITOR 0,00%; | O146: FIBRATOS:FENOFIKAN 95,45% // COX:CELERIDAN 57,14% // ARAII+TIACIDA:BESARZID 76,92% // ARAII:IRBETAN 100,00% // METFORMINA:METFORMINA 30,77% | P146: 1/2 | Q146: MEDICINA GENERAL | U146: GUAYAQUIL | V146: GUAYAQUIL | W146: NORMAL | X146: SEDE | Y146: Seguimiento a Convenio | AA146: SI | AB146: 2 | AC146: Cartilla promocional y MiniVademecum | AD146: Medico solicita el pago | AF146: 2017-11-24 | AL146: - Seleccione - | AN146: - Seleccione - | AO146: 0 | AQ146: -Seleccione - | AV146: 0 | AW146: 0 | AX146: 2017-11-24 19:17:04 | AY146: -2.1393454 | AZ146: -79.89537811 | BA146: GPS | BB146: 8885030 | BC146: 2018-01-06 | BD146: 2017-11-24 | BE146: 11 | BF146: COSTA | BG146: 2018-02-18
A147: 279 | B147: 2017-11-09 | E147: C-Christian Tinoco | F147: 907019806 | G147: 239 | H147: AVILES BOADA GINO VINICIO | I147: AVILES BOADA GINO VINICIO | J147: Realizado | K147: VISITA MEDICA | M147: Q2 | P147: 2/2 | Q147: MEDICINA GENERAL | V147: GUAYAQUIL | W147: NORMAL | X147: SEDE | Y147: Seguimiento a Convenio | AA147: SI | AB147: 3 | AC147: Cartilla promocional de Levoc, Cartilla promocional y MiniVademecum | AF147: 2017-11-13 | AL147: - Seleccione - | AN147: - Seleccione - | AO147: 0 | AQ147: -Seleccione - | AV147: 0 | AW147: 0 | AX147: 2017-11-16 10:03:28 | AY147: -2.08395075 | AZ147: -79.92378234 | BA147: GPS | BB147: 8888146 | BC147: 2017-12-29 | BD147: 2017-11-16 | BE147: 11 | BF147: COSTA | BG147: 2018-02-10
A148: 280 | B148: 2017-11-09 | E148: C-Christian Tinoco | F148: Ingresar CI / RUC | G148: 240 | H148: BAJAÑA MARICELA | I148: BAJAÑA MARICELA | J148: Realizado | K148: VISITA MEDICA | M148: NO AUDIT | P148: 1 | Q148: MEDICINA GENERAL | V148: GUAYAQUIL | W148: NORMAL | X148: SEDE | Y148: Seguimiento a Convenio | AA148: SI | AB148: 2 | AC148: Cartilla promocional de Levoc y MiniVademecum | AF148: 2017-11-13 | AL148: - Seleccione - | AN148: - Seleccione - | AO148: 0 | AQ148: -Seleccione - | AV148: 0 | AW148: 0 | AX148: 2017-11-16 11:48:31 | AY148: -2.1346898 | AZ148: -79.90198516 | BA148: GPS | BB148: 8885761 | BC148: 2017-12-29 | BD148: 2017-11-16 | BE148: 11 | BF148: COSTA | BG148: 2018-02-10
A149: 283 | B149: 2017-11-09 | E149: C-Christian Tinoco | F149: 904911724 | G149: 243 | H149: BASTE JOHNSON ALFONSO WASHINGTON | I149: BASTE JOHNSON ALFONSO WASHINGTON | J149: Realizado | K149: VISITA MEDICA | L149: 904911724 | M149: Q3 | N149: ANTAGONISTA+ARA II:ARANDA 66,67% COZAAR XQ 25,64%;EXFORGE 5,13%;MICARDIS AMLO 2,56%;// ESTATINAS:ACROVASTIN 40,00% ATROLIP 20,00%;SIMVAST 15,00%;ASTENDE 15,00%;// ARAII:COZAAR 41,67% LOSARTAN 25,00%;DIOVAN 11,11%;MICARDIS 8,33%;// CORTICOESTERIODES:METICORTEN 71,43% MEDROL 7,14%;PREDNISONA 3,57%;BERSEN 3,57%;METICORTELONE 3,57%;CALCORT 3,57%;AFLAZACORT 3,57%;CORTIPREX 3,57%;// CLOPIDOGREL:ACROGREL 62,96% PLAVIX 33,33%;EXPANSIA 3,70%;TROKEN 0,00%;ROZOLEX 0,00%; | O149: WARFARINA:WARFIKAN 100,00% // ARAII:IRBETAN 2,78% | P149: 1 | Q149: CARDIOLOGIA | R149: 093757572 | U149: LA LIBERTAD | V149: LA LIBERTAD | W149: GIRA | X149: GIRA | Y149: Seguimiento a Convenio | AA149: SI | AB149: 2 | AC149: Cartilla promocional y MiniVademecum | AF149: 2017-11-24 | AL149: - Seleccione - | AN149: - Seleccione - | AO149: 0 | AQ149: -Seleccione - | AV149: 0 | AW149: 0 | AX149: 2017-11-24 23:33:38 | AY149: -2.06226158 | AZ149: -79.91042327 | BA149: GPS | BB149: 8886646 | BC149: 2018-01-06 | BD149: 2017-11-24 | BE149: 11 | BF149: COSTA | BG149: 2018-02-18
A150: 284 | B150: 2017-11-09 | E150: C-Christian Tinoco | F150: Ingresar CI / RUC | G150: 244 | H150: BASTIDAS DAYANA | I150: BASTIDAS DAYANA | J150: Realizado | K150: VISITA MEDICA | M150: NO AUDIT | P150: 1 | Q150: NO ESPECIFICADA | V150: GUAYAQUIL | W150: NORMAL | X150: SEDE | Y150: Seguimiento a Convenio | Z150: Retiro de cupones | AA150: SI | AB150: 2 | AC150: MiniVademecum y cartilla promocional | AD150: Medico solicita el pago | AF150: 2017-11-13 | AL150: - Seleccione - | AN150: - Seleccione - | AO150: 0 | AQ150: -Seleccione - | AV150: 0 | AW150: 0 | AX150: 2017-11-16 11:50:07 | AY150: -2.13490891 | AZ150: -79.90184783 | BA150: GPS | BB150: 8885746 | BC150: 2017-12-29 | BD150: 2017-11-16 | BE150: 11 | BF150: COSTA | BG150: 2018-02-10
A151: 293 | B151: 2017-11-09 | E151: C-Christian Tinoco | F151: Ingresar CI / RUC | G151: 253 | H151: CARABALLO PERNIA MARLYN | I151: CARABALLO PERNIA MARLYN | J151: Realizado | K151: VISITA MEDICA | M151: NO AUDIT | P151: 1 | Q151: MEDICINA GENERAL | V151: GUAYAQUIL | W151: NORMAL | X151: SEDE | Y151: Seguimiento a Convenio | AA151: SI | AB151: 2 | AC151: Cartilla promocional de Levoc y MiniVademecum | AF151: 2017-11-13 | AL151: - Seleccione - | AN151: - Seleccione - | AO151: 0 | AQ151: -Seleccione - | AV151: 0 | AW151: 0 | AX151: 2017-11-16 11:52:04 | AY151: -2.13995432 | AZ151: -79.90309143 | BA151: GPS | BB151: 8885888 | BC151: 2017-12-29 | BD151: 2017-11-16 | BE151: 11 | BF151: COSTA | BG151: 2018-02-10
A152: 294 | B152: 2017-11-09 | E152: C-Christian Tinoco | F152: 904834538 | G152: 254 | H152: CARRILLO ARCENTALES JORGE NICOLAS | I152: CARRILLO ARCENTALES JORGE NICOLAS | J152: Realizado | K152: VISITA MEDICA | M152: Q4 | P152: 0.5 | Q152: REUMATOLOGIA | V152: GUAYAQUIL | X152: SEDE | Y152: Seguimiento a Convenio | AA152: SI | AB152: 2 | AC152: MiniVademecum y cartilla promocional Pasta granugena y Levoc | AD152: Medico solicita su pago | AF152: 2017-11-17 | AL152: - Seleccione - | AN152: - Seleccione - | AO152: 0 | AQ152: -Seleccione - | AV152: 0 | AW152: 0 | AX152: 2017-11-20 09:54:32 | AY152: -2.22517156 | AZ152: -79.88999938 | BA152: GPS | BB152: 8884498 | BC152: 2018-01-02 | BD152: 2017-11-20 | BE152: 11 | BF152: COSTA | BG152: 2018-02-14
A153: 295 | B153: 2017-11-09 | E153: C-Christian Tinoco | F153: 904834538 | G153: 255 | H153: CARRILLO ARCENTALES JORGE NICOLAS | I153: CARRILLO ARCENTALES JORGE NICOLAS | J153: Realizado | K153: VISITA MEDICA | M153: Q4 | P153: 2/2 | Q153: REUMATOLOGIA | V153: GUAYAQUIL | X153: SEDE | Y153: Seguimiento a Convenio | AA153: SI | AB153: 2 | AC153: Cartilla promocional de Levoc y MiniVademecum | AD153: Medico solicita el pago | AF153: 2017-11-13 | AL153: - Seleccione - | AN153: - Seleccione - | AO153: 0 | AQ153: -Seleccione - | AV153: 0 | AW153: 0 | AX153: 2017-11-15 10:39:56 | AY153: -2.19726562 | AZ153: -79.88805389 | BA153: GPS | BB153: 8884260 | BC153: 2017-12-28 | BD153: 2017-11-15 | BE153: 11 | BF153: COSTA | BG153: 2018-02-09
A154: 297 | B154: 2017-11-09 | E154: C-Christian Tinoco | F154: 913915807 | G154: 257 | H154: CARVAJAL SANTIN TATIANA LORENA | I154: CARVAJAL SANTIN TATIANA LORENA | J154: Realizado | K154: VISITA MEDICA | M154: Q5 | P154: 1 | Q154: GINECO-OBSTETRICIA | R154: 097202556 | V154: LA LIBERTAD | X154: GIRA | Y154: Seguimiento a Convenio | AA154: SI | AB154: 2 | AC154: Cartilla promocional, cartilla pasta granugena y MiniVademecum | AD154: Medico aperturado por Christian Tinoco | AF154: 2017-11-17 | AL154: - Seleccione - | AN154: - Seleccione - | AO154: 0 | AQ154: -Seleccione - | AV154: 0 | AW154: 0 | AX154: 2017-11-22 14:32:32 | AY154: -2.22975444 | AZ154: -80.92423248 | BA154: GPS | BB154: 8999417 | BC154: 2018-01-04 | BD154: 2017-11-22 | BE154: 11 | BF154: COSTA | BG154: 2018-02-16
A155: 298 | B155: 2017-11-09 | E155: C-Christian Tinoco | F155: 906625652 | G155: 258 | H155: CASTILLA FASSIO RAFAEL CARLOS | I155: CASTILLA FASSIO RAFAEL CARLOS | J155: Realizado | K155: VISITA MEDICA | M155: Q3 | P155: 1 | Q155: CARDIOLOGIA | V155: GUAYAQUIL | X155: SEDE | Y155: Recordatorio de Producto | AA155: SI | AB155: 2 | AC155: Cartilla promocional de Levoc y MiniVademecum | AF155: 2017-11-17 | AL155: - Seleccione - | AN155: - Seleccione - | AO155: 0 | AQ155: -Seleccione - | AV155: 0 | AW155: 0 | AX155: 2017-11-20 18:54:29 | AY155: -2.21433281 | AZ155: -79.88940429 | BA155: GPS | BB155: 8884423 | BC155: 2018-01-02 | BD155: 2017-11-20 | BE155: 11 | BF155: COSTA | BG155: 2018-02-14
A156: 299 | B156: 2017-11-09 | E156: C-Christian Tinoco | F156: 906539572 | G156: 259 | H156: CASTILLO TORRES PAULINO NICOLAS | I156: CASTILLO TORRES PAULINO NICOLAS | J156: Realizado | K156: VISITA MEDICA | M156: Q4 | P156: 0.5 | Q156: ENDOCRINOLOGIA | V156: GUAYAQUIL | W156: NORMAL | X156: SEDE | Y156: Seguimiento a Convenio | Z156: Medico solicito su pago | AA156: SI | AB156: 2 | AC156: Cartilla promocional de Levoc, y MiniVademecum | AD156: Medico solicita su pago | AF156: 2017-11-13 | AL156: - Seleccione - | AN156: - Seleccione - | AO156: 0 | AQ156: -Seleccione - | AV156: 0 | AW156: 0 | AX156: 2017-11-16 10:10:13 | AY156: -2.08402562 | AZ156: -79.92375183 | BA156: GPS | BB156: 8888143 | BC156: 2017-12-29 | BD156: 2017-11-16 | BE156: 11 | BF156: COSTA | BG156: 2018-02-10
A157: 301 | B157: 2017-11-09 | E157: C-Christian Tinoco | F157: Ingresar CI / RUC | G157: 261 | H157: CASTRO JEAN CARLOS | I157: CASTRO JEAN CARLOS | J157: Realizado | K157: VISITA MEDICA | M157: NO AUDIT | P157: 1 | Q157: MEDICINA GENERAL | V157: GUAYAQUIL | W157: NORMAL | X157: SEDE | Y157: Seguimiento a Convenio | Z157: Retiro de cupones | AA157: SI | AB157: 2 | AC157: MiniVademecum y cartilla promocional | AF157: 2017-11-13 | AL157: - Seleccione - | AN157: - Seleccione - | AO157: 0 | AQ157: -Seleccione - | AV157: 0 | AW157: 0 | AX157: 2017-11-16 17:34:33 | AY157: -2.13481378 | AZ157: -79.90212249 | BA157: GPS | BB157: 8885777 | BC157: 2017-12-29 | BD157: 2017-11-16 | BE157: 11 | BF157: COSTA | BG157: 2018-02-10
A158: 302 | B158: 2017-11-09 | E158: C-Christian Tinoco | F158: 1200755245 | G158: 262 | H158: CASTRO MENDOZA FELIX ILDEFONSO | I158: CASTRO MENDOZA FELIX ILDEFONSO | J158: Realizado | K158: VISITA MEDICA | M158: Q5 | P158: 1 | Q158: MEDICINA GENERAL | V158: GUAYAQUIL | X158: SEDE | Y158: Seguimiento a Convenio | AA158: SI | AB158: 2 | AC158: MiniVademecum y cartilla promocional Pasta granugena y Levoc | AD158: Medico aperturado por Christian Tinoco | AF158: 2017-11-17 | AL158: - Seleccione - | AN158: - Seleccione - | AO158: 0 | AQ158: -Seleccione - | AV158: 0 | AW158: 0 | AX158: 2017-11-21 08:49:44 | AY158: -2.15702033 | AZ158: -79.8950119 | BA158: GPS | BB158: 8885003 | BC158: 2018-01-03 | BD158: 2017-11-21 | BE158: 11 | BF158: COSTA | BG158: 2018-02-15
A159: 303 | B159: 2017-11-09 | E159: C-Christian Tinoco | F159: 1706762869 | G159: 263 | H159: CASTRO PIGUAVE WASHINGTON ENRIQUE | I159: CASTRO PIGUAVE WASHINGTON ENRIQUE | J159: Realizado | K159: VISITA MEDICA | M159: Q5 | P159: 1 | Q159: MEDICINA GENERAL | V159: POSORJA | W159: NORMAL | X159: GIRA | Y159: Seguimiento a Convenio | AA159: SI | AB159: 2 | AC159: Cartilla promocional de Levoc, Cartilla promocional y MiniVademecum | AF159: 2017-11-17 | AL159: - Seleccione - | AN159: - Seleccione - | AO159: 0 | AQ159: -Seleccione - | AV159: 0 | AW159: 0 | AX159: 2017-11-18 11:13:38 | AY159: -2.06228828 | AZ159: -79.91040039 | BA159: GPS | BB159: 8886644 | BC159: 2017-12-31 | BD159: 2017-11-18 | BE159: 11 | BF159: COSTA | BG159: 2018-02-12
A160: 306 | B160: 2017-11-09 | E160: C-Christian Tinoco | F160: Ingresar CI / RUC | G160: 266 | H160: CHICAIZA TERESA | I160: CHICAIZA TERESA | J160: Realizado | K160: VISITA MEDICA | L160: T00760 | M160: NO AUDIT | O160: 1 | P160: 1 | Q160: MEDICINA GENERAL | U160: GUAYAQUIL | V160: GUAYAQUIL | W160: SEDE | X160: SEDE | Y160: Seguimiento a Convenio | AA160: SI | AB160: 2 | AC160: MiniVademecum y cartilla promocional | AF160: 2017-11-24 | AL160: - Seleccione - | AN160: - Seleccione - | AO160: 0 | AQ160: -Seleccione - | AV160: 0 | AW160: 0 | AX160: 2017-11-24 23:37:19 | AY160: -2.06225204 | AZ160: -79.9104309 | BA160: GPS | BB160: 8886647 | BC160: 2018-01-06 | BD160: 2017-11-24 | BE160: 11 | BF160: COSTA | BG160: 2018-02-18
A161: 307 | B161: 2017-11-09 | E161: C-Christian Tinoco | F161: 914556667 | G161: 267 | H161: COBO NARANJO CARLOS FERNANDO | I161: COBO NARANJO CARLOS FERNANDO | J161: Realizado | K161: VISITA MEDICA | M161: Q1 | P161: 0.5 | Q161: MEDICINA GENERAL | V161: GUAYAQUIL | W161: NORMAL | X161: SEDE | Y161: Seguimiento a Convenio | AA161: SI | AB161: 2 | AC161: Cartilla promocional de Levoc y MiniVademecum | AF161: 2017-11-13 | AL161: - Seleccione - | AN161: - Seleccione - | AO161: 0 | AQ161: -Seleccione - | AV161: 0 | AW161: 0 | AX161: 2017-11-16 17:35:56 | AY161: -2.13479232 | AZ161: -79.90203857 | BA161: GPS | BB161: 8885767 | BC161: 2017-12-29 | BD161: 2017-11-16 | BE161: 11 | BF161: COSTA | BG161: 2018-02-10
A162: 308 | B162: 2017-11-09 | E162: C-Christian Tinoco | F162: 914556667 | G162: 268 | H162: COBO NARANJO CARLOS FERNANDO | I162: COBO NARANJO CARLOS FERNANDO | J162: Realizado | K162: VISITA MEDICA | M162: Q1 | P162: 2/2 | Q162: MEDICINA GENERAL | V162: GUAYAQUIL | W162: NORMAL | X162: SEDE | Y162: Seguimiento a Convenio | AA162: SI | AB162: 2 | AC162: Cartilla promocional de Levoc y MiniVademecum | AF162: 2017-11-17 | AL162: - Seleccione - | AN162: - Seleccione - | AO162: 0 | AQ162: -Seleccione - | AV162: 0 | AW162: 0 | AX162: 2017-11-20 18:29:01 | AY162: -2.23788762 | AZ162: -79.89134216 | BA162: GPS | BB162: 8884657 | BC162: 2018-01-02 | BD162: 2017-11-20 | BE162: 11 | BF162: COSTA | BG162: 2018-02-14
A163: 310 | B163: 2017-11-09 | E163: C-Christian Tinoco | F163: 905669099 | G163: 270 | H163: COLUMBUS SCHWASS DAVID LEONARDO | I163: COLUMBUS SCHWASS DAVID LEONARDO | J163: Realizado | K163: VISITA MEDICA | L163: 905669099 | M163: Q5 | N163: ANTIHISTAMINICOS:ALERCET 100,00% // CORTICOESTERIODES:METICORTELONE 100,00% METICORTEN 0,00%;// COX:CELEBREX % // ANTAGONISTA+ARA II:APROVASC % | O163: 1 | P163: 1 | Q163: MEDICINA GENERAL | R163: 09984221048 | U163: LA LIBERTAD | V163: LA LIBERTAD | W163: GIRA | X163: GIRA | Y163: Seguimiento a Convenio | AA163: SI | AB163: 2 | AC163: Cartilla promocional Cardiocap, cardik y pluma cardiocap | AF163: 2017-11-24 | AL163: - Seleccione - | AN163: - Seleccione - | AO163: 0 | AQ163: -Seleccione - | AV163: 0 | AW163: 0 | AX163: 2017-11-24 23:32:32 | AY163: -2.06225848 | AZ163: -79.91042327 | BA163: GPS | BB163: 8886646 | BC163: 2018-01-06 | BD163: 2017-11-24 | BE163: 11 | BF163: COSTA | BG163: 2018-02-18
A164: 315 | B164: 2017-11-09 | E164: C-Christian Tinoco | F164: Ingresar CI / RUC | G164: 275 | H164: CRUZ VANESA | I164: CRUZ VANESA | J164: Realizado | K164: VISITA MEDICA | M164: NO AUDIT | P164: 1 | Q164: MEDICINA GENERAL | V164: GUAYAQUIL | W164: NORMAL | X164: SEDE | Y164: Seguimiento a Convenio | AA164: SI | AB164: 2 | AC164: MiniVademecum y cartilla promocional | AF164: 2017-11-13 | AL164: - Seleccione - | AN164: - Seleccione - | AO164: 0 | AQ164: -Seleccione - | AV164: 0 | AW164: 0 | AX164: 2017-11-16 17:37:42 | AY164: -2.13477635 | AZ164: -79.90201568 | BA164: GPS | BB164: 8885765 | BC164: 2017-12-29 | BD164: 2017-11-16 | BE164: 11 | BF164: COSTA | BG164: 2018-02-10
A165: 316 | B165: 2017-11-09 | E165: C-Christian Tinoco | F165: Ingresar CI / RUC | G165: 276 | H165: CUENCA LORENA | I165: CUENCA LORENA | J165: Realizado | K165: VISITA MEDICA | M165: NO AUDIT | P165: 1 | Q165: MEDICINA GENERAL | V165: GUAYAQUIL | W165: NORMAL | X165: SEDE | Y165: Seguimiento a Convenio | AA165: SI | AB165: 2 | AC165: MiniVademecum y cartilla promocional | AF165: 2017-11-13 | AL165: - Seleccione - | AN165: - Seleccione - | AO165: 0 | AQ165: -Seleccione - | AV165: 0 | AW165: 0 | AX165: 2017-11-16 17:38:34 | AY165: -2.13477635 | AZ165: -79.90201568 | BA165: GPS | BB165: 8885765 | BC165: 2017-12-29 | BD165: 2017-11-16 | BE165: 11 | BF165: COSTA | BG165: 2018-02-10
A166: 326 | B166: 2017-11-09 | E166: C-Christian Tinoco | F166: 901471011 | G166: 286 | H166: FIALLOS TULMO JORGE ROBERTO | I166: FIALLOS TULMO JORGE ROBERTO | J166: Realizado | K166: VISITA MEDICA | L166: 901471011 | M166: Q5 | N166: ESTATINAS:ACROVASTIN 100,00% ROSUVAL 0,00%;// ESTATINAS_COMB:VYTORIN 100,00% // FIBRATOS:GIABRI 100,00% LIPOBRAND 0,00%;// ARAII:MICARDIS 100,00% ILTUX 0,00%;// ANTIEPILEPTICOS:PRESTAT 100,00% PREGALEX 0,00%; | O166: 1 | P166: 1 | Q166: MEDICINA GENERAL | U166: GUAYAQUIL | V166: GUAYAQUIL | W166: SEDE | X166: SEDE | Y166: Seguimiento a Convenio | AA166: SI | AB166: 2 | AC166: MiniVademecum y cartilla promocional | AF166: 2017-11-24 | AL166: - Seleccione - | AN166: - Seleccione - | AO166: 0 | AQ166: -Seleccione - | AV166: 0 | AW166: 0 | AX166: 2017-11-24 12:50:52 | AY166: -2.19481968 | AZ166: -79.8921051 | BA166: GPS | BB166: 8884708 | BC166: 2018-01-06 | BD166: 2017-11-24 | BE166: 11 | BF166: COSTA | BG166: 2018-02-18
A167: 327 | B167: 2017-11-09 | E167: C-Christian Tinoco | F167: 905423000 | G167: 287 | H167: FIGUEROA RODRIGUEZ RICARDO EPIFANIO | I167: FIGUEROA RODRIGUEZ RICARDO EPIFANIO | J167: Realizado | K167: VISITA MEDICA | M167: Q5 | P167: 1 | Q167: MEDICINA GENERAL | R167: 0986746570 | V167: PLAYAS | W167: NORMAL | X167: GIRA | Y167: Seguimiento a Convenio | Z167: Retiro de cupones | AA167: SI | AB167: 2 | AC167: Cartilla promocional de Levoc, Cartilla promocional y MiniVademecum | AF167: 2017-11-17 | AL167: - Seleccione - | AN167: - Seleccione - | AO167: 0 | AQ167: -Seleccione - | AV167: 0 | AW167: 0 | AX167: 2017-11-18 11:15:33 | AY167: -2.06228399 | AZ167: -79.91041564 | BA167: GPS | BB167: 8886646 | BC167: 2017-12-31 | BD167: 2017-11-18 | BE167: 11 | BF167: COSTA | BG167: 2018-02-12
A168: 330 | B168: 2017-11-09 | E168: C-Christian Tinoco | F168: 910295591 | G168: 290 | H168: GALEAS CRUZ SILVIA MARIA | I168: GALEAS CRUZ SILVIA MARIA | J168: Realizado | K168: VISITA MEDICA | M168: Q5 | P168: 1 | Q168: OBSTETRICIA | V168: GUAYAQUIL | W168: NORMAL | X168: SEDE | Y168: Seguimiento a Convenio | Z168: Retiro de cupones | AA168: SI | AB168: 2 | AC168: Caberkana, MiniVademecum y cartilla promocional | AD168: Medico utiliza Furextol por su especialidad, para que sea tomado en cuenta en los incentivos | AF168: 2017-11-13 | AL168: - Seleccione - | AN168: - Seleccione - | AO168: 0 | AQ168: -Seleccione - | AV168: 0 | AW168: 0 | AX168: 2017-11-13 10:10:40 | AY168: -2.26985979 | AZ168: -79.89821624 | BA168: GPS | BB168: 8885445 | BC168: 2017-12-26 | BD168: 2017-11-13 | BE168: 11 | BF168: COSTA | BG168: 2018-02-07
A169: 331 | B169: 2017-11-09 | E169: C-Christian Tinoco | F169: 904859196 | G169: 291 | H169: GARAICOA GRANIZO MARIA ANGELICA | I169: GARAICOA GRANIZO MARIA ANGELICA | J169: Realizado | K169: VISITA MEDICA | M169: Q5 | P169: 1 | Q169: MEDICINA GENERAL | V169: GUAYAQUIL | X169: SEDE | Y169: Seguimiento a Convenio | AA169: SI | AB169: 2 | AC169: Cartilla promocional de Levoc y MiniVademecum | AF169: 2017-11-17 | AL169: - Seleccione - | AN169: - Seleccione - | AO169: 0 | AQ169: -Seleccione - | AV169: 0 | AW169: 0 | AX169: 2017-11-18 11:17:01 | AY169: -2.06220102 | AZ169: -79.91031646 | BA169: GPS | BB169: 8886634 | BC169: 2017-12-31 | BD169: 2017-11-18 | BE169: 11 | BF169: COSTA | BG169: 2018-02-12
A170: 334 | B170: 2017-11-09 | E170: C-Christian Tinoco | F170: 906642673 | G170: 294 | H170: GOMEZ MEDINA CELIDA MAGDALENA | I170: GOMEZ MEDINA CELIDA MAGDALENA | J170: Realizado | K170: VISITA MEDICA | M170: Q5 | P170: 1 | Q170: MEDICINA GENERAL | V170: SANTA ELENA | X170: GIRA | Y170: Presentación de Laboratorio | AA170: SI | AB170: 2 | AC170: Cartilla promocional de Levoc y MiniVademecum | AF170: 2017-11-17 | AL170: - Seleccione - | AN170: - Seleccione - | AO170: 0 | AQ170: -Seleccione - | AV170: 0 | AW170: 0 | AX170: 2017-11-22 09:53:53 | AY170: -2.22599887 | AZ170: -80.85868072 | BA170: GPS | BB170: 8992130 | BC170: 2018-01-04 | BD170: 2017-11-22 | BE170: 11 | BF170: COSTA | BG170: 2018-02-16
A171: 335 | B171: 2017-11-09 | E171: C-Christian Tinoco | F171: 910138676 | G171: 295 | H171: GOMEZ MORAN DE TOVAR GINA DEL CARMEN | I171: GOMEZ MORAN DE TOVAR GINA DEL CARMEN | J171: Realizado | K171: VISITA MEDICA | M171: Q1 | P171: 0.5 | Q171: MEDICINA GENERAL | V171: GUAYAQUIL | W171: NORMAL | X171: SEDE | Y171: Seguimiento a Convenio | Z171: Retiro de cupones | AA171: SI | AB171: 2 | AC171: Cartilla promocional de Levoc y MiniVademecum | AD171: Medico solicita el pago | AF171: 2017-11-17 | AL171: - Seleccione - | AN171: - Seleccione - | AO171: 0 | AQ171: -Seleccione - | AV171: 0 | AW171: 0 | AX171: 2017-11-18 11:19:46 | AY171: -2.06228852 | AZ171: -79.9104309 | BA171: GPS | BB171: 8886647 | BC171: 2017-12-31 | BD171: 2017-11-18 | BE171: 11 | BF171: COSTA | BG171: 2018-02-12
A172: 336 | B172: 2017-11-09 | E172: C-Christian Tinoco | F172: 910138676 | G172: 296 | H172: GOMEZ MORAN DE TOVAR GINA DEL CARMEN | I172: GOMEZ MORAN DE TOVAR GINA DEL CARMEN | J172: Realizado | K172: VISITA MEDICA | M172: Q1 | P172: 2/2 | Q172: MEDICINA GENERAL | V172: GUAYAQUIL | W172: NORMAL | X172: SEDE | Y172: Seguimiento a Convenio | AA172: SI | AB172: 2 | AC172: Cartilla promocional de Levoc y MiniVademecum | AD172: Medico solicita el pago | AF172: 2017-11-17 | AL172: - Seleccione - | AN172: - Seleccione - | AO172: 0 | AQ172: -Seleccione - | AV172: 0 | AW172: 0 | AX172: 2017-11-20 13:17:22 | AY172: -2.19425821 | AZ172: -79.89060974 | BA172: GPS | BB172: 8884542 | BC172: 2018-01-02 | BD172: 2017-11-20 | BE172: 11 | BF172: COSTA | BG172: 2018-02-14
A173: 337 | B173: 2017-11-09 | E173: C-Christian Tinoco | F173: 906341268 | G173: 297 | H173: GONZALEZ VALVERDE GUILLERMINA ELIZABETH | I173: GONZALEZ VALVERDE GUILLERMINA ELIZABETH | J173: Realizado | K173: VISITA MEDICA | M173: Q5 | P173: 1 | Q173: MEDICINA GENERAL | V173: GUAYAQUIL | W173: NORMAL | X173: SEDE | Y173: Seguimiento a Convenio | AA173: SI | AB173: 2 | AC173: Cartilla promocional de Levoc, Cartilla promocional y MiniVademecum | AD173: Médico solicita su pago | AF173: 2017-11-17 | AL173: - Seleccione - | AN173: - Seleccione - | AO173: 0 | AQ173: -Seleccione - | AV173: 0 | AW173: 0 | AX173: 2017-11-18 11:26:34 | AY173: -2.06218862 | AZ173: -79.9103012 | BA173: GPS | BB173: 8886633 | BC173: 2017-12-31 | BD173: 2017-11-18 | BE173: 11 | BF173: COSTA | BG173: 2018-02-12
A174: 338 | B174: 2017-11-09 | E174: C-Christian Tinoco | F174: Ingresar CI / RUC | G174: 298 | H174: GOOSDENOVICH CAMPOVERDE DAVID AARON | I174: GOOSDENOVICH CAMPOVERDE DAVID AARON | J174: Realizado | K174: VISITA MEDICA | M174: Q4 | P174: 1 | Q174: MEDICINA GENERAL | V174: GUAYAQUIL | W174: NORMAL | X174: SEDE | Y174: Seguimiento a Convenio | AA174: SI | AB174: 2 | AC174: Retiro de cupones | AD174: Médico solicita su pago | AF174: 2017-11-17 | AL174: - Seleccione - | AN174: - Seleccione - | AO174: 0 | AQ174: -Seleccione - | AV174: 0 | AW174: 0 | AX174: 2017-11-18 11:27:43 | AY174: -2.06219148 | AZ174: -79.9103012 | BA174: GPS | BB174: 8886633 | BC174: 2017-12-31 | BD174: 2017-11-18 | BE174: 11 | BF174: COSTA | BG174: 2018-02-12
A175: 339 | B175: 2017-11-09 | E175: C-Christian Tinoco | F175: 907851380 | G175: 299 | H175: GOOSDENOVICH ZUNIGA DAVID FELIPE | I175: GOOSDENOVICH ZUNIGA DAVID FELIPE | J175: Realizado | K175: VISITA MEDICA | M175: Q4 | P175: 1 | Q175: MEDICINA GENERAL | V175: GUAYAQUIL | W175: NORMAL | X175: SEDE | Y175: Seguimiento a Convenio | AA175: SI | AB175: 2 | AC175: Cartilla promocional de Levoc y MiniVademecum | AF175: 2017-11-17 | AL175: - Seleccione - | AN175: - Seleccione - | AO175: 0 | AQ175: -Seleccione - | AV175: 0 | AW175: 0 | AX175: 2017-11-18 11:28:49 | AY175: -2.06233191 | AZ175: -79.91041564 | BA175: GPS | BB175: 8886646 | BC175: 2017-12-31 | BD175: 2017-11-18 | BE175: 11 | BF175: COSTA | BG175: 2018-02-12
A176: 344 | B176: 2017-11-09 | E176: C-Christian Tinoco | F176: 901259309 | G176: 304 | H176: HEREDIA ZARATE FAUSTO BERNARDO | I176: HEREDIA ZARATE FAUSTO BERNARDO | J176: Realizado | K176: VISITA MEDICA | M176: Q5 | P176: 1 | Q176: MEDICINA INTERNA | V176: GUAYAQUIL | X176: SEDE | Y176: Recordatorio de Producto | AA176: SI | AB176: 2 | AC176: Cartilla promocional de Levoc y MiniVademecum | AF176: 2017-11-17 | AL176: - Seleccione - | AN176: - Seleccione - | AO176: 0 | AQ176: -Seleccione - | AV176: 0 | AW176: 0 | AX176: 2017-11-20 18:53:49 | AY176: -2.2143445 | AZ176: -79.88940429 | BA176: GPS | BB176: 8884423 | BC176: 2018-01-02 | BD176: 2017-11-20 | BE176: 11 | BF176: COSTA | BG176: 2018-02-14
A177: 346 | B177: 2017-11-09 | E177: C-Christian Tinoco | F177: 909743353 | G177: 306 | H177: HERRERA OCHOA MIGUEL ANGEL | I177: HERRERA OCHOA MIGUEL ANGEL | J177: Realizado | K177: VISITA MEDICA | M177: Q5 | P177: 1 | Q177: MEDICINA GENERAL | V177: LA LIBERTAD | X177: GIRA | Y177: Seguimiento a Convenio | AA177: SI | AB177: 2 | AC177: MiniVademecum y cartilla promocional Pasta granugena y Levoc | AD177: Medico espera el recetario personalizado | AF177: 2017-11-17 | AL177: - Seleccione - | AN177: - Seleccione - | AO177: 0 | AQ177: -Seleccione - | AV177: 0 | AW177: 0 | AX177: 2017-11-22 11:27:54 | AY177: -2.22361326 | AZ177: -80.9028778 | BA177: GPS | BB177: 8997040 | BC177: 2018-01-04 | BD177: 2017-11-22 | BE177: 11 | BF177: COSTA | BG177: 2018-02-16
A178: 347 | B178: 2017-11-09 | E178: C-Christian Tinoco | F178: Ingresar CI / RUC | G178: 307 | H178: ILLESCAS CARABAJO ISABEL | I178: ILLESCAS CARABAJO ISABEL | J178: Realizado | K178: VISITA MEDICA | M178: NO AUDIT | P178: 1 | Q178: MEDICINA GENERAL | V178: GUAYAQUIL | X178: SEDE | Y178: Seguimiento a Convenio | Z178: Retiro de cupones | AA178: SI | AB178: 2 | AC178: Cartilla promocional de Levoc y MiniVademecum | AF178: 2017-11-17 | AL178: - Seleccione - | AN178: - Seleccione - | AO178: 0 | AQ178: -Seleccione - | AV178: 0 | AW178: 0 | AX178: 2017-11-20 19:30:05 | AY178: -2.20454668 | AZ178: -79.88529205 | BA178: GPS | BB178: 8883959 | BC178: 2018-01-02 | BD178: 2017-11-20 | BE178: 11 | BF178: COSTA | BG178: 2018-02-14
A179: 349 | B179: 2017-11-09 | E179: C-Christian Tinoco | F179: 906369384 | G179: 309 | H179: ITURBURU SALVADOR PEGGY SORAYA | I179: ITURBURU SALVADOR PEGGY SORAYA | J179: Realizado | K179: VISITA MEDICA | M179: Q5 | P179: 1 | Q179: PEDIATRIA-NEONATOLOGIA | V179: GUAYAQUIL | X179: SEDE | Y179: Seguimiento a Convenio | AA179: SI | AB179: 1 | AC179: Cartilla promocional de Levoc | AF179: 2017-11-13 | AL179: - Seleccione - | AN179: - Seleccione - | AO179: 0 | AQ179: -Seleccione - | AV179: 0 | AW179: 0 | AX179: 2017-11-15 10:54:06 | AY179: -2.19726371 | AZ179: -79.88803863 | BA179: GPS | BB179: 8884258 | BC179: 2017-12-28 | BD179: 2017-11-15 | BE179: 11 | BF179: COSTA | BG179: 2018-02-09
A180: 350 | B180: 2017-11-09 | E180: C-Christian Tinoco | F180: 908841653 | G180: 310 | H180: JACOME HIDALGO JENNY JACQUELINE | I180: JACOME HIDALGO JENNY JACQUELINE | J180: Realizado | K180: VISITA MEDICA | M180: Q5 | P180: 1 | Q180: MEDICINA GENERAL | R180: 0986465616 | V180: LA LIBERTAD | W180: NORMAL | X180: GIRA | Y180: Seguimiento a Convenio | AA180: SI | AB180: 2 | AC180: Cartilla promocional de Levoc y MiniVademecum | AF180: 2017-11-17 | AL180: - Seleccione - | AN180: - Seleccione - | AO180: 0 | AQ180: -Seleccione - | AV180: 0 | AW180: 0 | AX180: 2017-11-22 14:33:39 | AY180: -2.23002886 | AZ180: -80.92453002 | BA180: GPS | BB180: 8999450 | BC180: 2018-01-04 | BD180: 2017-11-22 | BE180: 11 | BF180: COSTA | BG180: 2018-02-16
A181: 352 | B181: 2017-11-09 | E181: C-Christian Tinoco | F181: Ingresar CI / RUC | G181: 312 | H181: JARAMILLO LUCIA | I181: JARAMILLO LUCIA | J181: Realizado | K181: VISITA MEDICA | M181: NO AUDIT | P181: 1 | Q181: MEDICINA GENERAL | V181: GUAYAQUIL | X181: SEDE | Y181: Seguimiento a Convenio | AA181: SI | AB181: 2 | AC181: Cartilla promocional de Levoc, Cartilla promocional y MiniVademecum | AF181: 2017-11-17 | AL181: - Seleccione - | AN181: - Seleccione - | AO181: 0 | AQ181: -Seleccione - | AV181: 0 | AW181: 0 | AX181: 2017-11-18 16:15:22 | AY181: -2.06227278 | AZ181: -79.91036224 | BA181: GPS | BB181: 8886640 | BC181: 2017-12-31 | BD181: 2017-11-18 | BE181: 11 | BF181: COSTA | BG181: 2018-02-12
A182: 353 | B182: 2017-11-09 | E182: C-Christian Tinoco | F182: Ingresar CI / RUC | G182: 313 | H182: JHONSON ORDOÑEZ ESTEFANY ANDREA | I182: JHONSON ORDOÑEZ ESTEFANY ANDREA | J182: Realizado | K182: VISITA MEDICA | M182: NO AUDIT | P182: 1 | Q182: MEDICINA GENERAL | R182: 099482203 | V182: PLAYAS | X182: GIRA | Y182: Seguimiento a Convenio | AA182: SI | AB182: 2 | AC182: MiniVademecum y cartilla promocional | AF182: 2017-11-17 | AL182: - Seleccione - | AN182: - Seleccione - | AO182: 0 | AQ182: -Seleccione - | AV182: 0 | AW182: 0 | AX182: 2017-11-18 11:30:32 | AY182: -2.06220579 | AZ182: -79.91030883 | BA182: GPS | BB182: 8886634 | BC182: 2017-12-31 | BD182: 2017-11-18 | BE182: =MONTH(AX182) -> 11 | BF182: COSTA | BG182: 2018-02-12
A183: 354 | B183: 2017-11-09 | E183: C-Christian Tinoco | F183: 904046265 | G183: 314 | H183: JORDAN MARTILLO GABRIEL ERNESTO | I183: JORDAN MARTILLO GABRIEL ERNESTO | J183: Realizado | K183: VISITA MEDICA | M183: Q5 | P183: 0.5 | Q183: MEDICINA GENERAL | V183: GUAYAQUIL | W183: NORMAL | X183: SEDE | Y183: Seguimiento a Convenio | AA183: SI | AB183: 2 | AC183: MiniVademecum y cartilla promocional | AD183: Medico inconforme con el pago | AF183: 2017-11-17 | AL183: - Seleccione - | AN183: - Seleccione - | AO183: 0 | AQ183: -Seleccione - | AV183: 0 | AW183: 0 | AX183: 2017-11-18 11:33:14 | AY183: -2.06229281 | AZ183: -79.91042327 | BA183: GPS | BB183: 8886646 | BC183: 2017-12-31 | BD183: 2017-11-18 | BE183: 11 | BF183: COSTA | BG183: 2018-02-12
A184: 356 | B184: 2017-11-09 | E184: C-Christian Tinoco | F184: 905331088 | G184: 316 | H184: LAYANA BUSTAMANTE JORGE LUIS VICENTE | I184: LAYANA BUSTAMANTE JORGE LUIS VICENTE | J184: Realizado | K184: VISITA MEDICA | M184: Q4 | P184: 1 | Q184: MEDICINA GENERAL | R184: 2784135 | V184: LA LIBERTAD | X184: GIRA | Y184: Seguimiento a Convenio | AA184: SI | AB184: 2 | AC184: Cartilla promocional de Levoc, Cartilla promocional y MiniVademecum | AD184: Entrega receta para recetario personalizado | AF184: 2017-11-17 | AL184: - Seleccione - | AN184: - Seleccione - | AO184: 0 | AQ184: -Seleccione - | AV184: 0 | AW184: 0 | AX184: 2017-11-22 14:28:03 | AY184: -2.23000788 | AZ184: -80.92455291 | BA184: GPS | BB184: 8999452 | BC184: 2018-01-04 | BD184: 2017-11-22 | BE184: 11 | BF184: COSTA | BG184: 2018-02-16
A185: 357 | B185: 2017-11-09 | E185: C-Christian Tinoco | F185: Ingresar CI / RUC | G185: 317 | H185: LEMACHE MIGUEL | I185: LEMACHE MIGUEL | J185: Realizado | K185: VISITA MEDICA | M185: NO AUDIT | P185: 1 | Q185: MEDICINA GENERAL | V185: GUAYAQUIL | X185: SEDE | Y185: Seguimiento a Convenio | Z185: Retiro de cupones | AA185: SI | AB185: 2 | AC185: Cartilla promocional de Levoc, Cartilla promocional y MiniVademecum | AD185: Medico solicita el pago | AF185: 2017-11-17 | AL185: - Seleccione - | AN185: - Seleccione - | AO185: 0 | AQ185: -Seleccione - | AV185: 0 | AW185: 0 | AX185: 2017-11-18 12:14:19 | AY185: -2.18636822 | AZ185: -79.88935089 | BA185: GPS | BB185: 8884396 | BC185: 2017-12-31 | BD185: 2017-11-18 | BE185: 11 | BF185: COSTA | BG185: 2018-02-12
A186: 358 | B186: 2017-11-09 | E186: C-Christian Tinoco | F186: 905063756 | G186: 318 | H186: LEON CARRILLO GUIDO FERNANDO | I186: LEON CARRILLO GUIDO FERNANDO | J186: Realizado | K186: VISITA MEDICA | M186: Q4 | P186: 1 | Q186: MEDICINA GENERAL | V186: POSORJA | X186: GIRA | Y186: Seguimiento a Convenio | AA186: SI | AB186: 2 | AC186: MiniVademecum y cartilla promocional | AF186: 2017-11-17 | AL186: - Seleccione - | AN186: - Seleccione - | AO186: 0 | AQ186: -Seleccione - | AV186: 0 | AW186: 0 | AX186: 2017-11-18 16:17:57 | AY186: -2.06220293 | AZ186: -79.91030883 | BA186: GPS | BB186: 8886634 | BC186: 2017-12-31 | BD186: 2017-11-18 | BE186: 11 | BF186: COSTA | BG186: 2018-02-12
A187: 361 | B187: 2017-11-09 | E187: C-Christian Tinoco | F187: Ingresar CI / RUC | G187: 321 | H187: LOPEZ EDUARDO | I187: LOPEZ EDUARDO | J187: Realizado | K187: VISITA MEDICA | M187: NO AUDIT | P187: 1 | Q187: MEDICINA GENERAL | V187: GUAYAQUIL | W187: NORMAL | X187: SEDE | Y187: Seguimiento a Convenio | AA187: SI | AB187: 2 | AC187: Cartilla promocional y cuponera | AD187: Medico solicita el pago | AF187: 2017-11-13 | AL187: - Seleccione - | AN187: - Seleccione - | AO187: 0 | AQ187: -Seleccione - | AV187: 0 | AW187: 0 | AX187: 2017-11-16 10:18:52 | AY187: -2.08405876 | AZ187: -79.92372894 | BA187: GPS | BB187: 8888141 | BC187: 2017-12-29 | BD187: 2017-11-16 | BE187: 11 | BF187: COSTA | BG187: 2018-02-10
A188: 363 | B188: 2017-11-09 | E188: C-Christian Tinoco | F188: 914037452 | G188: 323 | H188: LOPEZ SORIANO ELIZABETH ADELA | I188: LOPEZ SORIANO ELIZABETH ADELA | J188: Realizado | K188: VISITA MEDICA | M188: Q5 | P188: 1 | Q188: MEDICINA GENERAL | R188: 0997209553 | V188: LA LIBERTAD | W188: NORMAL | X188: GIRA | Y188: Seguimiento a Convenio | Z188: Entrega de cheque | AA188: SI | AB188: 2 | AC188: Cartilla promocional de Levoc y MiniVademecum | AF188: 2017-11-17 | AL188: - Seleccione - | AN188: - Seleccione - | AO188: 0 | AQ188: -Seleccione - | AV188: 0 | AW188: 0 | AX188: 2017-11-22 14:34:49 | AY188: -2.23003149 | AZ188: -80.92453765 | BA188: GPS | BB188: 8999451 | BC188: 2018-01-04 | BD188: 2017-11-22 | BE188: 11 | BF188: COSTA | BG188: 2018-02-16
A189: 364 | B189: 2017-11-09 | E189: C-Christian Tinoco | F189: Ingresar CI / RUC | G189: 324 | H189: LUCAS STALYN | I189: LUCAS STALYN | J189: Realizado | K189: VISITA MEDICA | M189: NO AUDIT | P189: 1 | Q189: MEDICINA GENERAL | V189: GUAYAQUIL | X189: SEDE | Y189: Seguimiento a Convenio | AA189: SI | AB189: 2 | AC189: MiniVademecum y cartilla promocional Pasta granugena y Levoc | AF189: 2017-11-17 | AL189: - Seleccione - | AN189: - Seleccione - | AO189: 0 | AQ189: -Seleccione - | AV189: 0 | AW189: 0 | AX189: 2017-11-18 17:12:38 | AY189: -2.06497216 | AZ189: -79.90940856 | BA189: GPS | BB189: 8886536 | BC189: 2017-12-31 | BD189: 2017-11-18 | BE189: 11 | BF189: COSTA | BG189: 2018-02-12
A190: 366 | B190: 2017-11-09 | E190: C-Christian Tinoco | F190: Ingresar CI / RUC | G190: 326 | H190: MACHADO ANA | I190: MACHADO ANA | J190: Realizado | K190: VISITA MEDICA | M190: NO AUDIT | P190: 1 | Q190: OTORRINOLARINGOLOGIA | V190: GUAYAQUIL | X190: SEDE | Y190: Seguimiento a Convenio | Z190: Apertura a convenio | AA190: SI | AB190: 3 | AC190: Cartilla promocional de Levoc, cuponera y MiniVademecum | AF190: 2017-11-13 | AL190: - Seleccione - | AN190: - Seleccione - | AO190: 0 | AQ190: -Seleccione - | AV190: 0 | AW190: 0 | AX190: 2017-11-16 10:05:24 | AY190: -2.08396291 | AZ190: -79.92375946 | BA190: GPS | BB190: 8888144 | BC190: 2017-12-29 | BD190: 2017-11-16 | BE190: 11 | BF190: COSTA | BG190: 2018-02-10
A191: 367 | B191: 2017-11-09 | E191: C-Christian Tinoco | F191: 905148102 | G191: 327 | H191: MACKLIFF QUINTERO CARLOS OVIDIO | I191: MACKLIFF QUINTERO CARLOS OVIDIO | J191: Realizado | K191: VISITA MEDICA | L191: 905148102 | M191: Q5 | N191: ESTATINAS:RUX 100,00% ACROVASTIN 0,00%;// FIBRATOS:LOPID 100,00% // ANTIHISTAMINICOS:AVIANT 66,67% DEGRALER 33,33%;SUPRALER 0,00%;LORATADINA NIFA 0,00%;ALERCET 0,00%;DESLORAN 0,00%;// CORTICOESTERIODES:METICORTEN 66,67% PREDNIMAX 33,33%;PREDNISONA 0,00%;// CLOPIDOGREL:PLAVIX 100,00% EXPANSIA 0,00%; | O191: 1 | P191: 1 | Q191: MEDICINA GENERAL | U191: GUAYAQUIL | V191: GUAYAQUIL | W191: SEDE | X191: SEDE | Y191: Inscripción de Convenio | AA191: SI | AB191: 2 | AC191: MiniVademecum y cuponera | AD191: Medico aperturado por Christian Tinoco | AF191: 2017-11-24 | AL191: - Seleccione - | AN191: - Seleccione - | AO191: 0 | AQ191: -Seleccione - | AV191: 0 | AW191: 0 | AX191: 2017-11-24 12:24:38 | AY191: -2.19736289 | AZ191: -79.88890075 | BA191: GPS | BB191: 8884354 | BC191: 2018-01-06 | BD191: 2017-11-24 | BE191: 11 | BF191: COSTA | BG191: 2018-02-18
A192: 370 | B192: 2017-11-09 | E192: C-Christian Tinoco | F192: 905810008 | G192: 330 | H192: MAZZINI VEGA JULIO MILTON | I192: MAZZINI VEGA JULIO MILTON | J192: Realizado | K192: VISITA MEDICA | M192: Q4 | P192: 1 | Q192: TRAUMATOLOGIA | V192: GUAYAQUIL | X192: SEDE | Y192: Seguimiento a Convenio | AA192: SI | AB192: 2 | AC192: Cartilla promocional de Levoc y MiniVademecum | AF192: 2017-11-17 | AL192: - Seleccione - | AN192: - Seleccione - | AO192: 0 | AQ192: -Seleccione - | AV192: 0 | AW192: 0 | AX192: 2017-11-18 17:16:48 | AY192: -2.06505966 | AZ192: -79.90948486 | BA192: GPS | BB192: 8886544 | BC192: 2017-12-31 | BD192: 2017-11-18 | BE192: 11 | BF192: =IF(LEFT(E192,1)="S","SIERRA","COSTA") -> COSTA | BG192: 2018-02-12
A193: 373 | B193: 2017-11-09 | E193: C-Christian Tinoco | F193: Ingresar CI / RUC | G193: 333 | H193: MENDOZA INGERBORTH ELIZABETH | I193: MENDOZA INGERBORTH ELIZABETH | J193: Realizado | K193: VISITA MEDICA | M193: NO AUDIT | P193: 1 | Q193: MEDICINA GENERAL | V193: GUAYAQUIL | W193: NORMAL | X193: SEDE | Y193: Seguimiento a Convenio | Z193: Retiro de cupones | AA193: SI | AB193: 2 | AC193: MiniVademecum y cartilla promocional Pasta granugena y Levoc | AD193: Medico solicita el pago | AF193: 2017-11-17 | AL193: - Seleccione - | AN193: - Seleccione - | AO193: 0 | AQ193: -Seleccione - | AV193: 0 | AW193: 0 | AX193: 2017-11-18 17:17:57 | AY193: -2.0650072 | AZ193: -79.90943908 | BA193: GPS | BB193: 8886539 | BC193: 2017-12-31 | BD193: =DATE(YEAR(AX193),MONTH(AX193),DAY(AX193)) -> 2017-11-18 | BE193: 11 | BF193: COSTA | BG193: 2018-02-12
A194: 374 | B194: 2017-11-09 | E194: C-Christian Tinoco | F194: 1302043037 | G194: 334 | H194: MESIAS PITA MANUEL MELQUIADES | I194: MESIAS PITA MANUEL MELQUIADES | J194: Realizado | K194: VISITA MEDICA | M194: Q3 | P194: 1 | Q194: CARDIOLOGIA | V194: GUAYAQUIL | X194: SEDE | Y194: Recordatorio de Producto | AA194: SI | AB194: 2 | AC194: Cartilla promocional de Levoc y MiniVademecum | AF194: 2017-11-17 | AL194: - Seleccione - | AN194: - Seleccione - | AO194: 0 | AQ194: -Seleccione - | AV194: 0 | AW194: 0 | AX194: 2017-11-20 19:21:28 | AY194: -2.21427488 | AZ194: -79.88927459 | BA194: GPS | BB194: 8884409 | BC194: 2018-01-02 | BD194: 2017-11-20 | BE194: 11 | BF194: COSTA | BG194: 2018-02-14
A195: 375 | B195: 2017-11-09 | E195: C-Christian Tinoco | F195: 905219127 | G195: 335 | H195: MILLAN OLVERA BRAULIA AMADA | I195: MILLAN OLVERA BRAULIA AMADA | J195: Realizado | K195: VISITA MEDICA | M195: Q5 | P195: 1 | Q195: MEDICINA GENERAL | V195: GUAYAQUIL | W195: NORMAL | X195: SEDE | Y195: Seguimiento a Convenio | Z195: Retiro de cupones | AA195: SI | AB195: 2 | AC195: Cartilla promocional de Levoc y MiniVademecum | AD195: Medico solicita el pago | AF195: 2017-11-17 | AL195: - Seleccione - | AN195: - Seleccione - | AO195: 0 | AQ195: -Seleccione - | AV195: 0 | AW195: 0 | AX195: 2017-11-18 17:19:12 | AY195: -2.06497454 | AZ195: -79.90945434 | BA195: GPS | BB195: 8886541 | BC195: 2017-12-31 | BD195: 2017-11-18 | BE195: 11 | BF195: COSTA | BG195: =+BC195+43 -> 2018-02-12
A196: 376 | B196: 2017-11-09 | E196: C-Christian Tinoco | F196: 907063093 | G196: 336 | H196: MOLINA SALTOS LUIS FERNANDO | I196: MOLINA SALTOS LUIS FERNANDO | J196: Realizado | K196: VISITA MEDICA | M196: Q5 | P196: 0.5 | Q196: MEDICINA INTERNA | V196: GUAYAQUIL | W196: NORMAL | X196: SEDE | Y196: Seguimiento a Convenio | Z196: Retiro de cupones | AA196: SI | AB196: 3 | AC196: Cartilla promocional de Levoc y MiniVademecum | AF196: 2017-11-13 | AL196: - Seleccione - | AN196: - Seleccione - | AO196: 0 | AQ196: -Seleccione - | AV196: 0 | AW196: 0 | AX196: 2017-11-13 11:13:02 | AY196: -2.26233553 | AZ196: -79.89083099 | BA196: GPS | BB196: 8884619 | BC196: 2017-12-26 | BD196: 2017-11-13 | BE196: 11 | BF196: COSTA | BG196: 2018-02-07
A197: 377 | B197: 2017-11-09 | E197: C-Christian Tinoco | F197: 907063093 | G197: 337 | H197: MOLINA SALTOS LUIS FERNANDO | I197: MOLINA SALTOS LUIS FERNANDO | J197: Realizado | K197: VISITA MEDICA | M197: Q5 | P197: 2/2 | Q197: MEDICINA INTERNA | V197: GUAYAQUIL | W197: NORMAL | X197: SEDE | Y197: Seguimiento a Convenio | AA197: SI | AB197: 2 | AC197: Cartilla promocional y MiniVademecum | AD197: Medico solicita el pago | AF197: 2017-11-13 | AL197: - Seleccione - | AN197: - Seleccione - | AO197: 0 | AQ197: -Seleccione - | AV197: 0 | AW197: 0 | AX197: 2017-11-16 10:22:09 | AY197: -2.08419132 | AZ197: -79.92372894 | BA197: GPS | BB197: 8888141 | BC197: 2017-12-29 | BD197: 2017-11-16 | BE197: 11 | BF197: COSTA | BG197: 2018-02-10
A198: 379 | B198: 2017-11-09 | E198: C-Christian Tinoco | F198: 1101341756 | G198: 339 | H198: MONCAYO BURNEO LEONARDO PATRICIO SEVERO | I198: MONCAYO BURNEO LEONARDO PATRICIO SEVERO | J198: Realizado | K198: VISITA MEDICA | M198: Q4 | P198: 1 | Q198: CARDIOLOGIA | V198: GUAYAQUIL | X198: SEDE | Y198: Seguimiento a Convenio | AA198: SI | AB198: 2 | AC198: Cartilla promocional de Levoc y MiniVademecum | AF198: 2017-11-17 | AL198: - Seleccione - | AN198: - Seleccione - | AO198: 0 | AQ198: -Seleccione - | AV198: 0 | AW198: 0 | AX198: 2017-11-18 17:20:30 | AY198: -2.06498694 | AZ198: -79.90944671 | BA198: GPS | BB198: 8886540 | BC198: 2017-12-31 | BD198: 2017-11-18 | BE198: 11 | BF198: COSTA | BG198: 2018-02-12
A199: 380 | B199: 2017-11-09 | E199: C-Christian Tinoco | F199: 910873652 | G199: 340 | H199: MONTALVAN ACOSTA DOLORES CECIBEL | I199: MONTALVAN ACOSTA DOLORES CECIBEL | J199: Realizado | K199: VISITA MEDICA | M199: Q5 | P199: 1 | Q199: GINECO-OBSTETRICIA | V199: GUAYAQUIL | W199: NORMAL | X199: SEDE | Y199: Seguimiento a Convenio | Z199: Retiro de cupones | AA199: SI | AB199: 2 | AC199: Caberkana, MiniVademecum y cartilla promocional | AD199: Medico solicita el pago | AF199: 2017-11-13 | AL199: - Seleccione - | AN199: - Seleccione - | AO199: 0 | AQ199: -Seleccione - | AV199: 0 | AW199: 0 | AX199: 2017-11-16 09:59:15 | AY199: -2.08400678 | AZ199: -79.92373657 | BA199: GPS | BB199: 8888141 | BC199: 2017-12-29 | BD199: 2017-11-16 | BE199: 11 | BF199: COSTA | BG199: 2018-02-10
A200: 381 | B200: 2017-11-09 | E200: C-Christian Tinoco | F200: Ingresar CI / RUC | G200: 341 | H200: MONTAÑO CUESTA MARIA JOSE | I200: MONTAÑO CUESTA MARIA JOSE | J200: Realizado | K200: VISITA MEDICA | M200: NO AUDIT | P200: 0.5 | Q200: NO ESPECIFICADA | V200: GUAYAQUIL | W200: NORMAL | X200: SEDE | Y200: Seguimiento a Convenio | AA200: SI | AB200: 2 | AC200: Cartilla promocional de Levoc, Cartilla promocional y MiniVademecum | AD200: Medico solicito su pago | AF200: 2017-11-17 | AL200: - Seleccione - | AN200: - Seleccione - | AO200: 0 | AQ200: -Seleccione - | AV200: 0 | AW200: 0 | AX200: 2017-11-18 17:21:33 | AY200: -2.06501102 | AZ200: -79.90941619 | BA200: GPS | BB200: 8886536 | BC200: 2017-12-31 | BD200: 2017-11-18 | BE200: =MONTH(AX200) -> 11 | BF200: COSTA | BG200: 2018-02-12
... 925 more rows
